Organisation Name,Organisation Code,Unique Ref No, Effective Date,Directorate where expenditure incurred,Supplier Name ,Payment  Date,Net amount,Purpose of Spend,"Procurement Classification
(Higher Level)","Procurement Classification 
(Lower Level)",CAPITAL / REVENUE
Walsall Council,http://opendatacommunities.org/id/metropolitan-district-council/walsall ,WC150-1,31.05.2023,RESOURCES AND TRANSFORMATION,11KBW,17/05/2023,"13,265.59",6610-School Only Payments - Catering,THIRD PARTY PAYMENTS,INDEPENDENT UNIT WITHIN COUNCIL,REVENUE
Walsall Council,http://opendatacommunities.org/id/metropolitan-district-council/walsall ,WC150-2,31.05.2023,CHILDRENS,247 CARS (WILLENHALL) LIMITED,22/05/2023,931,6241-Hire of Vehicle with Driver,TRANSPORT,DIRECT TRANSPORT COSTS,REVENUE
Walsall Council,http://opendatacommunities.org/id/metropolitan-district-council/walsall ,WC150-3,31.05.2023,CHILDRENS,247 CARS (WILLENHALL) LIMITED,22/05/2023,"1,498.00",6241-Hire of Vehicle with Driver,TRANSPORT,DIRECT TRANSPORT COSTS,REVENUE
Walsall Council,http://opendatacommunities.org/id/metropolitan-district-council/walsall ,WC150-4,31.05.2023,CHILDRENS,247 CARS (WILLENHALL) LIMITED,22/05/2023,"1,110.00",6241-Hire of Vehicle with Driver,TRANSPORT,DIRECT TRANSPORT COSTS,REVENUE
Walsall Council,http://opendatacommunities.org/id/metropolitan-district-council/walsall ,WC150-5,31.05.2023,CHILDRENS,247 CARS (WILLENHALL) LIMITED,22/05/2023,"1,110.00",6241-Hire of Vehicle with Driver,TRANSPORT,DIRECT TRANSPORT COSTS,REVENUE
Walsall Council,http://opendatacommunities.org/id/metropolitan-district-council/walsall ,WC150-6,31.05.2023,CHILDRENS,247 CARS (WILLENHALL) LIMITED,22/05/2023,"1,110.00",6241-Hire of Vehicle with Driver,TRANSPORT,DIRECT TRANSPORT COSTS,REVENUE
Walsall Council,http://opendatacommunities.org/id/metropolitan-district-council/walsall ,WC150-7,31.05.2023,CHILDRENS,247 CARS (WILLENHALL) LIMITED,22/05/2023,"1,110.00",6241-Hire of Vehicle with Driver,TRANSPORT,DIRECT TRANSPORT COSTS,REVENUE
Walsall Council,http://opendatacommunities.org/id/metropolitan-district-council/walsall ,WC150-8,31.05.2023,CHILDRENS,247 CARS (WILLENHALL) LIMITED,22/05/2023,"2,730.00",6241-Hire of Vehicle with Driver,TRANSPORT,DIRECT TRANSPORT COSTS,REVENUE
Walsall Council,http://opendatacommunities.org/id/metropolitan-district-council/walsall ,WC150-9,31.05.2023,CHILDRENS,247 CARS (WILLENHALL) LIMITED,22/05/2023,"2,065.00",6241-Hire of Vehicle with Driver,TRANSPORT,DIRECT TRANSPORT COSTS,REVENUE
Walsall Council,http://opendatacommunities.org/id/metropolitan-district-council/walsall ,WC150-10,31.05.2023,CHILDRENS,247 CARS (WILLENHALL) LIMITED,22/05/2023,"1,110.00",6241-Hire of Vehicle with Driver,TRANSPORT,DIRECT TRANSPORT COSTS,REVENUE
Walsall Council,http://opendatacommunities.org/id/metropolitan-district-council/walsall ,WC150-11,31.05.2023,CHILDRENS,247 CARS (WILLENHALL) LIMITED,22/05/2023,"1,904.00",6241-Hire of Vehicle with Driver,TRANSPORT,DIRECT TRANSPORT COSTS,REVENUE
Walsall Council,http://opendatacommunities.org/id/metropolitan-district-council/walsall ,WC150-12,31.05.2023,CHILDRENS,247 CARS (WILLENHALL) LIMITED,22/05/2023,"1,590.40",6241-Hire of Vehicle with Driver,TRANSPORT,DIRECT TRANSPORT COSTS,REVENUE
Walsall Council,http://opendatacommunities.org/id/metropolitan-district-council/walsall ,WC150-13,31.05.2023,CHILDRENS,247 CARS (WILLENHALL) LIMITED,22/05/2023,"1,590.40",6241-Hire of Vehicle with Driver,TRANSPORT,DIRECT TRANSPORT COSTS,REVENUE
Walsall Council,http://opendatacommunities.org/id/metropolitan-district-council/walsall ,WC150-14,31.05.2023,CHILDRENS,247 CARS (WILLENHALL) LIMITED,22/05/2023,"1,020.00",6241-Hire of Vehicle with Driver,TRANSPORT,DIRECT TRANSPORT COSTS,REVENUE
Walsall Council,http://opendatacommunities.org/id/metropolitan-district-council/walsall ,WC150-15,31.05.2023,CHILDRENS,247 CARS (WILLENHALL) LIMITED,22/05/2023,"1,787.80",6241-Hire of Vehicle with Driver,TRANSPORT,DIRECT TRANSPORT COSTS,REVENUE
Walsall Council,http://opendatacommunities.org/id/metropolitan-district-council/walsall ,WC150-16,31.05.2023,CHILDRENS,247 CARS (WILLENHALL) LIMITED,22/05/2023,"1,130.88",6241-Hire of Vehicle with Driver,TRANSPORT,DIRECT TRANSPORT COSTS,REVENUE
Walsall Council,http://opendatacommunities.org/id/metropolitan-district-council/walsall ,WC150-17,31.05.2023,CHILDRENS,247 CARS (WILLENHALL) LIMITED,22/05/2023,"1,590.40",6241-Hire of Vehicle with Driver,TRANSPORT,DIRECT TRANSPORT COSTS,REVENUE
Walsall Council,http://opendatacommunities.org/id/metropolitan-district-council/walsall ,WC150-18,31.05.2023,CHILDRENS,247 CARS (WILLENHALL) LIMITED,22/05/2023,"1,590.40",6241-Hire of Vehicle with Driver,TRANSPORT,DIRECT TRANSPORT COSTS,REVENUE
Walsall Council,http://opendatacommunities.org/id/metropolitan-district-council/walsall ,WC150-19,31.05.2023,CHILDRENS,247 CARS (WILLENHALL) LIMITED,22/05/2023,"1,842.40",6241-Hire of Vehicle with Driver,TRANSPORT,DIRECT TRANSPORT COSTS,REVENUE
Walsall Council,http://opendatacommunities.org/id/metropolitan-district-council/walsall ,WC150-20,31.05.2023,CHILDRENS,247 CARS (WILLENHALL) LIMITED,22/05/2023,"1,098.50",6241-Hire of Vehicle with Driver,TRANSPORT,DIRECT TRANSPORT COSTS,REVENUE
Walsall Council,http://opendatacommunities.org/id/metropolitan-district-council/walsall ,WC150-21,31.05.2023,CHILDRENS,247 CARS (WILLENHALL) LIMITED,22/05/2023,-681.6,6241-Hire of Vehicle with Driver,TRANSPORT,DIRECT TRANSPORT COSTS,REVENUE
Walsall Council,http://opendatacommunities.org/id/metropolitan-district-council/walsall ,WC150-22,31.05.2023,CHILDRENS,247 CARS (WILLENHALL) LIMITED,22/05/2023,"2,272.00",6241-Hire of Vehicle with Driver,TRANSPORT,DIRECT TRANSPORT COSTS,REVENUE
Walsall Council,http://opendatacommunities.org/id/metropolitan-district-council/walsall ,WC150-23,31.05.2023,CHILDRENS,247 CARS (WILLENHALL) LIMITED,22/05/2023,"1,388.52",6241-Hire of Vehicle with Driver,TRANSPORT,DIRECT TRANSPORT COSTS,REVENUE
Walsall Council,http://opendatacommunities.org/id/metropolitan-district-council/walsall ,WC150-24,31.05.2023,CHILDRENS,247 CARS (WILLENHALL) LIMITED,22/05/2023,"1,771.00",6241-Hire of Vehicle with Driver,TRANSPORT,DIRECT TRANSPORT COSTS,REVENUE
Walsall Council,http://opendatacommunities.org/id/metropolitan-district-council/walsall ,WC150-25,31.05.2023,CHILDRENS,247 CARS (WILLENHALL) LIMITED,22/05/2023,"1,590.40",6241-Hire of Vehicle with Driver,TRANSPORT,DIRECT TRANSPORT COSTS,REVENUE
Walsall Council,http://opendatacommunities.org/id/metropolitan-district-council/walsall ,WC150-26,31.05.2023,CHILDRENS,247 CARS (WILLENHALL) LIMITED,22/05/2023,"1,472.84",6241-Hire of Vehicle with Driver,TRANSPORT,DIRECT TRANSPORT COSTS,REVENUE
Walsall Council,http://opendatacommunities.org/id/metropolitan-district-council/walsall ,WC150-27,31.05.2023,CHILDRENS,247 CARS (WILLENHALL) LIMITED,22/05/2023,"1,680.00",6241-Hire of Vehicle with Driver,TRANSPORT,DIRECT TRANSPORT COSTS,REVENUE
Walsall Council,http://opendatacommunities.org/id/metropolitan-district-council/walsall ,WC150-28,31.05.2023,CHILDRENS,247 CARS (WILLENHALL) LIMITED,22/05/2023,"1,842.40",6241-Hire of Vehicle with Driver,TRANSPORT,DIRECT TRANSPORT COSTS,REVENUE
Walsall Council,http://opendatacommunities.org/id/metropolitan-district-council/walsall ,WC150-29,31.05.2023,CHILDRENS,247 CARS (WILLENHALL) LIMITED,22/05/2023,"1,590.40",6241-Hire of Vehicle with Driver,TRANSPORT,DIRECT TRANSPORT COSTS,REVENUE
Walsall Council,http://opendatacommunities.org/id/metropolitan-district-council/walsall ,WC150-30,31.05.2023,CHILDRENS,247 CARS (WILLENHALL) LIMITED,22/05/2023,"1,044.12",6241-Hire of Vehicle with Driver,TRANSPORT,DIRECT TRANSPORT COSTS,REVENUE
Walsall Council,http://opendatacommunities.org/id/metropolitan-district-council/walsall ,WC150-31,31.05.2023,CHILDRENS,247 CARS (WILLENHALL) LIMITED,22/05/2023,"1,680.42",6241-Hire of Vehicle with Driver,TRANSPORT,DIRECT TRANSPORT COSTS,REVENUE
Walsall Council,http://opendatacommunities.org/id/metropolitan-district-council/walsall ,WC150-32,31.05.2023,CHILDRENS,247 CARS (WILLENHALL) LIMITED,22/05/2023,768.32,6241-Hire of Vehicle with Driver,TRANSPORT,DIRECT TRANSPORT COSTS,REVENUE
Walsall Council,http://opendatacommunities.org/id/metropolitan-district-council/walsall ,WC150-33,31.05.2023,CHILDRENS,247 CARS (WILLENHALL) LIMITED,22/05/2023,615.2,6241-Hire of Vehicle with Driver,TRANSPORT,DIRECT TRANSPORT COSTS,REVENUE
Walsall Council,http://opendatacommunities.org/id/metropolitan-district-council/walsall ,WC150-34,31.05.2023,CHILDRENS,247 CARS (WILLENHALL) LIMITED,22/05/2023,"1,590.40",6241-Hire of Vehicle with Driver,TRANSPORT,DIRECT TRANSPORT COSTS,REVENUE
Walsall Council,http://opendatacommunities.org/id/metropolitan-district-council/walsall ,WC150-35,31.05.2023,ADULT SOCIAL CARE,5 CARE SERVICES LTD,03/05/2023,690.84,6554-Professional Services-Priv Contractor & Other Agencies,THIRD PARTY PAYMENTS,PRIVATE CONTRACTOR,REVENUE
Walsall Council,http://opendatacommunities.org/id/metropolitan-district-council/walsall ,WC150-36,31.05.2023,ADULT SOCIAL CARE,5 CARE SERVICES LTD,03/05/2023,"1,018.08",6554-Professional Services-Priv Contractor & Other Agencies,THIRD PARTY PAYMENTS,PRIVATE CONTRACTOR,REVENUE
Walsall Council,http://opendatacommunities.org/id/metropolitan-district-council/walsall ,WC150-37,31.05.2023,ADULT SOCIAL CARE,5 CARE SERVICES LTD,03/05/2023,432.28,6554-Professional Services-Priv Contractor & Other Agencies,THIRD PARTY PAYMENTS,PRIVATE CONTRACTOR,REVENUE
Walsall Council,http://opendatacommunities.org/id/metropolitan-district-council/walsall ,WC150-38,31.05.2023,ADULT SOCIAL CARE,5 CARE SERVICES LTD,03/05/2023,363.6,6554-Professional Services-Priv Contractor & Other Agencies,THIRD PARTY PAYMENTS,PRIVATE CONTRACTOR,REVENUE
Walsall Council,http://opendatacommunities.org/id/metropolitan-district-council/walsall ,WC150-39,31.05.2023,ADULT SOCIAL CARE,5 CARE SERVICES LTD,03/05/2023,290.88,6554-Professional Services-Priv Contractor & Other Agencies,THIRD PARTY PAYMENTS,PRIVATE CONTRACTOR,REVENUE
Walsall Council,http://opendatacommunities.org/id/metropolitan-district-council/walsall ,WC150-40,31.05.2023,ADULT SOCIAL CARE,5 CARE SERVICES LTD,03/05/2023,747.4,6554-Professional Services-Priv Contractor & Other Agencies,THIRD PARTY PAYMENTS,PRIVATE CONTRACTOR,REVENUE
Walsall Council,http://opendatacommunities.org/id/metropolitan-district-council/walsall ,WC150-41,31.05.2023,ADULT SOCIAL CARE,5 CARE SERVICES LTD,03/05/2023,690.84,6554-Professional Services-Priv Contractor & Other Agencies,THIRD PARTY PAYMENTS,PRIVATE CONTRACTOR,REVENUE
Walsall Council,http://opendatacommunities.org/id/metropolitan-district-council/walsall ,WC150-42,31.05.2023,ADULT SOCIAL CARE,5 CARE SERVICES LTD,03/05/2023,"1,818.00",6554-Professional Services-Priv Contractor & Other Agencies,THIRD PARTY PAYMENTS,PRIVATE CONTRACTOR,REVENUE
Walsall Council,http://opendatacommunities.org/id/metropolitan-district-council/walsall ,WC150-43,31.05.2023,ADULT SOCIAL CARE,5 CARE SERVICES LTD,03/05/2023,"2,036.16",6554-Professional Services-Priv Contractor & Other Agencies,THIRD PARTY PAYMENTS,PRIVATE CONTRACTOR,REVENUE
Walsall Council,http://opendatacommunities.org/id/metropolitan-district-council/walsall ,WC150-44,31.05.2023,ADULT SOCIAL CARE,5 CARE SERVICES LTD,03/05/2023,"1,818.00",6554-Professional Services-Priv Contractor & Other Agencies,THIRD PARTY PAYMENTS,PRIVATE CONTRACTOR,REVENUE
Walsall Council,http://opendatacommunities.org/id/metropolitan-district-council/walsall ,WC150-45,31.05.2023,ADULT SOCIAL CARE,5 CARE SERVICES LTD,03/05/2023,290.88,6554-Professional Services-Priv Contractor & Other Agencies,THIRD PARTY PAYMENTS,PRIVATE CONTRACTOR,REVENUE
Walsall Council,http://opendatacommunities.org/id/metropolitan-district-council/walsall ,WC150-46,31.05.2023,ADULT SOCIAL CARE,5 CARE SERVICES LTD,03/05/2023,"1,422.08",6554-Professional Services-Priv Contractor & Other Agencies,THIRD PARTY PAYMENTS,PRIVATE CONTRACTOR,REVENUE
Walsall Council,http://opendatacommunities.org/id/metropolitan-district-council/walsall ,WC150-47,31.05.2023,ADULT SOCIAL CARE,5 CARE SERVICES LTD,03/05/2023,565.6,6554-Professional Services-Priv Contractor & Other Agencies,THIRD PARTY PAYMENTS,PRIVATE CONTRACTOR,REVENUE
Walsall Council,http://opendatacommunities.org/id/metropolitan-district-council/walsall ,WC150-48,31.05.2023,ADULT SOCIAL CARE,5 CARE SERVICES LTD,03/05/2023,327.24,6554-Professional Services-Priv Contractor & Other Agencies,THIRD PARTY PAYMENTS,PRIVATE CONTRACTOR,REVENUE
Walsall Council,http://opendatacommunities.org/id/metropolitan-district-council/walsall ,WC150-49,31.05.2023,ADULT SOCIAL CARE,5 CARE SERVICES LTD,09/05/2023,323.2,6541-Domiciliary Care,THIRD PARTY PAYMENTS,PRIVATE CONTRACTOR,REVENUE
Walsall Council,http://opendatacommunities.org/id/metropolitan-district-council/walsall ,WC150-50,31.05.2023,ADULT SOCIAL CARE,5 CARE SERVICES LTD,09/05/2023,339.36,6541-Domiciliary Care,THIRD PARTY PAYMENTS,PRIVATE CONTRACTOR,REVENUE
Walsall Council,http://opendatacommunities.org/id/metropolitan-district-council/walsall ,WC150-51,31.05.2023,ADULT SOCIAL CARE,5 CARE SERVICES LTD,09/05/2023,509.04,6541-Domiciliary Care,THIRD PARTY PAYMENTS,PRIVATE CONTRACTOR,REVENUE
Walsall Council,http://opendatacommunities.org/id/metropolitan-district-council/walsall ,WC150-52,31.05.2023,ADULT SOCIAL CARE,5 CARE SERVICES LTD,09/05/2023,904.96,6541-Domiciliary Care,THIRD PARTY PAYMENTS,PRIVATE CONTRACTOR,REVENUE
Walsall Council,http://opendatacommunities.org/id/metropolitan-district-council/walsall ,WC150-53,31.05.2023,ADULT SOCIAL CARE,5 CARE SERVICES LTD,09/05/2023,339.36,6541-Domiciliary Care,THIRD PARTY PAYMENTS,PRIVATE CONTRACTOR,REVENUE
Walsall Council,http://opendatacommunities.org/id/metropolitan-district-council/walsall ,WC150-54,31.05.2023,ADULT SOCIAL CARE,5 CARE SERVICES LTD,09/05/2023,509.04,6541-Domiciliary Care,THIRD PARTY PAYMENTS,PRIVATE CONTRACTOR,REVENUE
Walsall Council,http://opendatacommunities.org/id/metropolitan-district-council/walsall ,WC150-55,31.05.2023,ADULT SOCIAL CARE,5 CARE SERVICES LTD,09/05/2023,509.04,6541-Domiciliary Care,THIRD PARTY PAYMENTS,PRIVATE CONTRACTOR,REVENUE
Walsall Council,http://opendatacommunities.org/id/metropolitan-district-council/walsall ,WC150-56,31.05.2023,ADULT SOCIAL CARE,5 CARE SERVICES LTD,09/05/2023,452.48,6541-Domiciliary Care,THIRD PARTY PAYMENTS,PRIVATE CONTRACTOR,REVENUE
Walsall Council,http://opendatacommunities.org/id/metropolitan-district-council/walsall ,WC150-57,31.05.2023,ADULT SOCIAL CARE,5 CARE SERVICES LTD,09/05/2023,509.04,6541-Domiciliary Care,THIRD PARTY PAYMENTS,PRIVATE CONTRACTOR,REVENUE
Walsall Council,http://opendatacommunities.org/id/metropolitan-district-council/walsall ,WC150-58,31.05.2023,ADULT SOCIAL CARE,5 CARE SERVICES LTD,09/05/2023,565.6,6541-Domiciliary Care,THIRD PARTY PAYMENTS,PRIVATE CONTRACTOR,REVENUE
Walsall Council,http://opendatacommunities.org/id/metropolitan-district-council/walsall ,WC150-59,31.05.2023,ADULT SOCIAL CARE,5 CARE SERVICES LTD,09/05/2023,254.52,6541-Domiciliary Care,THIRD PARTY PAYMENTS,PRIVATE CONTRACTOR,REVENUE
Walsall Council,http://opendatacommunities.org/id/metropolitan-district-council/walsall ,WC150-60,31.05.2023,ADULT SOCIAL CARE,5 CARE SERVICES LTD,09/05/2023,581.76,6541-Domiciliary Care,THIRD PARTY PAYMENTS,PRIVATE CONTRACTOR,REVENUE
Walsall Council,http://opendatacommunities.org/id/metropolitan-district-council/walsall ,WC150-61,31.05.2023,ADULT SOCIAL CARE,5 CARE SERVICES LTD,09/05/2023,678.72,6541-Domiciliary Care,THIRD PARTY PAYMENTS,PRIVATE CONTRACTOR,REVENUE
Walsall Council,http://opendatacommunities.org/id/metropolitan-district-council/walsall ,WC150-62,31.05.2023,ADULT SOCIAL CARE,5 CARE SERVICES LTD,09/05/2023,294.92,6541-Domiciliary Care,THIRD PARTY PAYMENTS,PRIVATE CONTRACTOR,REVENUE
Walsall Council,http://opendatacommunities.org/id/metropolitan-district-council/walsall ,WC150-63,31.05.2023,ADULT SOCIAL CARE,5 CARE SERVICES LTD,09/05/2023,323.2,6541-Domiciliary Care,THIRD PARTY PAYMENTS,PRIVATE CONTRACTOR,REVENUE
Walsall Council,http://opendatacommunities.org/id/metropolitan-district-council/walsall ,WC150-64,31.05.2023,ADULT SOCIAL CARE,5 CARE SERVICES LTD,09/05/2023,509.04,6541-Domiciliary Care,THIRD PARTY PAYMENTS,PRIVATE CONTRACTOR,REVENUE
Walsall Council,http://opendatacommunities.org/id/metropolitan-district-council/walsall ,WC150-65,31.05.2023,ADULT SOCIAL CARE,5 CARE SERVICES LTD,09/05/2023,339.36,6541-Domiciliary Care,THIRD PARTY PAYMENTS,PRIVATE CONTRACTOR,REVENUE
Walsall Council,http://opendatacommunities.org/id/metropolitan-district-council/walsall ,WC150-66,31.05.2023,ADULT SOCIAL CARE,5 CARE SERVICES LTD,09/05/2023,509.04,6541-Domiciliary Care,THIRD PARTY PAYMENTS,PRIVATE CONTRACTOR,REVENUE
Walsall Council,http://opendatacommunities.org/id/metropolitan-district-council/walsall ,WC150-67,31.05.2023,ADULT SOCIAL CARE,5 CARE SERVICES LTD,09/05/2023,452.48,6541-Domiciliary Care,THIRD PARTY PAYMENTS,PRIVATE CONTRACTOR,REVENUE
Walsall Council,http://opendatacommunities.org/id/metropolitan-district-council/walsall ,WC150-68,31.05.2023,ADULT SOCIAL CARE,5 CARE SERVICES LTD,09/05/2023,727.2,6541-Domiciliary Care,THIRD PARTY PAYMENTS,PRIVATE CONTRACTOR,REVENUE
Walsall Council,http://opendatacommunities.org/id/metropolitan-district-council/walsall ,WC150-69,31.05.2023,ADULT SOCIAL CARE,5 CARE SERVICES LTD,09/05/2023,254.52,6541-Domiciliary Care,THIRD PARTY PAYMENTS,PRIVATE CONTRACTOR,REVENUE
Walsall Council,http://opendatacommunities.org/id/metropolitan-district-council/walsall ,WC150-70,31.05.2023,ADULT SOCIAL CARE,5 CARE SERVICES LTD,09/05/2023,694.88,6541-Domiciliary Care,THIRD PARTY PAYMENTS,PRIVATE CONTRACTOR,REVENUE
Walsall Council,http://opendatacommunities.org/id/metropolitan-district-council/walsall ,WC150-71,31.05.2023,ADULT SOCIAL CARE,5 CARE SERVICES LTD,09/05/2023,735.28,6541-Domiciliary Care,THIRD PARTY PAYMENTS,PRIVATE CONTRACTOR,REVENUE
Walsall Council,http://opendatacommunities.org/id/metropolitan-district-council/walsall ,WC150-72,31.05.2023,ADULT SOCIAL CARE,5 CARE SERVICES LTD,09/05/2023,254.52,6541-Domiciliary Care,THIRD PARTY PAYMENTS,PRIVATE CONTRACTOR,REVENUE
Walsall Council,http://opendatacommunities.org/id/metropolitan-district-council/walsall ,WC150-73,31.05.2023,ADULT SOCIAL CARE,5 CARE SERVICES LTD,09/05/2023,536.02,6541-Domiciliary Care,THIRD PARTY PAYMENTS,PRIVATE CONTRACTOR,REVENUE
Walsall Council,http://opendatacommunities.org/id/metropolitan-district-council/walsall ,WC150-74,31.05.2023,ADULT SOCIAL CARE,5 CARE SERVICES LTD,09/05/2023,694.88,6541-Domiciliary Care,THIRD PARTY PAYMENTS,PRIVATE CONTRACTOR,REVENUE
Walsall Council,http://opendatacommunities.org/id/metropolitan-district-council/walsall ,WC150-75,31.05.2023,ADULT SOCIAL CARE,5 CARE SERVICES LTD,09/05/2023,"1,244.32",6541-Domiciliary Care,THIRD PARTY PAYMENTS,PRIVATE CONTRACTOR,REVENUE
Walsall Council,http://opendatacommunities.org/id/metropolitan-district-council/walsall ,WC150-76,31.05.2023,ADULT SOCIAL CARE,5 CARE SERVICES LTD,09/05/2023,565.6,6541-Domiciliary Care,THIRD PARTY PAYMENTS,PRIVATE CONTRACTOR,REVENUE
Walsall Council,http://opendatacommunities.org/id/metropolitan-district-council/walsall ,WC150-77,31.05.2023,ADULT SOCIAL CARE,5 CARE SERVICES LTD,09/05/2023,509.04,6541-Domiciliary Care,THIRD PARTY PAYMENTS,PRIVATE CONTRACTOR,REVENUE
Walsall Council,http://opendatacommunities.org/id/metropolitan-district-council/walsall ,WC150-78,31.05.2023,ADULT SOCIAL CARE,5 CARE SERVICES LTD,09/05/2023,509.04,6541-Domiciliary Care,THIRD PARTY PAYMENTS,PRIVATE CONTRACTOR,REVENUE
Walsall Council,http://opendatacommunities.org/id/metropolitan-district-council/walsall ,WC150-79,31.05.2023,ADULT SOCIAL CARE,5 CARE SERVICES LTD,09/05/2023,584.5,6541-Domiciliary Care,THIRD PARTY PAYMENTS,PRIVATE CONTRACTOR,REVENUE
Walsall Council,http://opendatacommunities.org/id/metropolitan-district-council/walsall ,WC150-80,31.05.2023,ADULT SOCIAL CARE,5 CARE SERVICES LTD,09/05/2023,254.52,6541-Domiciliary Care,THIRD PARTY PAYMENTS,PRIVATE CONTRACTOR,REVENUE
Walsall Council,http://opendatacommunities.org/id/metropolitan-district-council/walsall ,WC150-81,31.05.2023,ADULT SOCIAL CARE,5 CARE SERVICES LTD,09/05/2023,254.52,6541-Domiciliary Care,THIRD PARTY PAYMENTS,PRIVATE CONTRACTOR,REVENUE
Walsall Council,http://opendatacommunities.org/id/metropolitan-district-council/walsall ,WC150-82,31.05.2023,ADULT SOCIAL CARE,5 CARE SERVICES LTD,09/05/2023,775.68,6541-Domiciliary Care,THIRD PARTY PAYMENTS,PRIVATE CONTRACTOR,REVENUE
Walsall Council,http://opendatacommunities.org/id/metropolitan-district-council/walsall ,WC150-83,31.05.2023,ADULT SOCIAL CARE,5 CARE SERVICES LTD,09/05/2023,323.2,6541-Domiciliary Care,THIRD PARTY PAYMENTS,PRIVATE CONTRACTOR,REVENUE
Walsall Council,http://opendatacommunities.org/id/metropolitan-district-council/walsall ,WC150-84,31.05.2023,ADULT SOCIAL CARE,5 CARE SERVICES LTD,09/05/2023,339.36,6541-Domiciliary Care,THIRD PARTY PAYMENTS,PRIVATE CONTRACTOR,REVENUE
Walsall Council,http://opendatacommunities.org/id/metropolitan-district-council/walsall ,WC150-85,31.05.2023,ADULT SOCIAL CARE,5 CARE SERVICES LTD,09/05/2023,509.04,6541-Domiciliary Care,THIRD PARTY PAYMENTS,PRIVATE CONTRACTOR,REVENUE
Walsall Council,http://opendatacommunities.org/id/metropolitan-district-council/walsall ,WC150-86,31.05.2023,ADULT SOCIAL CARE,5 CARE SERVICES LTD,09/05/2023,323.2,6541-Domiciliary Care,THIRD PARTY PAYMENTS,PRIVATE CONTRACTOR,REVENUE
Walsall Council,http://opendatacommunities.org/id/metropolitan-district-council/walsall ,WC150-87,31.05.2023,ADULT SOCIAL CARE,5 CARE SERVICES LTD,09/05/2023,509.04,6541-Domiciliary Care,THIRD PARTY PAYMENTS,PRIVATE CONTRACTOR,REVENUE
Walsall Council,http://opendatacommunities.org/id/metropolitan-district-council/walsall ,WC150-88,31.05.2023,ADULT SOCIAL CARE,5 CARE SERVICES LTD,09/05/2023,509.04,6541-Domiciliary Care,THIRD PARTY PAYMENTS,PRIVATE CONTRACTOR,REVENUE
Walsall Council,http://opendatacommunities.org/id/metropolitan-district-council/walsall ,WC150-89,31.05.2023,ADULT SOCIAL CARE,5 CARE SERVICES LTD,09/05/2023,904.96,6541-Domiciliary Care,THIRD PARTY PAYMENTS,PRIVATE CONTRACTOR,REVENUE
Walsall Council,http://opendatacommunities.org/id/metropolitan-district-council/walsall ,WC150-90,31.05.2023,ADULT SOCIAL CARE,5 CARE SERVICES LTD,09/05/2023,452.48,6541-Domiciliary Care,THIRD PARTY PAYMENTS,PRIVATE CONTRACTOR,REVENUE
Walsall Council,http://opendatacommunities.org/id/metropolitan-district-council/walsall ,WC150-91,31.05.2023,ADULT SOCIAL CARE,5 CARE SERVICES LTD,09/05/2023,848.4,6541-Domiciliary Care,THIRD PARTY PAYMENTS,PRIVATE CONTRACTOR,REVENUE
Walsall Council,http://opendatacommunities.org/id/metropolitan-district-council/walsall ,WC150-92,31.05.2023,ADULT SOCIAL CARE,5 CARE SERVICES LTD,09/05/2023,254.52,6541-Domiciliary Care,THIRD PARTY PAYMENTS,PRIVATE CONTRACTOR,REVENUE
Walsall Council,http://opendatacommunities.org/id/metropolitan-district-council/walsall ,WC150-93,31.05.2023,ADULT SOCIAL CARE,5 CARE SERVICES LTD,09/05/2023,339.36,6541-Domiciliary Care,THIRD PARTY PAYMENTS,PRIVATE CONTRACTOR,REVENUE
Walsall Council,http://opendatacommunities.org/id/metropolitan-district-council/walsall ,WC150-94,31.05.2023,ADULT SOCIAL CARE,5 CARE SERVICES LTD,09/05/2023,509.04,6541-Domiciliary Care,THIRD PARTY PAYMENTS,PRIVATE CONTRACTOR,REVENUE
Walsall Council,http://opendatacommunities.org/id/metropolitan-district-council/walsall ,WC150-95,31.05.2023,ADULT SOCIAL CARE,5 CARE SERVICES LTD,09/05/2023,509.04,6541-Domiciliary Care,THIRD PARTY PAYMENTS,PRIVATE CONTRACTOR,REVENUE
Walsall Council,http://opendatacommunities.org/id/metropolitan-district-council/walsall ,WC150-96,31.05.2023,ADULT SOCIAL CARE,5 CARE SERVICES LTD,09/05/2023,678.72,6541-Domiciliary Care,THIRD PARTY PAYMENTS,PRIVATE CONTRACTOR,REVENUE
Walsall Council,http://opendatacommunities.org/id/metropolitan-district-council/walsall ,WC150-97,31.05.2023,ADULT SOCIAL CARE,5 CARE SERVICES LTD,09/05/2023,294.92,6541-Domiciliary Care,THIRD PARTY PAYMENTS,PRIVATE CONTRACTOR,REVENUE
Walsall Council,http://opendatacommunities.org/id/metropolitan-district-council/walsall ,WC150-98,31.05.2023,ADULT SOCIAL CARE,5 CARE SERVICES LTD,09/05/2023,452.48,6541-Domiciliary Care,THIRD PARTY PAYMENTS,PRIVATE CONTRACTOR,REVENUE
Walsall Council,http://opendatacommunities.org/id/metropolitan-district-council/walsall ,WC150-99,31.05.2023,ADULT SOCIAL CARE,5 CARE SERVICES LTD,09/05/2023,509.04,6541-Domiciliary Care,THIRD PARTY PAYMENTS,PRIVATE CONTRACTOR,REVENUE
Walsall Council,http://opendatacommunities.org/id/metropolitan-district-council/walsall ,WC150-100,31.05.2023,ADULT SOCIAL CARE,5 CARE SERVICES LTD,09/05/2023,565.6,6541-Domiciliary Care,THIRD PARTY PAYMENTS,PRIVATE CONTRACTOR,REVENUE
Walsall Council,http://opendatacommunities.org/id/metropolitan-district-council/walsall ,WC150-101,31.05.2023,ADULT SOCIAL CARE,5 CARE SERVICES LTD,09/05/2023,694.88,6541-Domiciliary Care,THIRD PARTY PAYMENTS,PRIVATE CONTRACTOR,REVENUE
Walsall Council,http://opendatacommunities.org/id/metropolitan-district-council/walsall ,WC150-102,31.05.2023,ADULT SOCIAL CARE,5 CARE SERVICES LTD,09/05/2023,735.28,6541-Domiciliary Care,THIRD PARTY PAYMENTS,PRIVATE CONTRACTOR,REVENUE
Walsall Council,http://opendatacommunities.org/id/metropolitan-district-council/walsall ,WC150-103,31.05.2023,ADULT SOCIAL CARE,5 CARE SERVICES LTD,09/05/2023,254.52,6541-Domiciliary Care,THIRD PARTY PAYMENTS,PRIVATE CONTRACTOR,REVENUE
Walsall Council,http://opendatacommunities.org/id/metropolitan-district-council/walsall ,WC150-104,31.05.2023,ADULT SOCIAL CARE,5 CARE SERVICES LTD,09/05/2023,536.02,6541-Domiciliary Care,THIRD PARTY PAYMENTS,PRIVATE CONTRACTOR,REVENUE
Walsall Council,http://opendatacommunities.org/id/metropolitan-district-council/walsall ,WC150-105,31.05.2023,ADULT SOCIAL CARE,5 CARE SERVICES LTD,09/05/2023,719.12,6541-Domiciliary Care,THIRD PARTY PAYMENTS,PRIVATE CONTRACTOR,REVENUE
Walsall Council,http://opendatacommunities.org/id/metropolitan-district-council/walsall ,WC150-106,31.05.2023,ADULT SOCIAL CARE,5 CARE SERVICES LTD,09/05/2023,"1,244.32",6541-Domiciliary Care,THIRD PARTY PAYMENTS,PRIVATE CONTRACTOR,REVENUE
Walsall Council,http://opendatacommunities.org/id/metropolitan-district-council/walsall ,WC150-107,31.05.2023,ADULT SOCIAL CARE,5 CARE SERVICES LTD,09/05/2023,584.5,6541-Domiciliary Care,THIRD PARTY PAYMENTS,PRIVATE CONTRACTOR,REVENUE
Walsall Council,http://opendatacommunities.org/id/metropolitan-district-council/walsall ,WC150-108,31.05.2023,ADULT SOCIAL CARE,5 CARE SERVICES LTD,09/05/2023,254.52,6541-Domiciliary Care,THIRD PARTY PAYMENTS,PRIVATE CONTRACTOR,REVENUE
Walsall Council,http://opendatacommunities.org/id/metropolitan-district-council/walsall ,WC150-109,31.05.2023,ADULT SOCIAL CARE,5 CARE SERVICES LTD,09/05/2023,565.6,6541-Domiciliary Care,THIRD PARTY PAYMENTS,PRIVATE CONTRACTOR,REVENUE
Walsall Council,http://opendatacommunities.org/id/metropolitan-district-council/walsall ,WC150-110,31.05.2023,ADULT SOCIAL CARE,5 CARE SERVICES LTD,09/05/2023,509.04,6541-Domiciliary Care,THIRD PARTY PAYMENTS,PRIVATE CONTRACTOR,REVENUE
Walsall Council,http://opendatacommunities.org/id/metropolitan-district-council/walsall ,WC150-111,31.05.2023,ADULT SOCIAL CARE,5 CARE SERVICES LTD,09/05/2023,509.04,6541-Domiciliary Care,THIRD PARTY PAYMENTS,PRIVATE CONTRACTOR,REVENUE
Walsall Council,http://opendatacommunities.org/id/metropolitan-district-council/walsall ,WC150-112,31.05.2023,ADULT SOCIAL CARE,5 CARE SERVICES LTD,23/05/2023,254.52,6541-Domiciliary Care,THIRD PARTY PAYMENTS,PRIVATE CONTRACTOR,REVENUE
Walsall Council,http://opendatacommunities.org/id/metropolitan-district-council/walsall ,WC150-113,31.05.2023,ADULT SOCIAL CARE,5 CARE SERVICES LTD,23/05/2023,"1,023.36",6541-Domiciliary Care,THIRD PARTY PAYMENTS,PRIVATE CONTRACTOR,REVENUE
Walsall Council,http://opendatacommunities.org/id/metropolitan-district-council/walsall ,WC150-114,31.05.2023,ADULT SOCIAL CARE,5 CARE SERVICES LTD,23/05/2023,323.2,6541-Domiciliary Care,THIRD PARTY PAYMENTS,PRIVATE CONTRACTOR,REVENUE
Walsall Council,http://opendatacommunities.org/id/metropolitan-district-council/walsall ,WC150-115,31.05.2023,ADULT SOCIAL CARE,5 CARE SERVICES LTD,23/05/2023,339.36,6541-Domiciliary Care,THIRD PARTY PAYMENTS,PRIVATE CONTRACTOR,REVENUE
Walsall Council,http://opendatacommunities.org/id/metropolitan-district-council/walsall ,WC150-116,31.05.2023,ADULT SOCIAL CARE,5 CARE SERVICES LTD,23/05/2023,509.04,6541-Domiciliary Care,THIRD PARTY PAYMENTS,PRIVATE CONTRACTOR,REVENUE
Walsall Council,http://opendatacommunities.org/id/metropolitan-district-council/walsall ,WC150-117,31.05.2023,ADULT SOCIAL CARE,5 CARE SERVICES LTD,23/05/2023,678.72,6541-Domiciliary Care,THIRD PARTY PAYMENTS,PRIVATE CONTRACTOR,REVENUE
Walsall Council,http://opendatacommunities.org/id/metropolitan-district-council/walsall ,WC150-118,31.05.2023,ADULT SOCIAL CARE,5 CARE SERVICES LTD,23/05/2023,294.92,6541-Domiciliary Care,THIRD PARTY PAYMENTS,PRIVATE CONTRACTOR,REVENUE
Walsall Council,http://opendatacommunities.org/id/metropolitan-district-council/walsall ,WC150-119,31.05.2023,ADULT SOCIAL CARE,5 CARE SERVICES LTD,23/05/2023,904.96,6541-Domiciliary Care,THIRD PARTY PAYMENTS,PRIVATE CONTRACTOR,REVENUE
Walsall Council,http://opendatacommunities.org/id/metropolitan-district-council/walsall ,WC150-120,31.05.2023,ADULT SOCIAL CARE,5 CARE SERVICES LTD,23/05/2023,509.04,6541-Domiciliary Care,THIRD PARTY PAYMENTS,PRIVATE CONTRACTOR,REVENUE
Walsall Council,http://opendatacommunities.org/id/metropolitan-district-council/walsall ,WC150-121,31.05.2023,ADULT SOCIAL CARE,5 CARE SERVICES LTD,23/05/2023,339.36,6541-Domiciliary Care,THIRD PARTY PAYMENTS,PRIVATE CONTRACTOR,REVENUE
Walsall Council,http://opendatacommunities.org/id/metropolitan-district-council/walsall ,WC150-122,31.05.2023,ADULT SOCIAL CARE,5 CARE SERVICES LTD,23/05/2023,509.04,6541-Domiciliary Care,THIRD PARTY PAYMENTS,PRIVATE CONTRACTOR,REVENUE
Walsall Council,http://opendatacommunities.org/id/metropolitan-district-council/walsall ,WC150-123,31.05.2023,ADULT SOCIAL CARE,5 CARE SERVICES LTD,23/05/2023,815.4,6541-Domiciliary Care,THIRD PARTY PAYMENTS,PRIVATE CONTRACTOR,REVENUE
Walsall Council,http://opendatacommunities.org/id/metropolitan-district-council/walsall ,WC150-124,31.05.2023,ADULT SOCIAL CARE,5 CARE SERVICES LTD,23/05/2023,565.6,6541-Domiciliary Care,THIRD PARTY PAYMENTS,PRIVATE CONTRACTOR,REVENUE
Walsall Council,http://opendatacommunities.org/id/metropolitan-district-council/walsall ,WC150-125,31.05.2023,ADULT SOCIAL CARE,5 CARE SERVICES LTD,23/05/2023,815.4,6541-Domiciliary Care,THIRD PARTY PAYMENTS,PRIVATE CONTRACTOR,REVENUE
Walsall Council,http://opendatacommunities.org/id/metropolitan-district-council/walsall ,WC150-126,31.05.2023,ADULT SOCIAL CARE,5 CARE SERVICES LTD,23/05/2023,815.4,6541-Domiciliary Care,THIRD PARTY PAYMENTS,PRIVATE CONTRACTOR,REVENUE
Walsall Council,http://opendatacommunities.org/id/metropolitan-district-council/walsall ,WC150-127,31.05.2023,ADULT SOCIAL CARE,5 CARE SERVICES LTD,23/05/2023,724.8,6541-Domiciliary Care,THIRD PARTY PAYMENTS,PRIVATE CONTRACTOR,REVENUE
Walsall Council,http://opendatacommunities.org/id/metropolitan-district-council/walsall ,WC150-128,31.05.2023,ADULT SOCIAL CARE,5 CARE SERVICES LTD,23/05/2023,"1,003.80",6541-Domiciliary Care,THIRD PARTY PAYMENTS,PRIVATE CONTRACTOR,REVENUE
Walsall Council,http://opendatacommunities.org/id/metropolitan-district-council/walsall ,WC150-129,31.05.2023,ADULT SOCIAL CARE,5 CARE SERVICES LTD,23/05/2023,407.7,6541-Domiciliary Care,THIRD PARTY PAYMENTS,PRIVATE CONTRACTOR,REVENUE
Walsall Council,http://opendatacommunities.org/id/metropolitan-district-council/walsall ,WC150-130,31.05.2023,ADULT SOCIAL CARE,5 CARE SERVICES LTD,23/05/2023,377.4,6541-Domiciliary Care,THIRD PARTY PAYMENTS,PRIVATE CONTRACTOR,REVENUE
Walsall Council,http://opendatacommunities.org/id/metropolitan-district-council/walsall ,WC150-131,31.05.2023,ADULT SOCIAL CARE,5 CARE SERVICES LTD,23/05/2023,835.16,6541-Domiciliary Care,THIRD PARTY PAYMENTS,PRIVATE CONTRACTOR,REVENUE
Walsall Council,http://opendatacommunities.org/id/metropolitan-district-council/walsall ,WC150-132,31.05.2023,ADULT SOCIAL CARE,5 CARE SERVICES LTD,23/05/2023,762.96,6541-Domiciliary Care,THIRD PARTY PAYMENTS,PRIVATE CONTRACTOR,REVENUE
Walsall Council,http://opendatacommunities.org/id/metropolitan-district-council/walsall ,WC150-133,31.05.2023,ADULT SOCIAL CARE,5 CARE SERVICES LTD,23/05/2023,253.6,6541-Domiciliary Care,THIRD PARTY PAYMENTS,PRIVATE CONTRACTOR,REVENUE
Walsall Council,http://opendatacommunities.org/id/metropolitan-district-council/walsall ,WC150-134,31.05.2023,ADULT SOCIAL CARE,5 CARE SERVICES LTD,23/05/2023,815.4,6541-Domiciliary Care,THIRD PARTY PAYMENTS,PRIVATE CONTRACTOR,REVENUE
Walsall Council,http://opendatacommunities.org/id/metropolitan-district-council/walsall ,WC150-135,31.05.2023,ADULT SOCIAL CARE,5 CARE SERVICES LTD,23/05/2023,815.4,6541-Domiciliary Care,THIRD PARTY PAYMENTS,PRIVATE CONTRACTOR,REVENUE
Walsall Council,http://opendatacommunities.org/id/metropolitan-district-council/walsall ,WC150-136,31.05.2023,ADULT SOCIAL CARE,5 CARE SERVICES LTD,23/05/2023,304.32,6541-Domiciliary Care,THIRD PARTY PAYMENTS,PRIVATE CONTRACTOR,REVENUE
Walsall Council,http://opendatacommunities.org/id/metropolitan-district-council/walsall ,WC150-137,31.05.2023,ADULT SOCIAL CARE,5 CARE SERVICES LTD,23/05/2023,-315.12,6541-Domiciliary Care,THIRD PARTY PAYMENTS,PRIVATE CONTRACTOR,REVENUE
Walsall Council,http://opendatacommunities.org/id/metropolitan-district-council/walsall ,WC150-138,31.05.2023,ADULT SOCIAL CARE,5 CARE SERVICES LTD,23/05/2023,254.52,6541-Domiciliary Care,THIRD PARTY PAYMENTS,PRIVATE CONTRACTOR,REVENUE
Walsall Council,http://opendatacommunities.org/id/metropolitan-district-council/walsall ,WC150-139,31.05.2023,ADULT SOCIAL CARE,5 CARE SERVICES LTD,23/05/2023,536.02,6541-Domiciliary Care,THIRD PARTY PAYMENTS,PRIVATE CONTRACTOR,REVENUE
Walsall Council,http://opendatacommunities.org/id/metropolitan-district-council/walsall ,WC150-140,31.05.2023,ADULT SOCIAL CARE,5 CARE SERVICES LTD,23/05/2023,"1,048.24",6541-Domiciliary Care,THIRD PARTY PAYMENTS,PRIVATE CONTRACTOR,REVENUE
Walsall Council,http://opendatacommunities.org/id/metropolitan-district-council/walsall ,WC150-141,31.05.2023,ADULT SOCIAL CARE,5 CARE SERVICES LTD,23/05/2023,"1,244.32",6541-Domiciliary Care,THIRD PARTY PAYMENTS,PRIVATE CONTRACTOR,REVENUE
Walsall Council,http://opendatacommunities.org/id/metropolitan-district-council/walsall ,WC150-142,31.05.2023,ADULT SOCIAL CARE,5 CARE SERVICES LTD,23/05/2023,317.1,6541-Domiciliary Care,THIRD PARTY PAYMENTS,PRIVATE CONTRACTOR,REVENUE
Walsall Council,http://opendatacommunities.org/id/metropolitan-district-council/walsall ,WC150-143,31.05.2023,ADULT SOCIAL CARE,5 CARE SERVICES LTD,23/05/2023,936,6541-Domiciliary Care,THIRD PARTY PAYMENTS,PRIVATE CONTRACTOR,REVENUE
Walsall Council,http://opendatacommunities.org/id/metropolitan-district-council/walsall ,WC150-144,31.05.2023,ADULT SOCIAL CARE,5 CARE SERVICES LTD,23/05/2023,317.1,6541-Domiciliary Care,THIRD PARTY PAYMENTS,PRIVATE CONTRACTOR,REVENUE
Walsall Council,http://opendatacommunities.org/id/metropolitan-district-council/walsall ,WC150-145,31.05.2023,ADULT SOCIAL CARE,5 CARE SERVICES LTD,23/05/2023,407.7,6541-Domiciliary Care,THIRD PARTY PAYMENTS,PRIVATE CONTRACTOR,REVENUE
Walsall Council,http://opendatacommunities.org/id/metropolitan-district-council/walsall ,WC150-146,31.05.2023,ADULT SOCIAL CARE,5 CARE SERVICES LTD,23/05/2023,288,6541-Domiciliary Care,THIRD PARTY PAYMENTS,PRIVATE CONTRACTOR,REVENUE
Walsall Council,http://opendatacommunities.org/id/metropolitan-district-council/walsall ,WC150-147,31.05.2023,ADULT SOCIAL CARE,5 CARE SERVICES LTD,23/05/2023,707.76,6541-Domiciliary Care,THIRD PARTY PAYMENTS,PRIVATE CONTRACTOR,REVENUE
Walsall Council,http://opendatacommunities.org/id/metropolitan-district-council/walsall ,WC150-148,31.05.2023,ADULT SOCIAL CARE,5 CARE SERVICES LTD,23/05/2023,254.52,6541-Domiciliary Care,THIRD PARTY PAYMENTS,PRIVATE CONTRACTOR,REVENUE
Walsall Council,http://opendatacommunities.org/id/metropolitan-district-council/walsall ,WC150-149,31.05.2023,ADULT SOCIAL CARE,5 CARE SERVICES LTD,23/05/2023,648,6541-Domiciliary Care,THIRD PARTY PAYMENTS,PRIVATE CONTRACTOR,REVENUE
Walsall Council,http://opendatacommunities.org/id/metropolitan-district-council/walsall ,WC150-150,31.05.2023,ADULT SOCIAL CARE,5 CARE SERVICES LTD,23/05/2023,323.2,6541-Domiciliary Care,THIRD PARTY PAYMENTS,PRIVATE CONTRACTOR,REVENUE
Walsall Council,http://opendatacommunities.org/id/metropolitan-district-council/walsall ,WC150-151,31.05.2023,ADULT SOCIAL CARE,5 CARE SERVICES LTD,23/05/2023,339.36,6541-Domiciliary Care,THIRD PARTY PAYMENTS,PRIVATE CONTRACTOR,REVENUE
Walsall Council,http://opendatacommunities.org/id/metropolitan-district-council/walsall ,WC150-152,31.05.2023,ADULT SOCIAL CARE,5 CARE SERVICES LTD,23/05/2023,509.04,6541-Domiciliary Care,THIRD PARTY PAYMENTS,PRIVATE CONTRACTOR,REVENUE
Walsall Council,http://opendatacommunities.org/id/metropolitan-district-council/walsall ,WC150-153,31.05.2023,ADULT SOCIAL CARE,5 CARE SERVICES LTD,23/05/2023,254.52,6541-Domiciliary Care,THIRD PARTY PAYMENTS,PRIVATE CONTRACTOR,REVENUE
Walsall Council,http://opendatacommunities.org/id/metropolitan-district-council/walsall ,WC150-154,31.05.2023,ADULT SOCIAL CARE,5 CARE SERVICES LTD,23/05/2023,536.02,6541-Domiciliary Care,THIRD PARTY PAYMENTS,PRIVATE CONTRACTOR,REVENUE
Walsall Council,http://opendatacommunities.org/id/metropolitan-district-council/walsall ,WC150-155,31.05.2023,ADULT SOCIAL CARE,5 CARE SERVICES LTD,23/05/2023,666,6541-Domiciliary Care,THIRD PARTY PAYMENTS,PRIVATE CONTRACTOR,REVENUE
Walsall Council,http://opendatacommunities.org/id/metropolitan-district-council/walsall ,WC150-156,31.05.2023,ADULT SOCIAL CARE,5 CARE SERVICES LTD,23/05/2023,"1,244.32",6541-Domiciliary Care,THIRD PARTY PAYMENTS,PRIVATE CONTRACTOR,REVENUE
Walsall Council,http://opendatacommunities.org/id/metropolitan-district-council/walsall ,WC150-157,31.05.2023,ADULT SOCIAL CARE,5 CARE SERVICES LTD,23/05/2023,904.96,6541-Domiciliary Care,THIRD PARTY PAYMENTS,PRIVATE CONTRACTOR,REVENUE
Walsall Council,http://opendatacommunities.org/id/metropolitan-district-council/walsall ,WC150-158,31.05.2023,ADULT SOCIAL CARE,5 CARE SERVICES LTD,23/05/2023,360,6541-Domiciliary Care,THIRD PARTY PAYMENTS,PRIVATE CONTRACTOR,REVENUE
Walsall Council,http://opendatacommunities.org/id/metropolitan-district-council/walsall ,WC150-159,31.05.2023,ADULT SOCIAL CARE,5 CARE SERVICES LTD,23/05/2023,509.04,6541-Domiciliary Care,THIRD PARTY PAYMENTS,PRIVATE CONTRACTOR,REVENUE
Walsall Council,http://opendatacommunities.org/id/metropolitan-district-council/walsall ,WC150-160,31.05.2023,ADULT SOCIAL CARE,5 CARE SERVICES LTD,23/05/2023,651,6541-Domiciliary Care,THIRD PARTY PAYMENTS,PRIVATE CONTRACTOR,REVENUE
Walsall Council,http://opendatacommunities.org/id/metropolitan-district-council/walsall ,WC150-161,31.05.2023,ADULT SOCIAL CARE,5 CARE SERVICES LTD,23/05/2023,339.36,6541-Domiciliary Care,THIRD PARTY PAYMENTS,PRIVATE CONTRACTOR,REVENUE
Walsall Council,http://opendatacommunities.org/id/metropolitan-district-council/walsall ,WC150-162,31.05.2023,ADULT SOCIAL CARE,5 CARE SERVICES LTD,23/05/2023,509.04,6541-Domiciliary Care,THIRD PARTY PAYMENTS,PRIVATE CONTRACTOR,REVENUE
Walsall Council,http://opendatacommunities.org/id/metropolitan-district-council/walsall ,WC150-163,31.05.2023,ADULT SOCIAL CARE,5 CARE SERVICES LTD,23/05/2023,567,6541-Domiciliary Care,THIRD PARTY PAYMENTS,PRIVATE CONTRACTOR,REVENUE
Walsall Council,http://opendatacommunities.org/id/metropolitan-district-council/walsall ,WC150-164,31.05.2023,ADULT SOCIAL CARE,5 CARE SERVICES LTD,23/05/2023,567,6541-Domiciliary Care,THIRD PARTY PAYMENTS,PRIVATE CONTRACTOR,REVENUE
Walsall Council,http://opendatacommunities.org/id/metropolitan-district-council/walsall ,WC150-165,31.05.2023,ADULT SOCIAL CARE,5 CARE SERVICES LTD,23/05/2023,630,6541-Domiciliary Care,THIRD PARTY PAYMENTS,PRIVATE CONTRACTOR,REVENUE
Walsall Council,http://opendatacommunities.org/id/metropolitan-district-council/walsall ,WC150-166,31.05.2023,ADULT SOCIAL CARE,5 CARE SERVICES LTD,23/05/2023,283.5,6541-Domiciliary Care,THIRD PARTY PAYMENTS,PRIVATE CONTRACTOR,REVENUE
Walsall Council,http://opendatacommunities.org/id/metropolitan-district-council/walsall ,WC150-167,31.05.2023,ADULT SOCIAL CARE,5 CARE SERVICES LTD,23/05/2023,819,6541-Domiciliary Care,THIRD PARTY PAYMENTS,PRIVATE CONTRACTOR,REVENUE
Walsall Council,http://opendatacommunities.org/id/metropolitan-district-council/walsall ,WC150-168,31.05.2023,ADULT SOCIAL CARE,5 CARE SERVICES LTD,23/05/2023,678.72,6541-Domiciliary Care,THIRD PARTY PAYMENTS,PRIVATE CONTRACTOR,REVENUE
Walsall Council,http://opendatacommunities.org/id/metropolitan-district-council/walsall ,WC150-169,31.05.2023,ADULT SOCIAL CARE,5 CARE SERVICES LTD,23/05/2023,294.92,6541-Domiciliary Care,THIRD PARTY PAYMENTS,PRIVATE CONTRACTOR,REVENUE
Walsall Council,http://opendatacommunities.org/id/metropolitan-district-council/walsall ,WC150-170,31.05.2023,ADULT SOCIAL CARE,5 CARE SERVICES LTD,23/05/2023,565.6,6541-Domiciliary Care,THIRD PARTY PAYMENTS,PRIVATE CONTRACTOR,REVENUE
Walsall Council,http://opendatacommunities.org/id/metropolitan-district-council/walsall ,WC150-171,31.05.2023,ADULT SOCIAL CARE,5 CARE SERVICES LTD,23/05/2023,567,6541-Domiciliary Care,THIRD PARTY PAYMENTS,PRIVATE CONTRACTOR,REVENUE
Walsall Council,http://opendatacommunities.org/id/metropolitan-district-council/walsall ,WC150-172,31.05.2023,ADULT SOCIAL CARE,5 CARE SERVICES LTD,23/05/2023,504,6541-Domiciliary Care,THIRD PARTY PAYMENTS,PRIVATE CONTRACTOR,REVENUE
Walsall Council,http://opendatacommunities.org/id/metropolitan-district-council/walsall ,WC150-173,31.05.2023,ADULT SOCIAL CARE,5 CARE SERVICES LTD,23/05/2023,756,6541-Domiciliary Care,THIRD PARTY PAYMENTS,PRIVATE CONTRACTOR,REVENUE
Walsall Council,http://opendatacommunities.org/id/metropolitan-district-council/walsall ,WC150-174,31.05.2023,ADULT SOCIAL CARE,5 CARE SERVICES LTD,23/05/2023,283.5,6541-Domiciliary Care,THIRD PARTY PAYMENTS,PRIVATE CONTRACTOR,REVENUE
Walsall Council,http://opendatacommunities.org/id/metropolitan-district-council/walsall ,WC150-175,31.05.2023,ADULT SOCIAL CARE,5 CARE SERVICES LTD,23/05/2023,262.5,6541-Domiciliary Care,THIRD PARTY PAYMENTS,PRIVATE CONTRACTOR,REVENUE
Walsall Council,http://opendatacommunities.org/id/metropolitan-district-council/walsall ,WC150-176,31.05.2023,ADULT SOCIAL CARE,5 CARE SERVICES LTD,23/05/2023,567,6541-Domiciliary Care,THIRD PARTY PAYMENTS,PRIVATE CONTRACTOR,REVENUE
Walsall Council,http://opendatacommunities.org/id/metropolitan-district-council/walsall ,WC150-177,31.05.2023,ADULT SOCIAL CARE,5 CARE SERVICES LTD,23/05/2023,567,6541-Domiciliary Care,THIRD PARTY PAYMENTS,PRIVATE CONTRACTOR,REVENUE
Walsall Council,http://opendatacommunities.org/id/metropolitan-district-council/walsall ,WC150-178,31.05.2023,CHILDRENS,5 CARE SERVICES LTD,31/05/2023,648,6220-Professional Fees & Services,SUPPLIES & SERVICES,SERVICES,REVENUE
Walsall Council,http://opendatacommunities.org/id/metropolitan-district-council/walsall ,WC150-179,31.05.2023,"ECONOMY, ENVIRONMENT & COMMUNITIES",A & A SERVICES WEST MIDLANDS,25/05/2023,"7,000.00",6430-Professional Services-Priv Contractor & Other Agencies,THIRD PARTY PAYMENTS,PRIVATE CONTRACTOR,REVENUE
Walsall Council,http://opendatacommunities.org/id/metropolitan-district-council/walsall ,WC150-180,31.05.2023,"ECONOMY, ENVIRONMENT & COMMUNITIES",A & A SERVICES WEST MIDLANDS,18/05/2023,"7,000.00",6430-Professional Services-Priv Contractor & Other Agencies,THIRD PARTY PAYMENTS,PRIVATE CONTRACTOR,REVENUE
Walsall Council,http://opendatacommunities.org/id/metropolitan-district-council/walsall ,WC150-181,31.05.2023,"ECONOMY, ENVIRONMENT & COMMUNITIES",A B WASTE MANAGEMENT LTD,05/05/2023,"1,216.00",6410-Professional Services-Priv Contractor & Other Agencies,THIRD PARTY PAYMENTS,PRIVATE CONTRACTOR,REVENUE
Walsall Council,http://opendatacommunities.org/id/metropolitan-district-council/walsall ,WC150-182,31.05.2023,"ECONOMY, ENVIRONMENT & COMMUNITIES",A B WASTE MANAGEMENT LTD,05/05/2023,"1,299.60",6410-Professional Services-Priv Contractor & Other Agencies,THIRD PARTY PAYMENTS,PRIVATE CONTRACTOR,REVENUE
Walsall Council,http://opendatacommunities.org/id/metropolitan-district-council/walsall ,WC150-183,31.05.2023,"ECONOMY, ENVIRONMENT & COMMUNITIES",A B WASTE MANAGEMENT LTD,16/05/2023,"1,031.70",6410-Professional Services-Priv Contractor & Other Agencies,THIRD PARTY PAYMENTS,PRIVATE CONTRACTOR,REVENUE
Walsall Council,http://opendatacommunities.org/id/metropolitan-district-council/walsall ,WC150-184,31.05.2023,"ECONOMY, ENVIRONMENT & COMMUNITIES",A B WASTE MANAGEMENT LTD,30/05/2023,"2,259.10",6410-Professional Services-Priv Contractor & Other Agencies,THIRD PARTY PAYMENTS,PRIVATE CONTRACTOR,REVENUE
Walsall Council,http://opendatacommunities.org/id/metropolitan-district-council/walsall ,WC150-185,31.05.2023,RESOURCES AND TRANSFORMATION,A D T FIRE AND SECURITY PLC,12/05/2023,403.52,6310-Security & Alarm Maintenance,PREMISES,REPAIRS & MAINTENANCE,REVENUE
Walsall Council,http://opendatacommunities.org/id/metropolitan-district-council/walsall ,WC150-186,31.05.2023,CHILDRENS CAPITAL,A D T FIRE AND SECURITY PLC,11/05/2023,"2,003.94",7155-Purchase of Furniture & Equipment,CAPITAL,"VEHICLES,PLANT,EQUIPMENT & MACHINERY",CAPITAL
Walsall Council,http://opendatacommunities.org/id/metropolitan-district-council/walsall ,WC150-187,31.05.2023,RESOURCES AND TRANSFORMATION,A D T FIRE AND SECURITY PLC,17/05/2023,"1,532.50",6310-Security & Alarm Maintenance,PREMISES,REPAIRS & MAINTENANCE,REVENUE
Walsall Council,http://opendatacommunities.org/id/metropolitan-district-council/walsall ,WC150-188,31.05.2023,CHILDRENS CAPITAL,A D T FIRE AND SECURITY PLC,11/05/2023,"5,390.64",7155-Purchase of Furniture & Equipment,CAPITAL,"VEHICLES,PLANT,EQUIPMENT & MACHINERY",CAPITAL
Walsall Council,http://opendatacommunities.org/id/metropolitan-district-council/walsall ,WC150-189,31.05.2023,RESOURCES AND TRANSFORMATION,A D T FIRE AND SECURITY PLC,16/05/2023,403.52,6310-Security & Alarm Maintenance,PREMISES,REPAIRS & MAINTENANCE,REVENUE
Walsall Council,http://opendatacommunities.org/id/metropolitan-district-council/walsall ,WC150-190,31.05.2023,RESOURCES AND TRANSFORMATION,A D T FIRE AND SECURITY PLC,19/05/2023,-403.52,6310-Security & Alarm Maintenance,PREMISES,REPAIRS & MAINTENANCE,REVENUE
Walsall Council,http://opendatacommunities.org/id/metropolitan-district-council/walsall ,WC150-191,31.05.2023,RESOURCES AND TRANSFORMATION,A D T FIRE AND SECURITY PLC,19/05/2023,403.52,6310-Security & Alarm Maintenance,PREMISES,REPAIRS & MAINTENANCE,REVENUE
Walsall Council,http://opendatacommunities.org/id/metropolitan-district-council/walsall ,WC150-192,31.05.2023,"ECONOMY, ENVIRONMENT & COMMUNITIES",A F BLAKEMORE & SON LTD,19/05/2023,288.82,6413-Food & Drink Supplies,SUPPLIES & SERVICES,CATERING,REVENUE
Walsall Council,http://opendatacommunities.org/id/metropolitan-district-council/walsall ,WC150-193,31.05.2023,"ECONOMY, ENVIRONMENT & COMMUNITIES",A F BLAKEMORE & SON LTD,19/05/2023,261.82,6413-Food & Drink Supplies,SUPPLIES & SERVICES,CATERING,REVENUE
Walsall Council,http://opendatacommunities.org/id/metropolitan-district-council/walsall ,WC150-194,31.05.2023,"ECONOMY, ENVIRONMENT & COMMUNITIES",A F BLAKEMORE & SON LTD,17/05/2023,-968.04,6413-Food & Drink Supplies,SUPPLIES & SERVICES,CATERING,REVENUE
Walsall Council,http://opendatacommunities.org/id/metropolitan-district-council/walsall ,WC150-195,31.05.2023,"ECONOMY, ENVIRONMENT & COMMUNITIES",A F BLAKEMORE & SON LTD,17/05/2023,272.89,6413-Food & Drink Supplies,SUPPLIES & SERVICES,CATERING,REVENUE
Walsall Council,http://opendatacommunities.org/id/metropolitan-district-council/walsall ,WC150-196,31.05.2023,"ECONOMY, ENVIRONMENT & COMMUNITIES",A F BLAKEMORE & SON LTD,17/05/2023,695.15,6413-Food & Drink Supplies,SUPPLIES & SERVICES,CATERING,REVENUE
Walsall Council,http://opendatacommunities.org/id/metropolitan-district-council/walsall ,WC150-197,31.05.2023,"ECONOMY, ENVIRONMENT & COMMUNITIES",A F BLAKEMORE & SON LTD,17/05/2023,968.04,6413-Food & Drink Supplies,SUPPLIES & SERVICES,CATERING,REVENUE
Walsall Council,http://opendatacommunities.org/id/metropolitan-district-council/walsall ,WC150-198,31.05.2023,"ECONOMY, ENVIRONMENT & COMMUNITIES",A F BLAKEMORE & SON LTD,17/05/2023,289.24,6413-Food & Drink Supplies,SUPPLIES & SERVICES,CATERING,REVENUE
Walsall Council,http://opendatacommunities.org/id/metropolitan-district-council/walsall ,WC150-199,31.05.2023,"ECONOMY, ENVIRONMENT & COMMUNITIES",A F BLAKEMORE & SON LTD,17/05/2023,757.56,6413-Food & Drink Supplies,SUPPLIES & SERVICES,CATERING,REVENUE
Walsall Council,http://opendatacommunities.org/id/metropolitan-district-council/walsall ,WC150-200,31.05.2023,"ECONOMY, ENVIRONMENT & COMMUNITIES",A F BLAKEMORE & SON LTD,19/05/2023,"1,319.57",6413-Food & Drink Supplies,SUPPLIES & SERVICES,CATERING,REVENUE
Walsall Council,http://opendatacommunities.org/id/metropolitan-district-council/walsall ,WC150-201,31.05.2023,"ECONOMY, ENVIRONMENT & COMMUNITIES",A F BLAKEMORE & SON LTD,19/05/2023,384.63,6413-Food & Drink Supplies,SUPPLIES & SERVICES,CATERING,REVENUE
Walsall Council,http://opendatacommunities.org/id/metropolitan-district-council/walsall ,WC150-202,31.05.2023,"ECONOMY, ENVIRONMENT & COMMUNITIES",A F BLAKEMORE & SON LTD,19/05/2023,621.46,6413-Food & Drink Supplies,SUPPLIES & SERVICES,CATERING,REVENUE
Walsall Council,http://opendatacommunities.org/id/metropolitan-district-council/walsall ,WC150-203,31.05.2023,"ECONOMY, ENVIRONMENT & COMMUNITIES",A F BLAKEMORE & SON LTD,19/05/2023,356.54,6413-Food & Drink Supplies,SUPPLIES & SERVICES,CATERING,REVENUE
Walsall Council,http://opendatacommunities.org/id/metropolitan-district-council/walsall ,WC150-204,31.05.2023,"ECONOMY, ENVIRONMENT & COMMUNITIES",A F BLAKEMORE & SON LTD,19/05/2023,831.43,6413-Food & Drink Supplies,SUPPLIES & SERVICES,CATERING,REVENUE
Walsall Council,http://opendatacommunities.org/id/metropolitan-district-council/walsall ,WC150-205,31.05.2023,CHILDRENS,A1 WALSALL RADIO CARS,22/05/2023,"-2,567.00",6241-Hire of Vehicle with Driver,TRANSPORT,DIRECT TRANSPORT COSTS,REVENUE
Walsall Council,http://opendatacommunities.org/id/metropolitan-district-council/walsall ,WC150-206,31.05.2023,CHILDRENS,A1 WALSALL RADIO CARS,22/05/2023,"2,072.00",6241-Hire of Vehicle with Driver,TRANSPORT,DIRECT TRANSPORT COSTS,REVENUE
Walsall Council,http://opendatacommunities.org/id/metropolitan-district-council/walsall ,WC150-207,31.05.2023,CHILDRENS,A1 WALSALL RADIO CARS,22/05/2023,"1,162.00",6241-Hire of Vehicle with Driver,TRANSPORT,DIRECT TRANSPORT COSTS,REVENUE
Walsall Council,http://opendatacommunities.org/id/metropolitan-district-council/walsall ,WC150-208,31.05.2023,CHILDRENS,A1 WALSALL RADIO CARS,22/05/2023,"1,512.00",6241-Hire of Vehicle with Driver,TRANSPORT,DIRECT TRANSPORT COSTS,REVENUE
Walsall Council,http://opendatacommunities.org/id/metropolitan-district-council/walsall ,WC150-209,31.05.2023,CHILDRENS,A1 WALSALL RADIO CARS,22/05/2023,"1,152.00",6241-Hire of Vehicle with Driver,TRANSPORT,DIRECT TRANSPORT COSTS,REVENUE
Walsall Council,http://opendatacommunities.org/id/metropolitan-district-council/walsall ,WC150-210,31.05.2023,CHILDRENS,A1 WALSALL RADIO CARS,22/05/2023,"1,190.00",6241-Hire of Vehicle with Driver,TRANSPORT,DIRECT TRANSPORT COSTS,REVENUE
Walsall Council,http://opendatacommunities.org/id/metropolitan-district-council/walsall ,WC150-211,31.05.2023,CHILDRENS,A1 WALSALL RADIO CARS,22/05/2023,905,6241-Hire of Vehicle with Driver,TRANSPORT,DIRECT TRANSPORT COSTS,REVENUE
Walsall Council,http://opendatacommunities.org/id/metropolitan-district-council/walsall ,WC150-212,31.05.2023,"ECONOMY, ENVIRONMENT & COMMUNITIES",AAINA COMMUNITY HUB,18/05/2023,910.78,6430-Grants to Other Orgs,SUPPLIES & SERVICES,GRANTS (EXP) & SUBSCRIPTIONS,REVENUE
Walsall Council,http://opendatacommunities.org/id/metropolitan-district-council/walsall ,WC150-213,31.05.2023,ADULT SOCIAL CARE,REDACTED,03/05/2023,829.76,6541-Direct Payment,THIRD PARTY PAYMENTS,PRIVATE CONTRACTOR,REVENUE
Walsall Council,http://opendatacommunities.org/id/metropolitan-district-council/walsall ,WC150-214,31.05.2023,CHILDRENS,ABACUS FOSTERING LTD,16/05/2023,"2,808.94",6223-Independent Foster Care-Oth Agency Provision,THIRD PARTY PAYMENTS,PRIVATE CONTRACTOR,REVENUE
Walsall Council,http://opendatacommunities.org/id/metropolitan-district-council/walsall ,WC150-215,31.05.2023,CHILDRENS,ABACUS FOSTERING LTD,16/05/2023,"3,004.16",6223-Independent Foster Care-Oth Agency Provision,THIRD PARTY PAYMENTS,PRIVATE CONTRACTOR,REVENUE
Walsall Council,http://opendatacommunities.org/id/metropolitan-district-council/walsall ,WC150-216,31.05.2023,ADULT SOCIAL CARE,ABBEY COURT NURSING & RESIDEN,09/05/2023,"2,606.04",6541-Residential EMI,THIRD PARTY PAYMENTS,PRIVATE CONTRACTOR,REVENUE
Walsall Council,http://opendatacommunities.org/id/metropolitan-district-council/walsall ,WC150-217,31.05.2023,ADULT SOCIAL CARE,ABBEY HEALTHCARE HOMES LTD,09/05/2023,"3,180.76",6541-Residential,THIRD PARTY PAYMENTS,PRIVATE CONTRACTOR,REVENUE
Walsall Council,http://opendatacommunities.org/id/metropolitan-district-council/walsall ,WC150-218,31.05.2023,ADULT SOCIAL CARE,ABBEY HEALTHCARE HOMES LTD,09/05/2023,"3,180.76",6541-Residential,THIRD PARTY PAYMENTS,PRIVATE CONTRACTOR,REVENUE
Walsall Council,http://opendatacommunities.org/id/metropolitan-district-council/walsall ,WC150-219,31.05.2023,ADULT SOCIAL CARE,ABBEY HEALTHCARE HOMES LTD,09/05/2023,"3,604.84",6541-Residential,THIRD PARTY PAYMENTS,PRIVATE CONTRACTOR,REVENUE
Walsall Council,http://opendatacommunities.org/id/metropolitan-district-council/walsall ,WC150-220,31.05.2023,ADULT SOCIAL CARE,ABBEY HEALTHCARE HOMES LTD,09/05/2023,"2,432.32",6541-Residential,THIRD PARTY PAYMENTS,PRIVATE CONTRACTOR,REVENUE
Walsall Council,http://opendatacommunities.org/id/metropolitan-district-council/walsall ,WC150-221,31.05.2023,CHILDRENS,ABC DAY NURSERY (WILLENHALL) LIMITED,25/05/2023,"2,954.74",1184-Other-Grants to Other Orgs,SUPPLIES & SERVICES,GRANTS (EXP) & SUBSCRIPTIONS,REVENUE
Walsall Council,http://opendatacommunities.org/id/metropolitan-district-council/walsall ,WC150-222,31.05.2023,CHILDRENS,ABC DAY NURSERY (WILLENHALL) LIMITED,25/05/2023,"11,609.33",1184-Other-Grants to Other Orgs,SUPPLIES & SERVICES,GRANTS (EXP) & SUBSCRIPTIONS,REVENUE
Walsall Council,http://opendatacommunities.org/id/metropolitan-district-council/walsall ,WC150-223,31.05.2023,ADULT SOCIAL CARE,REDACTED,03/05/2023,"2,212.84",6541-Direct Payment,THIRD PARTY PAYMENTS,PRIVATE CONTRACTOR,REVENUE
Walsall Council,http://opendatacommunities.org/id/metropolitan-district-council/walsall ,WC150-224,31.05.2023,ADULT SOCIAL CARE,ABILITY HEALTHCARE LTD,03/05/2023,"1,131.20",6541-Domiciliary Care,THIRD PARTY PAYMENTS,PRIVATE CONTRACTOR,REVENUE
Walsall Council,http://opendatacommunities.org/id/metropolitan-district-council/walsall ,WC150-225,31.05.2023,ADULT SOCIAL CARE,ABILITY HEALTHCARE LTD,03/05/2023,"1,207.36",6541-Domiciliary Care,THIRD PARTY PAYMENTS,PRIVATE CONTRACTOR,REVENUE
Walsall Council,http://opendatacommunities.org/id/metropolitan-district-council/walsall ,WC150-226,31.05.2023,ADULT SOCIAL CARE,ABILITY HEALTHCARE LTD,18/05/2023,"1,777.60",6541-Domiciliary Care,THIRD PARTY PAYMENTS,PRIVATE CONTRACTOR,REVENUE
Walsall Council,http://opendatacommunities.org/id/metropolitan-district-council/walsall ,WC150-227,31.05.2023,ADULT SOCIAL CARE,ABILITY HEALTHCARE LTD,18/05/2023,867.34,6541-Domiciliary Care,THIRD PARTY PAYMENTS,PRIVATE CONTRACTOR,REVENUE
Walsall Council,http://opendatacommunities.org/id/metropolitan-district-council/walsall ,WC150-228,31.05.2023,ADULT SOCIAL CARE,ABILITY HEALTHCARE LTD,18/05/2023,"1,357.44",6541-Domiciliary Care,THIRD PARTY PAYMENTS,PRIVATE CONTRACTOR,REVENUE
Walsall Council,http://opendatacommunities.org/id/metropolitan-district-council/walsall ,WC150-229,31.05.2023,ADULT SOCIAL CARE,ABILITY HEALTHCARE LTD,18/05/2023,"2,036.16",6541-Domiciliary Care,THIRD PARTY PAYMENTS,PRIVATE CONTRACTOR,REVENUE
Walsall Council,http://opendatacommunities.org/id/metropolitan-district-council/walsall ,WC150-230,31.05.2023,ADULT SOCIAL CARE,ABILITY HEALTHCARE LTD,18/05/2023,904.96,6541-Domiciliary Care,THIRD PARTY PAYMENTS,PRIVATE CONTRACTOR,REVENUE
Walsall Council,http://opendatacommunities.org/id/metropolitan-district-council/walsall ,WC150-231,31.05.2023,ADULT SOCIAL CARE,ABILITY HEALTHCARE LTD,18/05/2023,"2,036.16",6541-Domiciliary Care,THIRD PARTY PAYMENTS,PRIVATE CONTRACTOR,REVENUE
Walsall Council,http://opendatacommunities.org/id/metropolitan-district-council/walsall ,WC150-232,31.05.2023,ADULT SOCIAL CARE,ABILITY HEALTHCARE LTD,18/05/2023,"2,068.48",6541-Domiciliary Care,THIRD PARTY PAYMENTS,PRIVATE CONTRACTOR,REVENUE
Walsall Council,http://opendatacommunities.org/id/metropolitan-district-council/walsall ,WC150-233,31.05.2023,ADULT SOCIAL CARE,ABILITY HEALTHCARE LTD,18/05/2023,"2,036.16",6541-Domiciliary Care,THIRD PARTY PAYMENTS,PRIVATE CONTRACTOR,REVENUE
Walsall Council,http://opendatacommunities.org/id/metropolitan-district-council/walsall ,WC150-234,31.05.2023,ADULT SOCIAL CARE,ABILITY HEALTHCARE LTD,18/05/2023,"1,809.92",6541-Domiciliary Care,THIRD PARTY PAYMENTS,PRIVATE CONTRACTOR,REVENUE
Walsall Council,http://opendatacommunities.org/id/metropolitan-district-council/walsall ,WC150-235,31.05.2023,ADULT SOCIAL CARE,ABILITY HEALTHCARE LTD,18/05/2023,694.88,6541-Domiciliary Care,THIRD PARTY PAYMENTS,PRIVATE CONTRACTOR,REVENUE
Walsall Council,http://opendatacommunities.org/id/metropolitan-district-council/walsall ,WC150-236,31.05.2023,ADULT SOCIAL CARE,ABILITY HEALTHCARE LTD,18/05/2023,"2,011.92",6541-Domiciliary Care,THIRD PARTY PAYMENTS,PRIVATE CONTRACTOR,REVENUE
Walsall Council,http://opendatacommunities.org/id/metropolitan-district-council/walsall ,WC150-237,31.05.2023,ADULT SOCIAL CARE,ABILITY HEALTHCARE LTD,18/05/2023,"1,018.08",6541-Domiciliary Care,THIRD PARTY PAYMENTS,PRIVATE CONTRACTOR,REVENUE
Walsall Council,http://opendatacommunities.org/id/metropolitan-district-council/walsall ,WC150-238,31.05.2023,ADULT SOCIAL CARE,ABILITY HEALTHCARE LTD,18/05/2023,377.16,6541-Domiciliary Care,THIRD PARTY PAYMENTS,PRIVATE CONTRACTOR,REVENUE
Walsall Council,http://opendatacommunities.org/id/metropolitan-district-council/walsall ,WC150-239,31.05.2023,ADULT SOCIAL CARE,ABILITY HEALTHCARE LTD,18/05/2023,"1,486.72",6541-Domiciliary Care,THIRD PARTY PAYMENTS,PRIVATE CONTRACTOR,REVENUE
Walsall Council,http://opendatacommunities.org/id/metropolitan-district-council/walsall ,WC150-240,31.05.2023,ADULT SOCIAL CARE,ABILITY HEALTHCARE LTD,18/05/2023,"3,167.36",6541-Domiciliary Care,THIRD PARTY PAYMENTS,PRIVATE CONTRACTOR,REVENUE
Walsall Council,http://opendatacommunities.org/id/metropolitan-district-council/walsall ,WC150-241,31.05.2023,ADULT SOCIAL CARE,ABILITY HEALTHCARE LTD,18/05/2023,"1,809.92",6541-Domiciliary Care,THIRD PARTY PAYMENTS,PRIVATE CONTRACTOR,REVENUE
Walsall Council,http://opendatacommunities.org/id/metropolitan-district-council/walsall ,WC150-242,31.05.2023,ADULT SOCIAL CARE,ABILITY HEALTHCARE LTD,18/05/2023,904.96,6541-Domiciliary Care,THIRD PARTY PAYMENTS,PRIVATE CONTRACTOR,REVENUE
Walsall Council,http://opendatacommunities.org/id/metropolitan-district-council/walsall ,WC150-243,31.05.2023,ADULT SOCIAL CARE,ABILITY HEALTHCARE LTD,18/05/2023,"2,036.16",6541-Domiciliary Care,THIRD PARTY PAYMENTS,PRIVATE CONTRACTOR,REVENUE
Walsall Council,http://opendatacommunities.org/id/metropolitan-district-council/walsall ,WC150-244,31.05.2023,ADULT SOCIAL CARE,ABILITY HEALTHCARE LTD,18/05/2023,"1,809.92",6541-Domiciliary Care,THIRD PARTY PAYMENTS,PRIVATE CONTRACTOR,REVENUE
Walsall Council,http://opendatacommunities.org/id/metropolitan-district-council/walsall ,WC150-245,31.05.2023,ADULT SOCIAL CARE,ABILITY HEALTHCARE LTD,18/05/2023,"2,068.48",6541-Domiciliary Care,THIRD PARTY PAYMENTS,PRIVATE CONTRACTOR,REVENUE
Walsall Council,http://opendatacommunities.org/id/metropolitan-district-council/walsall ,WC150-246,31.05.2023,ADULT SOCIAL CARE,ABILITY HEALTHCARE LTD,18/05/2023,"1,809.92",6541-Domiciliary Care,THIRD PARTY PAYMENTS,PRIVATE CONTRACTOR,REVENUE
Walsall Council,http://opendatacommunities.org/id/metropolitan-district-council/walsall ,WC150-247,31.05.2023,ADULT SOCIAL CARE,ABILITY HEALTHCARE LTD,18/05/2023,"2,262.40",6541-Domiciliary Care,THIRD PARTY PAYMENTS,PRIVATE CONTRACTOR,REVENUE
Walsall Council,http://opendatacommunities.org/id/metropolitan-district-council/walsall ,WC150-248,31.05.2023,ADULT SOCIAL CARE,ABILITY HEALTHCARE LTD,18/05/2023,"1,508.64",6541-Domiciliary Care,THIRD PARTY PAYMENTS,PRIVATE CONTRACTOR,REVENUE
Walsall Council,http://opendatacommunities.org/id/metropolitan-district-council/walsall ,WC150-249,31.05.2023,ADULT SOCIAL CARE,ABILITY HEALTHCARE LTD,18/05/2023,"1,809.92",6541-Domiciliary Care,THIRD PARTY PAYMENTS,PRIVATE CONTRACTOR,REVENUE
Walsall Council,http://opendatacommunities.org/id/metropolitan-district-council/walsall ,WC150-250,31.05.2023,ADULT SOCIAL CARE,ABILITY HEALTHCARE LTD,18/05/2023,"1,809.92",6541-Domiciliary Care,THIRD PARTY PAYMENTS,PRIVATE CONTRACTOR,REVENUE
Walsall Council,http://opendatacommunities.org/id/metropolitan-district-council/walsall ,WC150-251,31.05.2023,ADULT SOCIAL CARE,ABILITY HEALTHCARE LTD,18/05/2023,"2,036.16",6541-Domiciliary Care,THIRD PARTY PAYMENTS,PRIVATE CONTRACTOR,REVENUE
Walsall Council,http://opendatacommunities.org/id/metropolitan-district-council/walsall ,WC150-252,31.05.2023,ADULT SOCIAL CARE,ABILITY HEALTHCARE LTD,18/05/2023,452.76,6541-Domiciliary Care,THIRD PARTY PAYMENTS,PRIVATE CONTRACTOR,REVENUE
Walsall Council,http://opendatacommunities.org/id/metropolitan-district-council/walsall ,WC150-253,31.05.2023,ADULT SOCIAL CARE,ABILITY HEALTHCARE LTD,18/05/2023,"1,659.28",6541-Domiciliary Care,THIRD PARTY PAYMENTS,PRIVATE CONTRACTOR,REVENUE
Walsall Council,http://opendatacommunities.org/id/metropolitan-district-council/walsall ,WC150-254,31.05.2023,ADULT SOCIAL CARE,ABILITY HEALTHCARE LTD,18/05/2023,"1,206.80",6541-Domiciliary Care,THIRD PARTY PAYMENTS,PRIVATE CONTRACTOR,REVENUE
Walsall Council,http://opendatacommunities.org/id/metropolitan-district-council/walsall ,WC150-255,31.05.2023,ADULT SOCIAL CARE,ABILITY HEALTHCARE LTD,18/05/2023,"1,809.92",6541-Domiciliary Care,THIRD PARTY PAYMENTS,PRIVATE CONTRACTOR,REVENUE
Walsall Council,http://opendatacommunities.org/id/metropolitan-district-council/walsall ,WC150-256,31.05.2023,ADULT SOCIAL CARE,ABILITY HEALTHCARE LTD,18/05/2023,"1,131.20",6541-Domiciliary Care,THIRD PARTY PAYMENTS,PRIVATE CONTRACTOR,REVENUE
Walsall Council,http://opendatacommunities.org/id/metropolitan-district-council/walsall ,WC150-257,31.05.2023,ADULT SOCIAL CARE,ABILITY HEALTHCARE LTD,18/05/2023,377.3,6541-Domiciliary Care,THIRD PARTY PAYMENTS,PRIVATE CONTRACTOR,REVENUE
Walsall Council,http://opendatacommunities.org/id/metropolitan-district-council/walsall ,WC150-258,31.05.2023,ADULT SOCIAL CARE,ABILITY HEALTHCARE LTD,18/05/2023,"2,036.16",6541-Domiciliary Care,THIRD PARTY PAYMENTS,PRIVATE CONTRACTOR,REVENUE
Walsall Council,http://opendatacommunities.org/id/metropolitan-district-council/walsall ,WC150-259,31.05.2023,ADULT SOCIAL CARE,ABILITY HEALTHCARE LTD,03/05/2023,"1,599.84",6554-Professional Services-Priv Contractor & Other Agencies,THIRD PARTY PAYMENTS,PRIVATE CONTRACTOR,REVENUE
Walsall Council,http://opendatacommunities.org/id/metropolitan-district-council/walsall ,WC150-260,31.05.2023,ADULT SOCIAL CARE,ABILITY HEALTHCARE LTD,03/05/2023,468.64,6554-Professional Services-Priv Contractor & Other Agencies,THIRD PARTY PAYMENTS,PRIVATE CONTRACTOR,REVENUE
Walsall Council,http://opendatacommunities.org/id/metropolitan-district-council/walsall ,WC150-261,31.05.2023,ADULT SOCIAL CARE,ABILITY HEALTHCARE LTD,03/05/2023,363.6,6554-Professional Services-Priv Contractor & Other Agencies,THIRD PARTY PAYMENTS,PRIVATE CONTRACTOR,REVENUE
Walsall Council,http://opendatacommunities.org/id/metropolitan-district-council/walsall ,WC150-262,31.05.2023,ADULT SOCIAL CARE,ABILITY HEALTHCARE LTD,03/05/2023,363.6,6554-Professional Services-Priv Contractor & Other Agencies,THIRD PARTY PAYMENTS,PRIVATE CONTRACTOR,REVENUE
Walsall Council,http://opendatacommunities.org/id/metropolitan-district-council/walsall ,WC150-263,31.05.2023,ADULT SOCIAL CARE,ABILITY HEALTHCARE LTD,03/05/2023,670.64,6554-Professional Services-Priv Contractor & Other Agencies,THIRD PARTY PAYMENTS,PRIVATE CONTRACTOR,REVENUE
Walsall Council,http://opendatacommunities.org/id/metropolitan-district-council/walsall ,WC150-264,31.05.2023,ADULT SOCIAL CARE,ABILITY HEALTHCARE LTD,03/05/2023,420.16,6554-Professional Services-Priv Contractor & Other Agencies,THIRD PARTY PAYMENTS,PRIVATE CONTRACTOR,REVENUE
Walsall Council,http://opendatacommunities.org/id/metropolitan-district-council/walsall ,WC150-265,31.05.2023,"ECONOMY, ENVIRONMENT & COMMUNITIES",ABLE INVESTIGATIONS & ENFORCEMENTS LTD,30/05/2023,345,6440-Professional Fees & Services,SUPPLIES & SERVICES,SERVICES,REVENUE
Walsall Council,http://opendatacommunities.org/id/metropolitan-district-council/walsall ,WC150-266,31.05.2023,CHILDRENS,ABLEWELL CARS,22/05/2023,821.6,6241-Hire of Vehicle with Driver,TRANSPORT,DIRECT TRANSPORT COSTS,REVENUE
Walsall Council,http://opendatacommunities.org/id/metropolitan-district-council/walsall ,WC150-267,31.05.2023,CHILDRENS,ABLEWELL CARS,22/05/2023,"1,029.84",6241-Hire of Vehicle with Driver,TRANSPORT,DIRECT TRANSPORT COSTS,REVENUE
Walsall Council,http://opendatacommunities.org/id/metropolitan-district-council/walsall ,WC150-268,31.05.2023,CHILDRENS,ABLEWELL CARS,22/05/2023,924,6241-Hire of Vehicle with Driver,TRANSPORT,DIRECT TRANSPORT COSTS,REVENUE
Walsall Council,http://opendatacommunities.org/id/metropolitan-district-council/walsall ,WC150-269,31.05.2023,CHILDRENS,ABLEWELL CARS,22/05/2023,"1,164.80",6241-Hire of Vehicle with Driver,TRANSPORT,DIRECT TRANSPORT COSTS,REVENUE
Walsall Council,http://opendatacommunities.org/id/metropolitan-district-council/walsall ,WC150-270,31.05.2023,CHILDRENS,ABLEWELL CARS,22/05/2023,"1,725.78",6241-Hire of Vehicle with Driver,TRANSPORT,DIRECT TRANSPORT COSTS,REVENUE
Walsall Council,http://opendatacommunities.org/id/metropolitan-district-council/walsall ,WC150-271,31.05.2023,CHILDRENS,ABLEWELL CARS,22/05/2023,"1,767.20",6241-Hire of Vehicle with Driver,TRANSPORT,DIRECT TRANSPORT COSTS,REVENUE
Walsall Council,http://opendatacommunities.org/id/metropolitan-district-council/walsall ,WC150-272,31.05.2023,CHILDRENS,ABS TAXIS (ALDRIDGE),22/05/2023,"1,453.20",6241-Hire of Vehicle with Driver,TRANSPORT,DIRECT TRANSPORT COSTS,REVENUE
Walsall Council,http://opendatacommunities.org/id/metropolitan-district-council/walsall ,WC150-273,31.05.2023,CHILDRENS,ABS TAXIS (ALDRIDGE),22/05/2023,"1,381.80",6241-Hire of Vehicle with Driver,TRANSPORT,DIRECT TRANSPORT COSTS,REVENUE
Walsall Council,http://opendatacommunities.org/id/metropolitan-district-council/walsall ,WC150-274,31.05.2023,CHILDRENS,ABS TAXIS (ALDRIDGE),22/05/2023,"1,407.00",6241-Hire of Vehicle with Driver,TRANSPORT,DIRECT TRANSPORT COSTS,REVENUE
Walsall Council,http://opendatacommunities.org/id/metropolitan-district-council/walsall ,WC150-275,31.05.2023,CHILDRENS,ABS TAXIS (ALDRIDGE),22/05/2023,"1,127.00",6241-Hire of Vehicle with Driver,TRANSPORT,DIRECT TRANSPORT COSTS,REVENUE
Walsall Council,http://opendatacommunities.org/id/metropolitan-district-council/walsall ,WC150-276,31.05.2023,CHILDRENS,ABS TAXIS (ALDRIDGE),22/05/2023,280,6241-Hire of Vehicle with Driver,TRANSPORT,DIRECT TRANSPORT COSTS,REVENUE
Walsall Council,http://opendatacommunities.org/id/metropolitan-district-council/walsall ,WC150-277,31.05.2023,ADULT SOCIAL CARE,ABSOLUTE HEALTHCARE SWAN HOUSE LTD,09/05/2023,"2,366.04",6541-Residential EMI,THIRD PARTY PAYMENTS,PRIVATE CONTRACTOR,REVENUE
Walsall Council,http://opendatacommunities.org/id/metropolitan-district-council/walsall ,WC150-278,31.05.2023,ADULT SOCIAL CARE,ABSOLUTE HEALTHCARE SWAN HOUSE LTD,09/05/2023,"2,235.40",6541-Residential,THIRD PARTY PAYMENTS,PRIVATE CONTRACTOR,REVENUE
Walsall Council,http://opendatacommunities.org/id/metropolitan-district-council/walsall ,WC150-279,31.05.2023,ADULT SOCIAL CARE,ABSOLUTE HEALTHCARE SWAN HOUSE LTD,09/05/2023,"2,135.40",6541-Residential,THIRD PARTY PAYMENTS,PRIVATE CONTRACTOR,REVENUE
Walsall Council,http://opendatacommunities.org/id/metropolitan-district-council/walsall ,WC150-280,31.05.2023,ADULT SOCIAL CARE,ABSOLUTE HEALTHCARE SWAN HOUSE LTD,09/05/2023,"2,095.40",6541-Residential,THIRD PARTY PAYMENTS,PRIVATE CONTRACTOR,REVENUE
Walsall Council,http://opendatacommunities.org/id/metropolitan-district-council/walsall ,WC150-281,31.05.2023,ADULT SOCIAL CARE,ABSOLUTE HEALTHCARE SWAN HOUSE LTD,09/05/2023,"2,999.84",6541-Nursing,THIRD PARTY PAYMENTS,PRIVATE CONTRACTOR,REVENUE
Walsall Council,http://opendatacommunities.org/id/metropolitan-district-council/walsall ,WC150-282,31.05.2023,ADULT SOCIAL CARE,ABSOLUTE HEALTHCARE SWAN HOUSE LTD,09/05/2023,"2,344.03",6541-Nursing EMI,THIRD PARTY PAYMENTS,PRIVATE CONTRACTOR,REVENUE
Walsall Council,http://opendatacommunities.org/id/metropolitan-district-council/walsall ,WC150-283,31.05.2023,ADULT SOCIAL CARE,ABSOLUTE HEALTHCARE SWAN HOUSE LTD,09/05/2023,"2,168.43",6554-Professional Services-Priv Contractor & Other Agencies,THIRD PARTY PAYMENTS,PRIVATE CONTRACTOR,REVENUE
Walsall Council,http://opendatacommunities.org/id/metropolitan-district-council/walsall ,WC150-284,31.05.2023,ADULT SOCIAL CARE,ABSOLUTE HEALTHCARE SWAN HOUSE LTD,09/05/2023,"2,095.40",6541-Residential,THIRD PARTY PAYMENTS,PRIVATE CONTRACTOR,REVENUE
Walsall Council,http://opendatacommunities.org/id/metropolitan-district-council/walsall ,WC150-285,31.05.2023,ADULT SOCIAL CARE,ABSOLUTE HEALTHCARE SWAN HOUSE LTD,09/05/2023,"2,366.04",6541-Residential EMI,THIRD PARTY PAYMENTS,PRIVATE CONTRACTOR,REVENUE
Walsall Council,http://opendatacommunities.org/id/metropolitan-district-council/walsall ,WC150-286,31.05.2023,ADULT SOCIAL CARE,ABSOLUTE HEALTHCARE SWAN HOUSE LTD,09/05/2023,"1,142.86",6541-Short Stay Residential,THIRD PARTY PAYMENTS,PRIVATE CONTRACTOR,REVENUE
Walsall Council,http://opendatacommunities.org/id/metropolitan-district-council/walsall ,WC150-287,31.05.2023,ADULT SOCIAL CARE,ABSOLUTE HEALTHCARE SWAN HOUSE LTD,09/05/2023,"2,366.04",6541-Residential EMI,THIRD PARTY PAYMENTS,PRIVATE CONTRACTOR,REVENUE
Walsall Council,http://opendatacommunities.org/id/metropolitan-district-council/walsall ,WC150-288,31.05.2023,ADULT SOCIAL CARE,ABSOLUTE HEALTHCARE SWAN HOUSE LTD,09/05/2023,"2,095.40",6541-Residential,THIRD PARTY PAYMENTS,PRIVATE CONTRACTOR,REVENUE
Walsall Council,http://opendatacommunities.org/id/metropolitan-district-council/walsall ,WC150-289,31.05.2023,ADULT SOCIAL CARE,ABSOLUTE HEALTHCARE SWAN HOUSE LTD,09/05/2023,"5,000.01",6541-Nursing EMI,THIRD PARTY PAYMENTS,PRIVATE CONTRACTOR,REVENUE
Walsall Council,http://opendatacommunities.org/id/metropolitan-district-council/walsall ,WC150-290,31.05.2023,ADULT SOCIAL CARE,ABSOLUTE HEALTHCARE SWAN HOUSE LTD,09/05/2023,"2,095.40",6541-Residential,THIRD PARTY PAYMENTS,PRIVATE CONTRACTOR,REVENUE
Walsall Council,http://opendatacommunities.org/id/metropolitan-district-council/walsall ,WC150-291,31.05.2023,ADULT SOCIAL CARE,ABSOLUTE HEALTHCARE SWAN HOUSE LTD,09/05/2023,"2,095.40",6541-Residential,THIRD PARTY PAYMENTS,PRIVATE CONTRACTOR,REVENUE
Walsall Council,http://opendatacommunities.org/id/metropolitan-district-council/walsall ,WC150-292,31.05.2023,ADULT SOCIAL CARE,ABSOLUTE HEALTHCARE SWAN HOUSE LTD,09/05/2023,"2,366.04",6541-Residential EMI,THIRD PARTY PAYMENTS,PRIVATE CONTRACTOR,REVENUE
Walsall Council,http://opendatacommunities.org/id/metropolitan-district-council/walsall ,WC150-293,31.05.2023,ADULT SOCIAL CARE,ABSOLUTE HEALTHCARE SWAN HOUSE LTD,09/05/2023,"3,000.00",6541-Nursing,THIRD PARTY PAYMENTS,PRIVATE CONTRACTOR,REVENUE
Walsall Council,http://opendatacommunities.org/id/metropolitan-district-council/walsall ,WC150-294,31.05.2023,CHILDRENS,ABU BAKR NURSERY,25/05/2023,"6,983.93",1184-Other-Grants to Other Orgs,SUPPLIES & SERVICES,GRANTS (EXP) & SUBSCRIPTIONS,REVENUE
Walsall Council,http://opendatacommunities.org/id/metropolitan-district-council/walsall ,WC150-295,31.05.2023,CHILDRENS,ABU BAKR NURSERY,25/05/2023,"13,741.65",1184-Other-Grants to Other Orgs,SUPPLIES & SERVICES,GRANTS (EXP) & SUBSCRIPTIONS,REVENUE
Walsall Council,http://opendatacommunities.org/id/metropolitan-district-council/walsall ,WC150-296,31.05.2023,CHILDRENS,ACCALIA CARE SERVICES LTD,16/05/2023,"21,989.85",6223-External Residential Care-Oth Agency Provision,THIRD PARTY PAYMENTS,PRIVATE CONTRACTOR,REVENUE
Walsall Council,http://opendatacommunities.org/id/metropolitan-district-council/walsall ,WC150-297,31.05.2023,CHILDRENS,ACCEPTING BEHAVIOUR LTD,10/05/2023,715,1220-Professional Fees & Services,SUPPLIES & SERVICES,SERVICES,REVENUE
Walsall Council,http://opendatacommunities.org/id/metropolitan-district-council/walsall ,WC150-298,31.05.2023,ADULT SOCIAL CARE,ACCESS UK LTD ,18/05/2023,"18,315.00",6551-Professional Fees & Services,SUPPLIES & SERVICES,SERVICES,REVENUE
Walsall Council,http://opendatacommunities.org/id/metropolitan-district-council/walsall ,WC150-299,31.05.2023,ADULT SOCIAL CARE,ACCESS UK LTD ,10/05/2023,"18,315.00",6551-Professional Fees & Services,SUPPLIES & SERVICES,SERVICES,REVENUE
Walsall Council,http://opendatacommunities.org/id/metropolitan-district-council/walsall ,WC150-300,31.05.2023,CHILDRENS,ACCESS UK LTD ,02/05/2023,"19,889.66",6240-Fees & Licences,SUPPLIES & SERVICES,SERVICES,REVENUE
Walsall Council,http://opendatacommunities.org/id/metropolitan-district-council/walsall ,WC150-301,31.05.2023,ADULT SOCIAL CARE,ACCESS UK LTD ,09/05/2023,"18,315.00",6551-Professional Fees & Services,SUPPLIES & SERVICES,SERVICES,REVENUE
Walsall Council,http://opendatacommunities.org/id/metropolitan-district-council/walsall ,WC150-302,31.05.2023,CHILDRENS,ACCESS UK LTD ,24/05/2023,"1,425.00",6211-Computer Equipment,SUPPLIES & SERVICES,COMMUNICATIONS & COMPUTING,REVENUE
Walsall Council,http://opendatacommunities.org/id/metropolitan-district-council/walsall ,WC150-303,31.05.2023,ADULT SOCIAL CARE,ACCESS UK LTD ,30/05/2023,"1,060.00",6551-Computer Equipment,SUPPLIES & SERVICES,COMMUNICATIONS & COMPUTING,REVENUE
Walsall Council,http://opendatacommunities.org/id/metropolitan-district-council/walsall ,WC150-304,31.05.2023,ADULT SOCIAL CARE,ACCORD - AGE MATTERS,03/05/2023,-374.86,6553-Direct Payments Support,TRANSFER PAYMENTS,ADULT SOCIAL SERVICES CLIENT,REVENUE
Walsall Council,http://opendatacommunities.org/id/metropolitan-district-council/walsall ,WC150-305,31.05.2023,ADULT SOCIAL CARE,ACCORD - AGE MATTERS,03/05/2023,-339.43,6553-Direct Payments Support,TRANSFER PAYMENTS,ADULT SOCIAL SERVICES CLIENT,REVENUE
Walsall Council,http://opendatacommunities.org/id/metropolitan-district-council/walsall ,WC150-306,31.05.2023,ADULT SOCIAL CARE,ACCORD HOUSING ASSOCIATION LIMITED - HOBS MEADOW,09/05/2023,"4,776.84",6541-Residential,THIRD PARTY PAYMENTS,PRIVATE CONTRACTOR,REVENUE
Walsall Council,http://opendatacommunities.org/id/metropolitan-district-council/walsall ,WC150-307,31.05.2023,ADULT SOCIAL CARE,ACCORD HOUSING ASSOCIATION LIMITED - HOBS MEADOW,09/05/2023,"4,776.84",6541-Residential,THIRD PARTY PAYMENTS,PRIVATE CONTRACTOR,REVENUE
Walsall Council,http://opendatacommunities.org/id/metropolitan-district-council/walsall ,WC150-308,31.05.2023,ADULT SOCIAL CARE,ACCORD HOUSING ASSOCIATION LIMITED - HOBS MEADOW,09/05/2023,"4,776.84",6541-Residential,THIRD PARTY PAYMENTS,PRIVATE CONTRACTOR,REVENUE
Walsall Council,http://opendatacommunities.org/id/metropolitan-district-council/walsall ,WC150-309,31.05.2023,ADULT SOCIAL CARE,ACCORD HOUSING ASSOCIATION LIMITED - HOBS MEADOW,09/05/2023,"4,776.84",6541-Residential,THIRD PARTY PAYMENTS,PRIVATE CONTRACTOR,REVENUE
Walsall Council,http://opendatacommunities.org/id/metropolitan-district-council/walsall ,WC150-310,31.05.2023,CHILDRENS,ACE CARS & MINIBUSES LTD,22/05/2023,"1,284.00",6241-Hire of Vehicle with Driver,TRANSPORT,DIRECT TRANSPORT COSTS,REVENUE
Walsall Council,http://opendatacommunities.org/id/metropolitan-district-council/walsall ,WC150-311,31.05.2023,CHILDRENS,ACE CARS & MINIBUSES LTD,22/05/2023,"1,284.00",6241-Hire of Vehicle with Driver,TRANSPORT,DIRECT TRANSPORT COSTS,REVENUE
Walsall Council,http://opendatacommunities.org/id/metropolitan-district-council/walsall ,WC150-312,31.05.2023,CHILDRENS,ACE CARS & MINIBUSES LTD,22/05/2023,"1,416.00",6241-Hire of Vehicle with Driver,TRANSPORT,DIRECT TRANSPORT COSTS,REVENUE
Walsall Council,http://opendatacommunities.org/id/metropolitan-district-council/walsall ,WC150-313,31.05.2023,CHILDRENS,ACE CARS & MINIBUSES LTD,22/05/2023,"1,482.00",6241-Hire of Vehicle with Driver,TRANSPORT,DIRECT TRANSPORT COSTS,REVENUE
Walsall Council,http://opendatacommunities.org/id/metropolitan-district-council/walsall ,WC150-314,31.05.2023,CHILDRENS,ACE CARS & MINIBUSES LTD,22/05/2023,"1,482.00",6241-Hire of Vehicle with Driver,TRANSPORT,DIRECT TRANSPORT COSTS,REVENUE
Walsall Council,http://opendatacommunities.org/id/metropolitan-district-council/walsall ,WC150-315,31.05.2023,CHILDRENS,ACE CARS & MINIBUSES LTD,22/05/2023,"2,501.20",6241-Hire of Vehicle with Driver,TRANSPORT,DIRECT TRANSPORT COSTS,REVENUE
Walsall Council,http://opendatacommunities.org/id/metropolitan-district-council/walsall ,WC150-316,31.05.2023,CHILDRENS,ACE CARS & MINIBUSES LTD,22/05/2023,"1,482.00",6241-Hire of Vehicle with Driver,TRANSPORT,DIRECT TRANSPORT COSTS,REVENUE
Walsall Council,http://opendatacommunities.org/id/metropolitan-district-council/walsall ,WC150-317,31.05.2023,CHILDRENS,ACE CARS & MINIBUSES LTD,22/05/2023,"1,869.12",6241-Hire of Vehicle with Driver,TRANSPORT,DIRECT TRANSPORT COSTS,REVENUE
Walsall Council,http://opendatacommunities.org/id/metropolitan-district-council/walsall ,WC150-318,31.05.2023,CHILDRENS,ACE CARS & MINIBUSES LTD,22/05/2023,"1,416.00",6241-Hire of Vehicle with Driver,TRANSPORT,DIRECT TRANSPORT COSTS,REVENUE
Walsall Council,http://opendatacommunities.org/id/metropolitan-district-council/walsall ,WC150-319,31.05.2023,CHILDRENS,ACE CARS & MINIBUSES LTD,22/05/2023,"1,614.24",6241-Hire of Vehicle with Driver,TRANSPORT,DIRECT TRANSPORT COSTS,REVENUE
Walsall Council,http://opendatacommunities.org/id/metropolitan-district-council/walsall ,WC150-320,31.05.2023,CHILDRENS,ACE CARS & MINIBUSES LTD,22/05/2023,"1,500.96",6241-Hire of Vehicle with Driver,TRANSPORT,DIRECT TRANSPORT COSTS,REVENUE
Walsall Council,http://opendatacommunities.org/id/metropolitan-district-council/walsall ,WC150-321,31.05.2023,CHILDRENS,ACE CARS & MINIBUSES LTD,22/05/2023,"1,416.00",6241-Hire of Vehicle with Driver,TRANSPORT,DIRECT TRANSPORT COSTS,REVENUE
Walsall Council,http://opendatacommunities.org/id/metropolitan-district-council/walsall ,WC150-322,31.05.2023,CHILDRENS,ACE CARS & MINIBUSES LTD,22/05/2023,"2,080.00",6241-Hire of Vehicle with Driver,TRANSPORT,DIRECT TRANSPORT COSTS,REVENUE
Walsall Council,http://opendatacommunities.org/id/metropolitan-district-council/walsall ,WC150-323,31.05.2023,CHILDRENS,ACE CARS & MINIBUSES LTD,22/05/2023,"2,648.66",6241-Hire of Vehicle with Driver,TRANSPORT,DIRECT TRANSPORT COSTS,REVENUE
Walsall Council,http://opendatacommunities.org/id/metropolitan-district-council/walsall ,WC150-324,31.05.2023,CHILDRENS,ACE CARS & MINIBUSES LTD,22/05/2023,"1,905.40",6241-Hire of Vehicle with Driver,TRANSPORT,DIRECT TRANSPORT COSTS,REVENUE
Walsall Council,http://opendatacommunities.org/id/metropolitan-district-council/walsall ,WC150-325,31.05.2023,CHILDRENS,ACE CARS & MINIBUSES LTD,22/05/2023,"2,153.06",6241-Hire of Vehicle with Driver,TRANSPORT,DIRECT TRANSPORT COSTS,REVENUE
Walsall Council,http://opendatacommunities.org/id/metropolitan-district-council/walsall ,WC150-326,31.05.2023,CHILDRENS,ACE CARS & MINIBUSES LTD,22/05/2023,"2,205.97",6241-Hire of Vehicle with Driver,TRANSPORT,DIRECT TRANSPORT COSTS,REVENUE
Walsall Council,http://opendatacommunities.org/id/metropolitan-district-council/walsall ,WC150-327,31.05.2023,CHILDRENS,ACE CARS & MINIBUSES LTD,22/05/2023,"1,284.00",6241-Hire of Vehicle with Driver,TRANSPORT,DIRECT TRANSPORT COSTS,REVENUE
Walsall Council,http://opendatacommunities.org/id/metropolitan-district-council/walsall ,WC150-328,31.05.2023,CHILDRENS,ACE CARS & MINIBUSES LTD,22/05/2023,"1,284.00",6241-Hire of Vehicle with Driver,TRANSPORT,DIRECT TRANSPORT COSTS,REVENUE
Walsall Council,http://opendatacommunities.org/id/metropolitan-district-council/walsall ,WC150-329,31.05.2023,CHILDRENS,ACE CARS & MINIBUSES LTD,22/05/2023,"1,284.00",6241-Hire of Vehicle with Driver,TRANSPORT,DIRECT TRANSPORT COSTS,REVENUE
Walsall Council,http://opendatacommunities.org/id/metropolitan-district-council/walsall ,WC150-330,31.05.2023,CHILDRENS,ACE CARS & MINIBUSES LTD,22/05/2023,"1,284.00",6241-Hire of Vehicle with Driver,TRANSPORT,DIRECT TRANSPORT COSTS,REVENUE
Walsall Council,http://opendatacommunities.org/id/metropolitan-district-council/walsall ,WC150-331,31.05.2023,CHILDRENS,ACE CARS & MINIBUSES LTD,22/05/2023,"1,416.00",6241-Hire of Vehicle with Driver,TRANSPORT,DIRECT TRANSPORT COSTS,REVENUE
Walsall Council,http://opendatacommunities.org/id/metropolitan-district-council/walsall ,WC150-332,31.05.2023,CHILDRENS,ACE CARS & MINIBUSES LTD,22/05/2023,"1,902.00",6241-Hire of Vehicle with Driver,TRANSPORT,DIRECT TRANSPORT COSTS,REVENUE
Walsall Council,http://opendatacommunities.org/id/metropolitan-district-council/walsall ,WC150-333,31.05.2023,CHILDRENS,ACE CARS & MINIBUSES LTD,22/05/2023,"1,553.50",6241-Hire of Vehicle with Driver,TRANSPORT,DIRECT TRANSPORT COSTS,REVENUE
Walsall Council,http://opendatacommunities.org/id/metropolitan-district-council/walsall ,WC150-334,31.05.2023,CHILDRENS,ACE CARS & MINIBUSES LTD,22/05/2023,"1,708.85",6241-Hire of Vehicle with Driver,TRANSPORT,DIRECT TRANSPORT COSTS,REVENUE
Walsall Council,http://opendatacommunities.org/id/metropolitan-district-council/walsall ,WC150-335,31.05.2023,CHILDRENS,ACE CARS & MINIBUSES LTD,22/05/2023,"1,553.50",6241-Hire of Vehicle with Driver,TRANSPORT,DIRECT TRANSPORT COSTS,REVENUE
Walsall Council,http://opendatacommunities.org/id/metropolitan-district-council/walsall ,WC150-336,31.05.2023,CHILDRENS,ACE CARS & MINIBUSES LTD,22/05/2023,"1,905.40",6241-Hire of Vehicle with Driver,TRANSPORT,DIRECT TRANSPORT COSTS,REVENUE
Walsall Council,http://opendatacommunities.org/id/metropolitan-district-council/walsall ,WC150-337,31.05.2023,CHILDRENS,ACE CARS & MINIBUSES LTD,22/05/2023,"1,905.40",6241-Hire of Vehicle with Driver,TRANSPORT,DIRECT TRANSPORT COSTS,REVENUE
Walsall Council,http://opendatacommunities.org/id/metropolitan-district-council/walsall ,WC150-338,31.05.2023,CHILDRENS,ACE CARS & MINIBUSES LTD,22/05/2023,"1,482.00",6241-Hire of Vehicle with Driver,TRANSPORT,DIRECT TRANSPORT COSTS,REVENUE
Walsall Council,http://opendatacommunities.org/id/metropolitan-district-council/walsall ,WC150-339,31.05.2023,CHILDRENS,ACE CARS & MINIBUSES LTD,22/05/2023,"1,284.00",6241-Hire of Vehicle with Driver,TRANSPORT,DIRECT TRANSPORT COSTS,REVENUE
Walsall Council,http://opendatacommunities.org/id/metropolitan-district-council/walsall ,WC150-340,31.05.2023,CHILDRENS,ACE CARS & MINIBUSES LTD,22/05/2023,"2,548.80",6241-Hire of Vehicle with Driver,TRANSPORT,DIRECT TRANSPORT COSTS,REVENUE
Walsall Council,http://opendatacommunities.org/id/metropolitan-district-council/walsall ,WC150-341,31.05.2023,CHILDRENS,ACE CARS & MINIBUSES LTD,22/05/2023,"1,284.00",6241-Hire of Vehicle with Driver,TRANSPORT,DIRECT TRANSPORT COSTS,REVENUE
Walsall Council,http://opendatacommunities.org/id/metropolitan-district-council/walsall ,WC150-342,31.05.2023,CHILDRENS,ACE CARS & MINIBUSES LTD,22/05/2023,"1,284.00",6241-Hire of Vehicle with Driver,TRANSPORT,DIRECT TRANSPORT COSTS,REVENUE
Walsall Council,http://opendatacommunities.org/id/metropolitan-district-council/walsall ,WC150-343,31.05.2023,CHILDRENS,ACE CARS & MINIBUSES LTD,22/05/2023,"1,284.00",6241-Hire of Vehicle with Driver,TRANSPORT,DIRECT TRANSPORT COSTS,REVENUE
Walsall Council,http://opendatacommunities.org/id/metropolitan-district-council/walsall ,WC150-344,31.05.2023,CHILDRENS,ACE CARS & MINIBUSES LTD,22/05/2023,"1,416.00",6241-Hire of Vehicle with Driver,TRANSPORT,DIRECT TRANSPORT COSTS,REVENUE
Walsall Council,http://opendatacommunities.org/id/metropolitan-district-council/walsall ,WC150-345,31.05.2023,CHILDRENS,ACE CARS & MINIBUSES LTD,22/05/2023,"1,553.50",6241-Hire of Vehicle with Driver,TRANSPORT,DIRECT TRANSPORT COSTS,REVENUE
Walsall Council,http://opendatacommunities.org/id/metropolitan-district-council/walsall ,WC150-346,31.05.2023,CHILDRENS,ACE CARS & MINIBUSES LTD,22/05/2023,"1,905.40",6241-Hire of Vehicle with Driver,TRANSPORT,DIRECT TRANSPORT COSTS,REVENUE
Walsall Council,http://opendatacommunities.org/id/metropolitan-district-council/walsall ,WC150-347,31.05.2023,CHILDRENS,ACE CARS & MINIBUSES LTD,22/05/2023,"1,905.40",6241-Hire of Vehicle with Driver,TRANSPORT,DIRECT TRANSPORT COSTS,REVENUE
Walsall Council,http://opendatacommunities.org/id/metropolitan-district-council/walsall ,WC150-348,31.05.2023,CHILDRENS,ACE CARS & MINIBUSES LTD,22/05/2023,"1,905.40",6241-Hire of Vehicle with Driver,TRANSPORT,DIRECT TRANSPORT COSTS,REVENUE
Walsall Council,http://opendatacommunities.org/id/metropolitan-district-council/walsall ,WC150-349,31.05.2023,CHILDRENS,ACE CARS & MINIBUSES LTD,22/05/2023,"2,034.00",6241-Hire of Vehicle with Driver,TRANSPORT,DIRECT TRANSPORT COSTS,REVENUE
Walsall Council,http://opendatacommunities.org/id/metropolitan-district-council/walsall ,WC150-350,31.05.2023,ADULT SOCIAL CARE,ACEPAY LTD (COTTAGE NUR HOME),09/05/2023,"2,456.24",6541-Nursing,THIRD PARTY PAYMENTS,PRIVATE CONTRACTOR,REVENUE
Walsall Council,http://opendatacommunities.org/id/metropolitan-district-council/walsall ,WC150-351,31.05.2023,ADULT SOCIAL CARE,ACEPAY LTD (COTTAGE NUR HOME),09/05/2023,"2,456.24",6541-Nursing,THIRD PARTY PAYMENTS,PRIVATE CONTRACTOR,REVENUE
Walsall Council,http://opendatacommunities.org/id/metropolitan-district-council/walsall ,WC150-352,31.05.2023,ADULT SOCIAL CARE,ACEPAY LTD (COTTAGE NUR HOME),09/05/2023,"2,763.80",6541-Nursing EMI,THIRD PARTY PAYMENTS,PRIVATE CONTRACTOR,REVENUE
Walsall Council,http://opendatacommunities.org/id/metropolitan-district-council/walsall ,WC150-353,31.05.2023,ADULT SOCIAL CARE,ACEPAY LTD (COTTAGE NUR HOME),09/05/2023,"2,366.04",6541-Residential EMI,THIRD PARTY PAYMENTS,PRIVATE CONTRACTOR,REVENUE
Walsall Council,http://opendatacommunities.org/id/metropolitan-district-council/walsall ,WC150-354,31.05.2023,ADULT SOCIAL CARE,ACEPAY LTD (COTTAGE NUR HOME),09/05/2023,"2,456.24",6541-Nursing,THIRD PARTY PAYMENTS,PRIVATE CONTRACTOR,REVENUE
Walsall Council,http://opendatacommunities.org/id/metropolitan-district-council/walsall ,WC150-355,31.05.2023,ADULT SOCIAL CARE,ACEPAY LTD (COTTAGE NUR HOME),09/05/2023,"2,456.24",6541-Nursing,THIRD PARTY PAYMENTS,PRIVATE CONTRACTOR,REVENUE
Walsall Council,http://opendatacommunities.org/id/metropolitan-district-council/walsall ,WC150-356,31.05.2023,ADULT SOCIAL CARE,ACEPAY LTD (COTTAGE NUR HOME),09/05/2023,"2,456.24",6541-Nursing,THIRD PARTY PAYMENTS,PRIVATE CONTRACTOR,REVENUE
Walsall Council,http://opendatacommunities.org/id/metropolitan-district-council/walsall ,WC150-357,31.05.2023,ADULT SOCIAL CARE,ACEPAY LTD (COTTAGE NUR HOME),09/05/2023,"2,456.24",6541-Nursing,THIRD PARTY PAYMENTS,PRIVATE CONTRACTOR,REVENUE
Walsall Council,http://opendatacommunities.org/id/metropolitan-district-council/walsall ,WC150-358,31.05.2023,ADULT SOCIAL CARE,ACEPAY LTD (COTTAGE NUR HOME),09/05/2023,"2,456.24",6541-Nursing,THIRD PARTY PAYMENTS,PRIVATE CONTRACTOR,REVENUE
Walsall Council,http://opendatacommunities.org/id/metropolitan-district-council/walsall ,WC150-359,31.05.2023,ADULT SOCIAL CARE,ACEPAY LTD (COTTAGE NUR HOME),09/05/2023,"2,456.24",6541-Nursing,THIRD PARTY PAYMENTS,PRIVATE CONTRACTOR,REVENUE
Walsall Council,http://opendatacommunities.org/id/metropolitan-district-council/walsall ,WC150-360,31.05.2023,ADULT SOCIAL CARE,ACEPAY LTD (COTTAGE NUR HOME),09/05/2023,"2,456.24",6541-Nursing,THIRD PARTY PAYMENTS,PRIVATE CONTRACTOR,REVENUE
Walsall Council,http://opendatacommunities.org/id/metropolitan-district-council/walsall ,WC150-361,31.05.2023,ADULT SOCIAL CARE,ACEPAY LTD (COTTAGE NUR HOME),09/05/2023,"2,456.24",6541-Nursing,THIRD PARTY PAYMENTS,PRIVATE CONTRACTOR,REVENUE
Walsall Council,http://opendatacommunities.org/id/metropolitan-district-council/walsall ,WC150-362,31.05.2023,ADULT SOCIAL CARE,ACEPAY LTD (COTTAGE NUR HOME),09/05/2023,"2,763.80",6541-Nursing EMI,THIRD PARTY PAYMENTS,PRIVATE CONTRACTOR,REVENUE
Walsall Council,http://opendatacommunities.org/id/metropolitan-district-council/walsall ,WC150-363,31.05.2023,ADULT SOCIAL CARE,ACEPAY LTD (COTTAGE NUR HOME),09/05/2023,"2,366.04",6541-Residential EMI,THIRD PARTY PAYMENTS,PRIVATE CONTRACTOR,REVENUE
Walsall Council,http://opendatacommunities.org/id/metropolitan-district-council/walsall ,WC150-364,31.05.2023,ADULT SOCIAL CARE,ACEPAY LTD (COTTAGE NUR HOME),09/05/2023,"2,366.04",6541-Residential EMI,THIRD PARTY PAYMENTS,PRIVATE CONTRACTOR,REVENUE
Walsall Council,http://opendatacommunities.org/id/metropolitan-district-council/walsall ,WC150-365,31.05.2023,ADULT SOCIAL CARE,ACEPAY LTD (COTTAGE NUR HOME),09/05/2023,"2,763.80",6541-Nursing EMI,THIRD PARTY PAYMENTS,PRIVATE CONTRACTOR,REVENUE
Walsall Council,http://opendatacommunities.org/id/metropolitan-district-council/walsall ,WC150-366,31.05.2023,ADULT SOCIAL CARE,ACEPAY LTD (COTTAGE NUR HOME),09/05/2023,"2,366.04",6541-Residential EMI,THIRD PARTY PAYMENTS,PRIVATE CONTRACTOR,REVENUE
Walsall Council,http://opendatacommunities.org/id/metropolitan-district-council/walsall ,WC150-367,31.05.2023,ADULT SOCIAL CARE,ACEPAY LTD (COTTAGE NUR HOME),09/05/2023,"2,456.24",6541-Nursing,THIRD PARTY PAYMENTS,PRIVATE CONTRACTOR,REVENUE
Walsall Council,http://opendatacommunities.org/id/metropolitan-district-council/walsall ,WC150-368,31.05.2023,ADULT SOCIAL CARE,ACEPAY LTD (COTTAGE NUR HOME),09/05/2023,"2,456.24",6541-Nursing,THIRD PARTY PAYMENTS,PRIVATE CONTRACTOR,REVENUE
Walsall Council,http://opendatacommunities.org/id/metropolitan-district-council/walsall ,WC150-369,31.05.2023,ADULT SOCIAL CARE,ACHIEVE TOGETHER LIMITED,09/05/2023,"5,506.08",6541-Residential,THIRD PARTY PAYMENTS,PRIVATE CONTRACTOR,REVENUE
Walsall Council,http://opendatacommunities.org/id/metropolitan-district-council/walsall ,WC150-370,31.05.2023,ADULT SOCIAL CARE,ACHIEVE TOGETHER LIMITED,09/05/2023,"9,178.80",6541-Residential,THIRD PARTY PAYMENTS,PRIVATE CONTRACTOR,REVENUE
Walsall Council,http://opendatacommunities.org/id/metropolitan-district-council/walsall ,WC150-371,31.05.2023,ADULT SOCIAL CARE,ACHIEVE TOGETHER LIMITED,09/05/2023,"3,852.80",6541-Residential,THIRD PARTY PAYMENTS,PRIVATE CONTRACTOR,REVENUE
Walsall Council,http://opendatacommunities.org/id/metropolitan-district-council/walsall ,WC150-372,31.05.2023,ADULT SOCIAL CARE,ACHIEVE TOGETHER LIMITED,09/05/2023,"4,920.72",6541-Residential,THIRD PARTY PAYMENTS,PRIVATE CONTRACTOR,REVENUE
Walsall Council,http://opendatacommunities.org/id/metropolitan-district-council/walsall ,WC150-373,31.05.2023,ADULT SOCIAL CARE,ACHIEVE TOGETHER LIMITED,09/05/2023,"6,572.72",6541-Residential,THIRD PARTY PAYMENTS,PRIVATE CONTRACTOR,REVENUE
Walsall Council,http://opendatacommunities.org/id/metropolitan-district-council/walsall ,WC150-374,31.05.2023,CHILDRENS,ACORN CARE & EDUCATION LTD (SALES),23/05/2023,"6,389.17",1220-Professional Fees & Services,SUPPLIES & SERVICES,SERVICES,REVENUE
Walsall Council,http://opendatacommunities.org/id/metropolitan-district-council/walsall ,WC150-375,31.05.2023,"ECONOMY, ENVIRONMENT & COMMUNITIES",ACORN ENVIRONMENTAL MANAGEMENT GROUP LTD,30/05/2023,"19,150.92",6410-Professional Services-Priv Contractor & Other Agencies,THIRD PARTY PAYMENTS,PRIVATE CONTRACTOR,REVENUE
Walsall Council,http://opendatacommunities.org/id/metropolitan-district-council/walsall ,WC150-376,31.05.2023,CHILDRENS,ACORN FOSTERING SERVICES LTD,16/05/2023,"3,340.00",6223-Independent Foster Care-Oth Agency Provision,THIRD PARTY PAYMENTS,PRIVATE CONTRACTOR,REVENUE
Walsall Council,http://opendatacommunities.org/id/metropolitan-district-council/walsall ,WC150-377,31.05.2023,CHILDRENS,ACORN RESIDENTIAL CARE LTD T/A ADECYN HOMES,25/05/2023,"18,183.00",6223-External Residential Care-Oth Agency Provision,THIRD PARTY PAYMENTS,PRIVATE CONTRACTOR,REVENUE
Walsall Council,http://opendatacommunities.org/id/metropolitan-district-council/walsall ,WC150-378,31.05.2023,CHILDRENS,ACPAS LIMITED,05/05/2023,795.6,6222-Consultant Fees,SUPPLIES & SERVICES,SERVICES,REVENUE
Walsall Council,http://opendatacommunities.org/id/metropolitan-district-council/walsall ,WC150-379,31.05.2023,"ECONOMY, ENVIRONMENT & COMMUNITIES",ACTION GRAPHICS & DISPLAY LTD,16/05/2023,681.2,6414-Outwork Print & Design,SUPPLIES & SERVICES,PRINTING STATIONERY & GENERAL OFFICE,REVENUE
Walsall Council,http://opendatacommunities.org/id/metropolitan-district-council/walsall ,WC150-380,31.05.2023,CHILDRENS,ACTIVE CARE SOLUTIONS LTD,16/05/2023,"3,502.35",6223-Independent Foster Care-Oth Agency Provision,THIRD PARTY PAYMENTS,PRIVATE CONTRACTOR,REVENUE
Walsall Council,http://opendatacommunities.org/id/metropolitan-district-council/walsall ,WC150-381,31.05.2023,CHILDRENS,ACTIVE CARE SOLUTIONS LTD,16/05/2023,469.16,6223-Independent Foster Care-Oth Agency Provision,THIRD PARTY PAYMENTS,PRIVATE CONTRACTOR,REVENUE
Walsall Council,http://opendatacommunities.org/id/metropolitan-district-council/walsall ,WC150-382,31.05.2023,CHILDRENS,ACTIVE CARE SOLUTIONS LTD,16/05/2023,487.18,6223-Independent Foster Care-Oth Agency Provision,THIRD PARTY PAYMENTS,PRIVATE CONTRACTOR,REVENUE
Walsall Council,http://opendatacommunities.org/id/metropolitan-district-council/walsall ,WC150-383,31.05.2023,CHILDRENS,ACTIVE CARE SOLUTIONS LTD,16/05/2023,469.16,6223-Independent Foster Care-Oth Agency Provision,THIRD PARTY PAYMENTS,PRIVATE CONTRACTOR,REVENUE
Walsall Council,http://opendatacommunities.org/id/metropolitan-district-council/walsall ,WC150-384,31.05.2023,ADULT SOCIAL CARE,REDACTED,03/05/2023,733.28,6541-Direct Payment,THIRD PARTY PAYMENTS,PRIVATE CONTRACTOR,REVENUE
Walsall Council,http://opendatacommunities.org/id/metropolitan-district-council/walsall ,WC150-385,31.05.2023,CHILDRENS,ADCS (ASSOCIATION OF DIRECTORS OF CHILDRENS SERVICES),30/05/2023,477,6213-External Training,INDIRECT EMPLOYEES,EXTERNAL TRAINING,REVENUE
Walsall Council,http://opendatacommunities.org/id/metropolitan-district-council/walsall ,WC150-386,31.05.2023,CHILDRENS,ADCS (ASSOCIATION OF DIRECTORS OF CHILDRENS SERVICES),30/05/2023,893,6213-Conference Expenses,SUPPLIES & SERVICES,EXPENSES,REVENUE
Walsall Council,http://opendatacommunities.org/id/metropolitan-district-council/walsall ,WC150-387,31.05.2023,CHILDRENS,REDACTED,03/05/2023,350.96,6223-Residents Orders,TRANSFER PAYMENTS,CHILDREN SOCIAL SERVICES CLIENT,REVENUE
Walsall Council,http://opendatacommunities.org/id/metropolitan-district-council/walsall ,WC150-388,31.05.2023,ADULT SOCIAL CARE,REDACTED,03/05/2023,"2,083.20",6541-Direct Payment,THIRD PARTY PAYMENTS,PRIVATE CONTRACTOR,REVENUE
Walsall Council,http://opendatacommunities.org/id/metropolitan-district-council/walsall ,WC150-389,31.05.2023,ADULT SOCIAL CARE,ADVANCE HEALTH CARE (UK) LTD,03/05/2023,"2,316.64",6541-Domiciliary Care,THIRD PARTY PAYMENTS,PRIVATE CONTRACTOR,REVENUE
Walsall Council,http://opendatacommunities.org/id/metropolitan-district-council/walsall ,WC150-390,31.05.2023,ADULT SOCIAL CARE,ADVANCE HEALTH CARE (UK) LTD,03/05/2023,344.84,6541-Domiciliary Care,THIRD PARTY PAYMENTS,PRIVATE CONTRACTOR,REVENUE
Walsall Council,http://opendatacommunities.org/id/metropolitan-district-council/walsall ,WC150-391,31.05.2023,ADULT SOCIAL CARE,ADVANCE HEALTH CARE (UK) LTD,03/05/2023,754.32,6541-Domiciliary Care,THIRD PARTY PAYMENTS,PRIVATE CONTRACTOR,REVENUE
Walsall Council,http://opendatacommunities.org/id/metropolitan-district-council/walsall ,WC150-392,31.05.2023,ADULT SOCIAL CARE,ADVANCE HEALTH CARE (UK) LTD,03/05/2023,"1,066.56",6541-Domiciliary Care,THIRD PARTY PAYMENTS,PRIVATE CONTRACTOR,REVENUE
Walsall Council,http://opendatacommunities.org/id/metropolitan-district-council/walsall ,WC150-393,31.05.2023,ADULT SOCIAL CARE,ADVANCE HEALTH CARE (UK) LTD,03/05/2023,942.76,6541-Domiciliary Care,THIRD PARTY PAYMENTS,PRIVATE CONTRACTOR,REVENUE
Walsall Council,http://opendatacommunities.org/id/metropolitan-district-council/walsall ,WC150-394,31.05.2023,ADULT SOCIAL CARE,ADVANCE HEALTH CARE (UK) LTD,03/05/2023,"1,050.40",6541-Domiciliary Care,THIRD PARTY PAYMENTS,PRIVATE CONTRACTOR,REVENUE
Walsall Council,http://opendatacommunities.org/id/metropolitan-district-council/walsall ,WC150-395,31.05.2023,ADULT SOCIAL CARE,ADVANCE HEALTH CARE (UK) LTD,03/05/2023,"1,018.08",6541-Domiciliary Care,THIRD PARTY PAYMENTS,PRIVATE CONTRACTOR,REVENUE
Walsall Council,http://opendatacommunities.org/id/metropolitan-district-council/walsall ,WC150-396,31.05.2023,ADULT SOCIAL CARE,ADVANCE HEALTH CARE (UK) LTD,03/05/2023,"1,018.08",6541-Domiciliary Care,THIRD PARTY PAYMENTS,PRIVATE CONTRACTOR,REVENUE
Walsall Council,http://opendatacommunities.org/id/metropolitan-district-council/walsall ,WC150-397,31.05.2023,ADULT SOCIAL CARE,ADVANCE HEALTH CARE (UK) LTD,03/05/2023,754.32,6541-Domiciliary Care,THIRD PARTY PAYMENTS,PRIVATE CONTRACTOR,REVENUE
Walsall Council,http://opendatacommunities.org/id/metropolitan-district-council/walsall ,WC150-398,31.05.2023,ADULT SOCIAL CARE,ADVANCE HEALTH CARE (UK) LTD,03/05/2023,250.48,6541-Domiciliary Care,THIRD PARTY PAYMENTS,PRIVATE CONTRACTOR,REVENUE
Walsall Council,http://opendatacommunities.org/id/metropolitan-district-council/walsall ,WC150-399,31.05.2023,ADULT SOCIAL CARE,ADVANCE HEALTH CARE (UK) LTD,03/05/2023,"2,879.72",6541-Domiciliary Care,THIRD PARTY PAYMENTS,PRIVATE CONTRACTOR,REVENUE
Walsall Council,http://opendatacommunities.org/id/metropolitan-district-council/walsall ,WC150-400,31.05.2023,ADULT SOCIAL CARE,ADVANCE HEALTH CARE (UK) LTD,03/05/2023,"1,082.72",6541-Domiciliary Care,THIRD PARTY PAYMENTS,PRIVATE CONTRACTOR,REVENUE
Walsall Council,http://opendatacommunities.org/id/metropolitan-district-council/walsall ,WC150-401,31.05.2023,ADULT SOCIAL CARE,ADVANCE HEALTH CARE (UK) LTD,03/05/2023,402.73,6541-Domiciliary Care,THIRD PARTY PAYMENTS,PRIVATE CONTRACTOR,REVENUE
Walsall Council,http://opendatacommunities.org/id/metropolitan-district-council/walsall ,WC150-402,31.05.2023,ADULT SOCIAL CARE,ADVANCE HEALTH CARE (UK) LTD,03/05/2023,"1,734.60",6541-Domiciliary Care,THIRD PARTY PAYMENTS,PRIVATE CONTRACTOR,REVENUE
Walsall Council,http://opendatacommunities.org/id/metropolitan-district-council/walsall ,WC150-403,31.05.2023,ADULT SOCIAL CARE,ADVANCE HEALTH CARE (UK) LTD,03/05/2023,"1,282.40",6541-Domiciliary Care,THIRD PARTY PAYMENTS,PRIVATE CONTRACTOR,REVENUE
Walsall Council,http://opendatacommunities.org/id/metropolitan-district-council/walsall ,WC150-404,31.05.2023,ADULT SOCIAL CARE,ADVANCE HEALTH CARE (UK) LTD,03/05/2023,705.84,6541-Domiciliary Care,THIRD PARTY PAYMENTS,PRIVATE CONTRACTOR,REVENUE
Walsall Council,http://opendatacommunities.org/id/metropolitan-district-council/walsall ,WC150-405,31.05.2023,ADULT SOCIAL CARE,ADVANCE HEALTH CARE (UK) LTD,03/05/2023,290.88,6554-Professional Services-Priv Contractor & Other Agencies,THIRD PARTY PAYMENTS,PRIVATE CONTRACTOR,REVENUE
Walsall Council,http://opendatacommunities.org/id/metropolitan-district-council/walsall ,WC150-406,31.05.2023,ADULT SOCIAL CARE,ADVANCE HEALTH CARE (UK) LTD,03/05/2023,"1,963.44",6554-Professional Services-Priv Contractor & Other Agencies,THIRD PARTY PAYMENTS,PRIVATE CONTRACTOR,REVENUE
Walsall Council,http://opendatacommunities.org/id/metropolitan-district-council/walsall ,WC150-407,31.05.2023,ADULT SOCIAL CARE,ADVANCE HEALTH CARE (UK) LTD,03/05/2023,678.72,6554-Professional Services-Priv Contractor & Other Agencies,THIRD PARTY PAYMENTS,PRIVATE CONTRACTOR,REVENUE
Walsall Council,http://opendatacommunities.org/id/metropolitan-district-council/walsall ,WC150-408,31.05.2023,ADULT SOCIAL CARE,ADVANCE HEALTH CARE (UK) LTD,03/05/2023,727.2,6554-Professional Services-Priv Contractor & Other Agencies,THIRD PARTY PAYMENTS,PRIVATE CONTRACTOR,REVENUE
Walsall Council,http://opendatacommunities.org/id/metropolitan-district-council/walsall ,WC150-409,31.05.2023,ADULT SOCIAL CARE,ADVANCE HEALTH CARE (UK) LTD,03/05/2023,395.92,6554-Professional Services-Priv Contractor & Other Agencies,THIRD PARTY PAYMENTS,PRIVATE CONTRACTOR,REVENUE
Walsall Council,http://opendatacommunities.org/id/metropolitan-district-council/walsall ,WC150-410,31.05.2023,ADULT SOCIAL CARE,ADVANCE HEALTH CARE (UK) LTD,03/05/2023,498.34,6554-Professional Services-Priv Contractor & Other Agencies,THIRD PARTY PAYMENTS,PRIVATE CONTRACTOR,REVENUE
Walsall Council,http://opendatacommunities.org/id/metropolitan-district-council/walsall ,WC150-411,31.05.2023,ADULT SOCIAL CARE,ADVANCE HEALTH CARE (UK) LTD,03/05/2023,"2,036.16",6554-Professional Services-Priv Contractor & Other Agencies,THIRD PARTY PAYMENTS,PRIVATE CONTRACTOR,REVENUE
Walsall Council,http://opendatacommunities.org/id/metropolitan-district-council/walsall ,WC150-412,31.05.2023,ADULT SOCIAL CARE,ADVANCE HEALTH CARE (UK) LTD,03/05/2023,"1,508.64",6554-Professional Services-Priv Contractor & Other Agencies,THIRD PARTY PAYMENTS,PRIVATE CONTRACTOR,REVENUE
Walsall Council,http://opendatacommunities.org/id/metropolitan-district-council/walsall ,WC150-413,31.05.2023,ADULT SOCIAL CARE,ADVANCE HEALTH CARE (UK) LTD,03/05/2023,"2,036.16",6554-Professional Services-Priv Contractor & Other Agencies,THIRD PARTY PAYMENTS,PRIVATE CONTRACTOR,REVENUE
Walsall Council,http://opendatacommunities.org/id/metropolitan-district-council/walsall ,WC150-414,31.05.2023,ADULT SOCIAL CARE,ADVANCE HEALTH CARE (UK) LTD,03/05/2023,686.8,6554-Professional Services-Priv Contractor & Other Agencies,THIRD PARTY PAYMENTS,PRIVATE CONTRACTOR,REVENUE
Walsall Council,http://opendatacommunities.org/id/metropolitan-district-council/walsall ,WC150-415,31.05.2023,ADULT SOCIAL CARE,ADVANCE HEALTH CARE (UK) LTD,03/05/2023,"1,397.84",6554-Professional Services-Priv Contractor & Other Agencies,THIRD PARTY PAYMENTS,PRIVATE CONTRACTOR,REVENUE
Walsall Council,http://opendatacommunities.org/id/metropolitan-district-council/walsall ,WC150-416,31.05.2023,ADULT SOCIAL CARE,ADVANCE HEALTH CARE (UK) LTD,03/05/2023,759.52,6554-Professional Services-Priv Contractor & Other Agencies,THIRD PARTY PAYMENTS,PRIVATE CONTRACTOR,REVENUE
Walsall Council,http://opendatacommunities.org/id/metropolitan-district-council/walsall ,WC150-417,31.05.2023,ADULT SOCIAL CARE,ADVANCE HEALTH CARE (UK) LTD,03/05/2023,468.64,6554-Professional Services-Priv Contractor & Other Agencies,THIRD PARTY PAYMENTS,PRIVATE CONTRACTOR,REVENUE
Walsall Council,http://opendatacommunities.org/id/metropolitan-district-council/walsall ,WC150-418,31.05.2023,ADULT SOCIAL CARE,ADVANCE HEALTH CARE (UK) LTD,03/05/2023,"1,018.08",6554-Professional Services-Priv Contractor & Other Agencies,THIRD PARTY PAYMENTS,PRIVATE CONTRACTOR,REVENUE
Walsall Council,http://opendatacommunities.org/id/metropolitan-district-council/walsall ,WC150-419,31.05.2023,ADULT SOCIAL CARE,ADVANCE HEALTH CARE (UK) LTD,03/05/2023,468.64,6554-Professional Services-Priv Contractor & Other Agencies,THIRD PARTY PAYMENTS,PRIVATE CONTRACTOR,REVENUE
Walsall Council,http://opendatacommunities.org/id/metropolitan-district-council/walsall ,WC150-420,31.05.2023,ADULT SOCIAL CARE,ADVANCE HEALTH CARE (UK) LTD,03/05/2023,468.64,6554-Professional Services-Priv Contractor & Other Agencies,THIRD PARTY PAYMENTS,PRIVATE CONTRACTOR,REVENUE
Walsall Council,http://opendatacommunities.org/id/metropolitan-district-council/walsall ,WC150-421,31.05.2023,ADULT SOCIAL CARE,ADVANCE HEALTH CARE (UK) LTD,09/05/2023,589.84,6541-Domiciliary Care,THIRD PARTY PAYMENTS,PRIVATE CONTRACTOR,REVENUE
Walsall Council,http://opendatacommunities.org/id/metropolitan-district-council/walsall ,WC150-422,31.05.2023,ADULT SOCIAL CARE,ADVANCE HEALTH CARE (UK) LTD,09/05/2023,254.52,6541-Domiciliary Care,THIRD PARTY PAYMENTS,PRIVATE CONTRACTOR,REVENUE
Walsall Council,http://opendatacommunities.org/id/metropolitan-district-council/walsall ,WC150-423,31.05.2023,ADULT SOCIAL CARE,ADVANCE HEALTH CARE (UK) LTD,09/05/2023,254.52,6541-Domiciliary Care,THIRD PARTY PAYMENTS,PRIVATE CONTRACTOR,REVENUE
Walsall Council,http://opendatacommunities.org/id/metropolitan-district-council/walsall ,WC150-424,31.05.2023,ADULT SOCIAL CARE,ADVANCE HEALTH CARE (UK) LTD,09/05/2023,377.16,6541-Domiciliary Care,THIRD PARTY PAYMENTS,PRIVATE CONTRACTOR,REVENUE
Walsall Council,http://opendatacommunities.org/id/metropolitan-district-council/walsall ,WC150-425,31.05.2023,ADULT SOCIAL CARE,ADVANCE HEALTH CARE (UK) LTD,09/05/2023,339.5,6541-Domiciliary Care,THIRD PARTY PAYMENTS,PRIVATE CONTRACTOR,REVENUE
Walsall Council,http://opendatacommunities.org/id/metropolitan-district-council/walsall ,WC150-426,31.05.2023,ADULT SOCIAL CARE,ADVANCE HEALTH CARE (UK) LTD,09/05/2023,-290.88,6541-Domiciliary Care,THIRD PARTY PAYMENTS,PRIVATE CONTRACTOR,REVENUE
Walsall Council,http://opendatacommunities.org/id/metropolitan-district-council/walsall ,WC150-427,31.05.2023,ADULT SOCIAL CARE,ADVANCE HEALTH CARE (UK) LTD,09/05/2023,452.48,6541-Domiciliary Care,THIRD PARTY PAYMENTS,PRIVATE CONTRACTOR,REVENUE
Walsall Council,http://opendatacommunities.org/id/metropolitan-district-council/walsall ,WC150-428,31.05.2023,ADULT SOCIAL CARE,ADVANCE HEALTH CARE (UK) LTD,09/05/2023,452.48,6541-Domiciliary Care,THIRD PARTY PAYMENTS,PRIVATE CONTRACTOR,REVENUE
Walsall Council,http://opendatacommunities.org/id/metropolitan-district-council/walsall ,WC150-429,31.05.2023,ADULT SOCIAL CARE,ADVANCE HEALTH CARE (UK) LTD,09/05/2023,509.04,6541-Domiciliary Care,THIRD PARTY PAYMENTS,PRIVATE CONTRACTOR,REVENUE
Walsall Council,http://opendatacommunities.org/id/metropolitan-district-council/walsall ,WC150-430,31.05.2023,ADULT SOCIAL CARE,ADVANCE HEALTH CARE (UK) LTD,09/05/2023,509.04,6541-Domiciliary Care,THIRD PARTY PAYMENTS,PRIVATE CONTRACTOR,REVENUE
Walsall Council,http://opendatacommunities.org/id/metropolitan-district-council/walsall ,WC150-431,31.05.2023,ADULT SOCIAL CARE,ADVANCE HEALTH CARE (UK) LTD,09/05/2023,339.5,6541-Domiciliary Care,THIRD PARTY PAYMENTS,PRIVATE CONTRACTOR,REVENUE
Walsall Council,http://opendatacommunities.org/id/metropolitan-district-council/walsall ,WC150-432,31.05.2023,ADULT SOCIAL CARE,ADVANCE HEALTH CARE (UK) LTD,09/05/2023,500.96,6541-Domiciliary Care,THIRD PARTY PAYMENTS,PRIVATE CONTRACTOR,REVENUE
Walsall Council,http://opendatacommunities.org/id/metropolitan-district-council/walsall ,WC150-433,31.05.2023,ADULT SOCIAL CARE,ADVANCE HEALTH CARE (UK) LTD,09/05/2023,565.6,6541-Domiciliary Care,THIRD PARTY PAYMENTS,PRIVATE CONTRACTOR,REVENUE
Walsall Council,http://opendatacommunities.org/id/metropolitan-district-council/walsall ,WC150-434,31.05.2023,ADULT SOCIAL CARE,ADVANCE HEALTH CARE (UK) LTD,09/05/2023,254.52,6541-Domiciliary Care,THIRD PARTY PAYMENTS,PRIVATE CONTRACTOR,REVENUE
Walsall Council,http://opendatacommunities.org/id/metropolitan-district-council/walsall ,WC150-435,31.05.2023,ADULT SOCIAL CARE,ADVANCE HEALTH CARE (UK) LTD,09/05/2023,452.48,6541-Domiciliary Care,THIRD PARTY PAYMENTS,PRIVATE CONTRACTOR,REVENUE
Walsall Council,http://opendatacommunities.org/id/metropolitan-district-council/walsall ,WC150-436,31.05.2023,ADULT SOCIAL CARE,ADVANCE HEALTH CARE (UK) LTD,09/05/2023,799.92,6541-Domiciliary Care,THIRD PARTY PAYMENTS,PRIVATE CONTRACTOR,REVENUE
Walsall Council,http://opendatacommunities.org/id/metropolitan-district-council/walsall ,WC150-437,31.05.2023,ADULT SOCIAL CARE,ADVANCE HEALTH CARE (UK) LTD,09/05/2023,864.56,6541-Domiciliary Care,THIRD PARTY PAYMENTS,PRIVATE CONTRACTOR,REVENUE
Walsall Council,http://opendatacommunities.org/id/metropolitan-district-council/walsall ,WC150-438,31.05.2023,ADULT SOCIAL CARE,ADVANCE HEALTH CARE (UK) LTD,09/05/2023,396.06,6541-Domiciliary Care,THIRD PARTY PAYMENTS,PRIVATE CONTRACTOR,REVENUE
Walsall Council,http://opendatacommunities.org/id/metropolitan-district-council/walsall ,WC150-439,31.05.2023,ADULT SOCIAL CARE,ADVANCE HEALTH CARE (UK) LTD,09/05/2023,254.52,6541-Domiciliary Care,THIRD PARTY PAYMENTS,PRIVATE CONTRACTOR,REVENUE
Walsall Council,http://opendatacommunities.org/id/metropolitan-district-council/walsall ,WC150-440,31.05.2023,ADULT SOCIAL CARE,ADVANCE HEALTH CARE (UK) LTD,09/05/2023,395.92,6541-Domiciliary Care,THIRD PARTY PAYMENTS,PRIVATE CONTRACTOR,REVENUE
Walsall Council,http://opendatacommunities.org/id/metropolitan-district-council/walsall ,WC150-441,31.05.2023,ADULT SOCIAL CARE,ADVANCE HEALTH CARE (UK) LTD,09/05/2023,339.36,6541-Domiciliary Care,THIRD PARTY PAYMENTS,PRIVATE CONTRACTOR,REVENUE
Walsall Council,http://opendatacommunities.org/id/metropolitan-district-council/walsall ,WC150-442,31.05.2023,ADULT SOCIAL CARE,ADVANCE HEALTH CARE (UK) LTD,09/05/2023,509.04,6541-Domiciliary Care,THIRD PARTY PAYMENTS,PRIVATE CONTRACTOR,REVENUE
Walsall Council,http://opendatacommunities.org/id/metropolitan-district-council/walsall ,WC150-443,31.05.2023,ADULT SOCIAL CARE,ADVANCE HEALTH CARE (UK) LTD,09/05/2023,509.04,6541-Domiciliary Care,THIRD PARTY PAYMENTS,PRIVATE CONTRACTOR,REVENUE
Walsall Council,http://opendatacommunities.org/id/metropolitan-district-council/walsall ,WC150-444,31.05.2023,ADULT SOCIAL CARE,ADVANCE HEALTH CARE (UK) LTD,09/05/2023,565.6,6541-Domiciliary Care,THIRD PARTY PAYMENTS,PRIVATE CONTRACTOR,REVENUE
Walsall Council,http://opendatacommunities.org/id/metropolitan-district-council/walsall ,WC150-445,31.05.2023,ADULT SOCIAL CARE,ADVANCE HEALTH CARE (UK) LTD,09/05/2023,452.48,6541-Domiciliary Care,THIRD PARTY PAYMENTS,PRIVATE CONTRACTOR,REVENUE
Walsall Council,http://opendatacommunities.org/id/metropolitan-district-council/walsall ,WC150-446,31.05.2023,ADULT SOCIAL CARE,ADVANCE HEALTH CARE (UK) LTD,09/05/2023,452.48,6541-Domiciliary Care,THIRD PARTY PAYMENTS,PRIVATE CONTRACTOR,REVENUE
Walsall Council,http://opendatacommunities.org/id/metropolitan-district-council/walsall ,WC150-447,31.05.2023,ADULT SOCIAL CARE,ADVANCE HEALTH CARE (UK) LTD,09/05/2023,395.92,6541-Domiciliary Care,THIRD PARTY PAYMENTS,PRIVATE CONTRACTOR,REVENUE
Walsall Council,http://opendatacommunities.org/id/metropolitan-district-council/walsall ,WC150-448,31.05.2023,ADULT SOCIAL CARE,ADVANCE HEALTH CARE (UK) LTD,09/05/2023,509.04,6541-Domiciliary Care,THIRD PARTY PAYMENTS,PRIVATE CONTRACTOR,REVENUE
Walsall Council,http://opendatacommunities.org/id/metropolitan-district-council/walsall ,WC150-449,31.05.2023,ADULT SOCIAL CARE,ADVANCE HEALTH CARE (UK) LTD,09/05/2023,565.6,6541-Domiciliary Care,THIRD PARTY PAYMENTS,PRIVATE CONTRACTOR,REVENUE
Walsall Council,http://opendatacommunities.org/id/metropolitan-district-council/walsall ,WC150-450,31.05.2023,ADULT SOCIAL CARE,ADVANCE HEALTH CARE (UK) LTD,09/05/2023,395.92,6541-Domiciliary Care,THIRD PARTY PAYMENTS,PRIVATE CONTRACTOR,REVENUE
Walsall Council,http://opendatacommunities.org/id/metropolitan-district-council/walsall ,WC150-451,31.05.2023,ADULT SOCIAL CARE,ADVANCE HEALTH CARE (UK) LTD,09/05/2023,270.68,6541-Domiciliary Care,THIRD PARTY PAYMENTS,PRIVATE CONTRACTOR,REVENUE
Walsall Council,http://opendatacommunities.org/id/metropolitan-district-council/walsall ,WC150-452,31.05.2023,ADULT SOCIAL CARE,ADVANCE HEALTH CARE (UK) LTD,09/05/2023,509.04,6541-Domiciliary Care,THIRD PARTY PAYMENTS,PRIVATE CONTRACTOR,REVENUE
Walsall Council,http://opendatacommunities.org/id/metropolitan-district-council/walsall ,WC150-453,31.05.2023,ADULT SOCIAL CARE,ADVANCE HEALTH CARE (UK) LTD,09/05/2023,509.04,6541-Domiciliary Care,THIRD PARTY PAYMENTS,PRIVATE CONTRACTOR,REVENUE
Walsall Council,http://opendatacommunities.org/id/metropolitan-district-council/walsall ,WC150-454,31.05.2023,ADULT SOCIAL CARE,ADVANCE HEALTH CARE (UK) LTD,09/05/2023,509.04,6541-Domiciliary Care,THIRD PARTY PAYMENTS,PRIVATE CONTRACTOR,REVENUE
Walsall Council,http://opendatacommunities.org/id/metropolitan-district-council/walsall ,WC150-455,31.05.2023,ADULT SOCIAL CARE,ADVANCE HEALTH CARE (UK) LTD,09/05/2023,689.54,6541-Domiciliary Care,THIRD PARTY PAYMENTS,PRIVATE CONTRACTOR,REVENUE
Walsall Council,http://opendatacommunities.org/id/metropolitan-district-council/walsall ,WC150-456,31.05.2023,ADULT SOCIAL CARE,ADVANCE HEALTH CARE (UK) LTD,09/05/2023,254.52,6541-Domiciliary Care,THIRD PARTY PAYMENTS,PRIVATE CONTRACTOR,REVENUE
Walsall Council,http://opendatacommunities.org/id/metropolitan-district-council/walsall ,WC150-457,31.05.2023,ADULT SOCIAL CARE,ADVANCE HEALTH CARE (UK) LTD,09/05/2023,254.52,6541-Domiciliary Care,THIRD PARTY PAYMENTS,PRIVATE CONTRACTOR,REVENUE
Walsall Council,http://opendatacommunities.org/id/metropolitan-district-council/walsall ,WC150-458,31.05.2023,ADULT SOCIAL CARE,ADVANCE HEALTH CARE (UK) LTD,09/05/2023,377.16,6541-Domiciliary Care,THIRD PARTY PAYMENTS,PRIVATE CONTRACTOR,REVENUE
Walsall Council,http://opendatacommunities.org/id/metropolitan-district-council/walsall ,WC150-459,31.05.2023,ADULT SOCIAL CARE,ADVANCE HEALTH CARE (UK) LTD,09/05/2023,500.96,6541-Domiciliary Care,THIRD PARTY PAYMENTS,PRIVATE CONTRACTOR,REVENUE
Walsall Council,http://opendatacommunities.org/id/metropolitan-district-council/walsall ,WC150-460,31.05.2023,ADULT SOCIAL CARE,ADVANCE HEALTH CARE (UK) LTD,09/05/2023,565.6,6541-Domiciliary Care,THIRD PARTY PAYMENTS,PRIVATE CONTRACTOR,REVENUE
Walsall Council,http://opendatacommunities.org/id/metropolitan-district-council/walsall ,WC150-461,31.05.2023,ADULT SOCIAL CARE,ADVANCE HEALTH CARE (UK) LTD,09/05/2023,254.52,6541-Domiciliary Care,THIRD PARTY PAYMENTS,PRIVATE CONTRACTOR,REVENUE
Walsall Council,http://opendatacommunities.org/id/metropolitan-district-council/walsall ,WC150-462,31.05.2023,ADULT SOCIAL CARE,ADVANCE HEALTH CARE (UK) LTD,09/05/2023,339.5,6541-Domiciliary Care,THIRD PARTY PAYMENTS,PRIVATE CONTRACTOR,REVENUE
Walsall Council,http://opendatacommunities.org/id/metropolitan-district-council/walsall ,WC150-463,31.05.2023,ADULT SOCIAL CARE,ADVANCE HEALTH CARE (UK) LTD,09/05/2023,452.48,6541-Domiciliary Care,THIRD PARTY PAYMENTS,PRIVATE CONTRACTOR,REVENUE
Walsall Council,http://opendatacommunities.org/id/metropolitan-district-council/walsall ,WC150-464,31.05.2023,ADULT SOCIAL CARE,ADVANCE HEALTH CARE (UK) LTD,09/05/2023,799.92,6541-Domiciliary Care,THIRD PARTY PAYMENTS,PRIVATE CONTRACTOR,REVENUE
Walsall Council,http://opendatacommunities.org/id/metropolitan-district-council/walsall ,WC150-465,31.05.2023,ADULT SOCIAL CARE,ADVANCE HEALTH CARE (UK) LTD,09/05/2023,452.48,6541-Domiciliary Care,THIRD PARTY PAYMENTS,PRIVATE CONTRACTOR,REVENUE
Walsall Council,http://opendatacommunities.org/id/metropolitan-district-council/walsall ,WC150-466,31.05.2023,ADULT SOCIAL CARE,ADVANCE HEALTH CARE (UK) LTD,09/05/2023,339.5,6541-Domiciliary Care,THIRD PARTY PAYMENTS,PRIVATE CONTRACTOR,REVENUE
Walsall Council,http://opendatacommunities.org/id/metropolitan-district-council/walsall ,WC150-467,31.05.2023,ADULT SOCIAL CARE,ADVANCE HEALTH CARE (UK) LTD,09/05/2023,452.48,6541-Domiciliary Care,THIRD PARTY PAYMENTS,PRIVATE CONTRACTOR,REVENUE
Walsall Council,http://opendatacommunities.org/id/metropolitan-district-council/walsall ,WC150-468,31.05.2023,ADULT SOCIAL CARE,ADVANCE HEALTH CARE (UK) LTD,09/05/2023,864.56,6541-Domiciliary Care,THIRD PARTY PAYMENTS,PRIVATE CONTRACTOR,REVENUE
Walsall Council,http://opendatacommunities.org/id/metropolitan-district-council/walsall ,WC150-469,31.05.2023,ADULT SOCIAL CARE,ADVANCE HEALTH CARE (UK) LTD,09/05/2023,396.06,6541-Domiciliary Care,THIRD PARTY PAYMENTS,PRIVATE CONTRACTOR,REVENUE
Walsall Council,http://opendatacommunities.org/id/metropolitan-district-council/walsall ,WC150-470,31.05.2023,ADULT SOCIAL CARE,ADVANCE HEALTH CARE (UK) LTD,09/05/2023,254.52,6541-Domiciliary Care,THIRD PARTY PAYMENTS,PRIVATE CONTRACTOR,REVENUE
Walsall Council,http://opendatacommunities.org/id/metropolitan-district-council/walsall ,WC150-471,31.05.2023,ADULT SOCIAL CARE,ADVANCE HEALTH CARE (UK) LTD,09/05/2023,395.92,6541-Domiciliary Care,THIRD PARTY PAYMENTS,PRIVATE CONTRACTOR,REVENUE
Walsall Council,http://opendatacommunities.org/id/metropolitan-district-council/walsall ,WC150-472,31.05.2023,ADULT SOCIAL CARE,ADVANCE HEALTH CARE (UK) LTD,09/05/2023,270.68,6541-Domiciliary Care,THIRD PARTY PAYMENTS,PRIVATE CONTRACTOR,REVENUE
Walsall Council,http://opendatacommunities.org/id/metropolitan-district-council/walsall ,WC150-473,31.05.2023,ADULT SOCIAL CARE,ADVANCE HEALTH CARE (UK) LTD,09/05/2023,509.04,6541-Domiciliary Care,THIRD PARTY PAYMENTS,PRIVATE CONTRACTOR,REVENUE
Walsall Council,http://opendatacommunities.org/id/metropolitan-district-council/walsall ,WC150-474,31.05.2023,ADULT SOCIAL CARE,ADVANCE HEALTH CARE (UK) LTD,09/05/2023,509.04,6541-Domiciliary Care,THIRD PARTY PAYMENTS,PRIVATE CONTRACTOR,REVENUE
Walsall Council,http://opendatacommunities.org/id/metropolitan-district-council/walsall ,WC150-475,31.05.2023,ADULT SOCIAL CARE,ADVANCE HEALTH CARE (UK) LTD,09/05/2023,509.04,6541-Domiciliary Care,THIRD PARTY PAYMENTS,PRIVATE CONTRACTOR,REVENUE
Walsall Council,http://opendatacommunities.org/id/metropolitan-district-council/walsall ,WC150-476,31.05.2023,ADULT SOCIAL CARE,ADVANCE HEALTH CARE (UK) LTD,09/05/2023,565.6,6541-Domiciliary Care,THIRD PARTY PAYMENTS,PRIVATE CONTRACTOR,REVENUE
Walsall Council,http://opendatacommunities.org/id/metropolitan-district-council/walsall ,WC150-477,31.05.2023,ADULT SOCIAL CARE,ADVANCE HEALTH CARE (UK) LTD,09/05/2023,452.48,6541-Domiciliary Care,THIRD PARTY PAYMENTS,PRIVATE CONTRACTOR,REVENUE
Walsall Council,http://opendatacommunities.org/id/metropolitan-district-council/walsall ,WC150-478,31.05.2023,ADULT SOCIAL CARE,ADVANCE HEALTH CARE (UK) LTD,09/05/2023,452.48,6541-Domiciliary Care,THIRD PARTY PAYMENTS,PRIVATE CONTRACTOR,REVENUE
Walsall Council,http://opendatacommunities.org/id/metropolitan-district-council/walsall ,WC150-479,31.05.2023,ADULT SOCIAL CARE,ADVANCE HEALTH CARE (UK) LTD,09/05/2023,395.92,6541-Domiciliary Care,THIRD PARTY PAYMENTS,PRIVATE CONTRACTOR,REVENUE
Walsall Council,http://opendatacommunities.org/id/metropolitan-district-council/walsall ,WC150-480,31.05.2023,ADULT SOCIAL CARE,ADVANCE HEALTH CARE (UK) LTD,09/05/2023,509.04,6541-Domiciliary Care,THIRD PARTY PAYMENTS,PRIVATE CONTRACTOR,REVENUE
Walsall Council,http://opendatacommunities.org/id/metropolitan-district-council/walsall ,WC150-481,31.05.2023,ADULT SOCIAL CARE,ADVANCE HEALTH CARE (UK) LTD,09/05/2023,565.6,6541-Domiciliary Care,THIRD PARTY PAYMENTS,PRIVATE CONTRACTOR,REVENUE
Walsall Council,http://opendatacommunities.org/id/metropolitan-district-council/walsall ,WC150-482,31.05.2023,ADULT SOCIAL CARE,ADVANCE HEALTH CARE (UK) LTD,09/05/2023,395.92,6541-Domiciliary Care,THIRD PARTY PAYMENTS,PRIVATE CONTRACTOR,REVENUE
Walsall Council,http://opendatacommunities.org/id/metropolitan-district-council/walsall ,WC150-483,31.05.2023,ADULT SOCIAL CARE,ADVANCE HEALTH CARE (UK) LTD,23/05/2023,509.04,6541-Domiciliary Care,THIRD PARTY PAYMENTS,PRIVATE CONTRACTOR,REVENUE
Walsall Council,http://opendatacommunities.org/id/metropolitan-district-council/walsall ,WC150-484,31.05.2023,ADULT SOCIAL CARE,ADVANCE HEALTH CARE (UK) LTD,23/05/2023,509.04,6541-Domiciliary Care,THIRD PARTY PAYMENTS,PRIVATE CONTRACTOR,REVENUE
Walsall Council,http://opendatacommunities.org/id/metropolitan-district-council/walsall ,WC150-485,31.05.2023,ADULT SOCIAL CARE,ADVANCE HEALTH CARE (UK) LTD,23/05/2023,737.94,6541-Domiciliary Care,THIRD PARTY PAYMENTS,PRIVATE CONTRACTOR,REVENUE
Walsall Council,http://opendatacommunities.org/id/metropolitan-district-council/walsall ,WC150-486,31.05.2023,ADULT SOCIAL CARE,ADVANCE HEALTH CARE (UK) LTD,23/05/2023,254.52,6541-Domiciliary Care,THIRD PARTY PAYMENTS,PRIVATE CONTRACTOR,REVENUE
Walsall Council,http://opendatacommunities.org/id/metropolitan-district-council/walsall ,WC150-487,31.05.2023,ADULT SOCIAL CARE,ADVANCE HEALTH CARE (UK) LTD,23/05/2023,254.52,6541-Domiciliary Care,THIRD PARTY PAYMENTS,PRIVATE CONTRACTOR,REVENUE
Walsall Council,http://opendatacommunities.org/id/metropolitan-district-council/walsall ,WC150-488,31.05.2023,ADULT SOCIAL CARE,ADVANCE HEALTH CARE (UK) LTD,23/05/2023,339.5,6541-Domiciliary Care,THIRD PARTY PAYMENTS,PRIVATE CONTRACTOR,REVENUE
Walsall Council,http://opendatacommunities.org/id/metropolitan-district-council/walsall ,WC150-489,31.05.2023,ADULT SOCIAL CARE,ADVANCE HEALTH CARE (UK) LTD,23/05/2023,377.16,6541-Domiciliary Care,THIRD PARTY PAYMENTS,PRIVATE CONTRACTOR,REVENUE
Walsall Council,http://opendatacommunities.org/id/metropolitan-district-council/walsall ,WC150-490,31.05.2023,ADULT SOCIAL CARE,ADVANCE HEALTH CARE (UK) LTD,23/05/2023,339.5,6541-Domiciliary Care,THIRD PARTY PAYMENTS,PRIVATE CONTRACTOR,REVENUE
Walsall Council,http://opendatacommunities.org/id/metropolitan-district-council/walsall ,WC150-491,31.05.2023,ADULT SOCIAL CARE,ADVANCE HEALTH CARE (UK) LTD,23/05/2023,500.96,6541-Domiciliary Care,THIRD PARTY PAYMENTS,PRIVATE CONTRACTOR,REVENUE
Walsall Council,http://opendatacommunities.org/id/metropolitan-district-council/walsall ,WC150-492,31.05.2023,ADULT SOCIAL CARE,ADVANCE HEALTH CARE (UK) LTD,23/05/2023,452.48,6541-Domiciliary Care,THIRD PARTY PAYMENTS,PRIVATE CONTRACTOR,REVENUE
Walsall Council,http://opendatacommunities.org/id/metropolitan-district-council/walsall ,WC150-493,31.05.2023,ADULT SOCIAL CARE,ADVANCE HEALTH CARE (UK) LTD,23/05/2023,509.04,6541-Domiciliary Care,THIRD PARTY PAYMENTS,PRIVATE CONTRACTOR,REVENUE
Walsall Council,http://opendatacommunities.org/id/metropolitan-district-council/walsall ,WC150-494,31.05.2023,ADULT SOCIAL CARE,ADVANCE HEALTH CARE (UK) LTD,23/05/2023,815.4,6541-Domiciliary Care,THIRD PARTY PAYMENTS,PRIVATE CONTRACTOR,REVENUE
Walsall Council,http://opendatacommunities.org/id/metropolitan-district-council/walsall ,WC150-495,31.05.2023,ADULT SOCIAL CARE,ADVANCE HEALTH CARE (UK) LTD,23/05/2023,565.6,6541-Domiciliary Care,THIRD PARTY PAYMENTS,PRIVATE CONTRACTOR,REVENUE
Walsall Council,http://opendatacommunities.org/id/metropolitan-district-council/walsall ,WC150-496,31.05.2023,ADULT SOCIAL CARE,ADVANCE HEALTH CARE (UK) LTD,23/05/2023,906,6541-Domiciliary Care,THIRD PARTY PAYMENTS,PRIVATE CONTRACTOR,REVENUE
Walsall Council,http://opendatacommunities.org/id/metropolitan-district-council/walsall ,WC150-497,31.05.2023,ADULT SOCIAL CARE,ADVANCE HEALTH CARE (UK) LTD,23/05/2023,407.7,6541-Domiciliary Care,THIRD PARTY PAYMENTS,PRIVATE CONTRACTOR,REVENUE
Walsall Council,http://opendatacommunities.org/id/metropolitan-district-council/walsall ,WC150-498,31.05.2023,ADULT SOCIAL CARE,ADVANCE HEALTH CARE (UK) LTD,23/05/2023,724.8,6541-Domiciliary Care,THIRD PARTY PAYMENTS,PRIVATE CONTRACTOR,REVENUE
Walsall Council,http://opendatacommunities.org/id/metropolitan-district-council/walsall ,WC150-499,31.05.2023,ADULT SOCIAL CARE,ADVANCE HEALTH CARE (UK) LTD,23/05/2023,640.16,6541-Domiciliary Care,THIRD PARTY PAYMENTS,PRIVATE CONTRACTOR,REVENUE
Walsall Council,http://opendatacommunities.org/id/metropolitan-district-council/walsall ,WC150-500,31.05.2023,ADULT SOCIAL CARE,ADVANCE HEALTH CARE (UK) LTD,23/05/2023,864.56,6541-Domiciliary Care,THIRD PARTY PAYMENTS,PRIVATE CONTRACTOR,REVENUE
Walsall Council,http://opendatacommunities.org/id/metropolitan-district-council/walsall ,WC150-501,31.05.2023,ADULT SOCIAL CARE,ADVANCE HEALTH CARE (UK) LTD,23/05/2023,396.06,6541-Domiciliary Care,THIRD PARTY PAYMENTS,PRIVATE CONTRACTOR,REVENUE
Walsall Council,http://opendatacommunities.org/id/metropolitan-district-council/walsall ,WC150-502,31.05.2023,ADULT SOCIAL CARE,ADVANCE HEALTH CARE (UK) LTD,23/05/2023,254.52,6541-Domiciliary Care,THIRD PARTY PAYMENTS,PRIVATE CONTRACTOR,REVENUE
Walsall Council,http://opendatacommunities.org/id/metropolitan-district-council/walsall ,WC150-503,31.05.2023,ADULT SOCIAL CARE,ADVANCE HEALTH CARE (UK) LTD,23/05/2023,362.4,6541-Domiciliary Care,THIRD PARTY PAYMENTS,PRIVATE CONTRACTOR,REVENUE
Walsall Council,http://opendatacommunities.org/id/metropolitan-district-council/walsall ,WC150-504,31.05.2023,ADULT SOCIAL CARE,ADVANCE HEALTH CARE (UK) LTD,23/05/2023,724.8,6541-Domiciliary Care,THIRD PARTY PAYMENTS,PRIVATE CONTRACTOR,REVENUE
Walsall Council,http://opendatacommunities.org/id/metropolitan-district-council/walsall ,WC150-505,31.05.2023,ADULT SOCIAL CARE,ADVANCE HEALTH CARE (UK) LTD,23/05/2023,362.4,6541-Domiciliary Care,THIRD PARTY PAYMENTS,PRIVATE CONTRACTOR,REVENUE
Walsall Council,http://opendatacommunities.org/id/metropolitan-district-council/walsall ,WC150-506,31.05.2023,ADULT SOCIAL CARE,ADVANCE HEALTH CARE (UK) LTD,23/05/2023,724.8,6541-Domiciliary Care,THIRD PARTY PAYMENTS,PRIVATE CONTRACTOR,REVENUE
Walsall Council,http://opendatacommunities.org/id/metropolitan-district-council/walsall ,WC150-507,31.05.2023,ADULT SOCIAL CARE,ADVANCE HEALTH CARE (UK) LTD,23/05/2023,634.2,6541-Domiciliary Care,THIRD PARTY PAYMENTS,PRIVATE CONTRACTOR,REVENUE
Walsall Council,http://opendatacommunities.org/id/metropolitan-district-council/walsall ,WC150-508,31.05.2023,ADULT SOCIAL CARE,ADVANCE HEALTH CARE (UK) LTD,23/05/2023,815.4,6541-Domiciliary Care,THIRD PARTY PAYMENTS,PRIVATE CONTRACTOR,REVENUE
Walsall Council,http://opendatacommunities.org/id/metropolitan-district-council/walsall ,WC150-509,31.05.2023,ADULT SOCIAL CARE,ADVANCE HEALTH CARE (UK) LTD,23/05/2023,906,6541-Domiciliary Care,THIRD PARTY PAYMENTS,PRIVATE CONTRACTOR,REVENUE
Walsall Council,http://opendatacommunities.org/id/metropolitan-district-council/walsall ,WC150-510,31.05.2023,ADULT SOCIAL CARE,ADVANCE HEALTH CARE (UK) LTD,23/05/2023,552.32,6541-Domiciliary Care,THIRD PARTY PAYMENTS,PRIVATE CONTRACTOR,REVENUE
Walsall Council,http://opendatacommunities.org/id/metropolitan-district-council/walsall ,WC150-511,31.05.2023,ADULT SOCIAL CARE,ADVANCE HEALTH CARE (UK) LTD,23/05/2023,395.92,6541-Domiciliary Care,THIRD PARTY PAYMENTS,PRIVATE CONTRACTOR,REVENUE
Walsall Council,http://opendatacommunities.org/id/metropolitan-district-council/walsall ,WC150-512,31.05.2023,ADULT SOCIAL CARE,ADVANCE HEALTH CARE (UK) LTD,23/05/2023,433.06,6541-Domiciliary Care,THIRD PARTY PAYMENTS,PRIVATE CONTRACTOR,REVENUE
Walsall Council,http://opendatacommunities.org/id/metropolitan-district-council/walsall ,WC150-513,31.05.2023,ADULT SOCIAL CARE,ADVANCE HEALTH CARE (UK) LTD,23/05/2023,815.4,6541-Domiciliary Care,THIRD PARTY PAYMENTS,PRIVATE CONTRACTOR,REVENUE
Walsall Council,http://opendatacommunities.org/id/metropolitan-district-council/walsall ,WC150-514,31.05.2023,ADULT SOCIAL CARE,ADVANCE HEALTH CARE (UK) LTD,23/05/2023,441,6541-Domiciliary Care,THIRD PARTY PAYMENTS,PRIVATE CONTRACTOR,REVENUE
Walsall Council,http://opendatacommunities.org/id/metropolitan-district-council/walsall ,WC150-515,31.05.2023,ADULT SOCIAL CARE,ADVANCE HEALTH CARE (UK) LTD,23/05/2023,864.56,6541-Domiciliary Care,THIRD PARTY PAYMENTS,PRIVATE CONTRACTOR,REVENUE
Walsall Council,http://opendatacommunities.org/id/metropolitan-district-council/walsall ,WC150-516,31.05.2023,ADULT SOCIAL CARE,ADVANCE HEALTH CARE (UK) LTD,23/05/2023,396.06,6541-Domiciliary Care,THIRD PARTY PAYMENTS,PRIVATE CONTRACTOR,REVENUE
Walsall Council,http://opendatacommunities.org/id/metropolitan-district-council/walsall ,WC150-517,31.05.2023,ADULT SOCIAL CARE,ADVANCE HEALTH CARE (UK) LTD,23/05/2023,254.52,6541-Domiciliary Care,THIRD PARTY PAYMENTS,PRIVATE CONTRACTOR,REVENUE
Walsall Council,http://opendatacommunities.org/id/metropolitan-district-council/walsall ,WC150-518,31.05.2023,ADULT SOCIAL CARE,ADVANCE HEALTH CARE (UK) LTD,23/05/2023,509.04,6541-Domiciliary Care,THIRD PARTY PAYMENTS,PRIVATE CONTRACTOR,REVENUE
Walsall Council,http://opendatacommunities.org/id/metropolitan-district-council/walsall ,WC150-519,31.05.2023,ADULT SOCIAL CARE,ADVANCE HEALTH CARE (UK) LTD,23/05/2023,509.04,6541-Domiciliary Care,THIRD PARTY PAYMENTS,PRIVATE CONTRACTOR,REVENUE
Walsall Council,http://opendatacommunities.org/id/metropolitan-district-council/walsall ,WC150-520,31.05.2023,ADULT SOCIAL CARE,ADVANCE HEALTH CARE (UK) LTD,23/05/2023,566.8,6541-Domiciliary Care,THIRD PARTY PAYMENTS,PRIVATE CONTRACTOR,REVENUE
Walsall Council,http://opendatacommunities.org/id/metropolitan-district-council/walsall ,WC150-521,31.05.2023,ADULT SOCIAL CARE,ADVANCE HEALTH CARE (UK) LTD,23/05/2023,254.52,6541-Domiciliary Care,THIRD PARTY PAYMENTS,PRIVATE CONTRACTOR,REVENUE
Walsall Council,http://opendatacommunities.org/id/metropolitan-district-council/walsall ,WC150-522,31.05.2023,ADULT SOCIAL CARE,ADVANCE HEALTH CARE (UK) LTD,23/05/2023,254.52,6541-Domiciliary Care,THIRD PARTY PAYMENTS,PRIVATE CONTRACTOR,REVENUE
Walsall Council,http://opendatacommunities.org/id/metropolitan-district-council/walsall ,WC150-523,31.05.2023,ADULT SOCIAL CARE,ADVANCE HEALTH CARE (UK) LTD,23/05/2023,377.16,6541-Domiciliary Care,THIRD PARTY PAYMENTS,PRIVATE CONTRACTOR,REVENUE
Walsall Council,http://opendatacommunities.org/id/metropolitan-district-council/walsall ,WC150-524,31.05.2023,ADULT SOCIAL CARE,ADVANCE HEALTH CARE (UK) LTD,23/05/2023,395.92,6541-Domiciliary Care,THIRD PARTY PAYMENTS,PRIVATE CONTRACTOR,REVENUE
Walsall Council,http://opendatacommunities.org/id/metropolitan-district-council/walsall ,WC150-525,31.05.2023,ADULT SOCIAL CARE,ADVANCE HEALTH CARE (UK) LTD,23/05/2023,339.5,6541-Domiciliary Care,THIRD PARTY PAYMENTS,PRIVATE CONTRACTOR,REVENUE
Walsall Council,http://opendatacommunities.org/id/metropolitan-district-council/walsall ,WC150-526,31.05.2023,ADULT SOCIAL CARE,ADVANCE HEALTH CARE (UK) LTD,23/05/2023,500.96,6541-Domiciliary Care,THIRD PARTY PAYMENTS,PRIVATE CONTRACTOR,REVENUE
Walsall Council,http://opendatacommunities.org/id/metropolitan-district-council/walsall ,WC150-527,31.05.2023,ADULT SOCIAL CARE,ADVANCE HEALTH CARE (UK) LTD,23/05/2023,301.5,6541-Domiciliary Care,THIRD PARTY PAYMENTS,PRIVATE CONTRACTOR,REVENUE
Walsall Council,http://opendatacommunities.org/id/metropolitan-district-council/walsall ,WC150-528,31.05.2023,ADULT SOCIAL CARE,ADVANCE HEALTH CARE (UK) LTD,23/05/2023,452.48,6541-Domiciliary Care,THIRD PARTY PAYMENTS,PRIVATE CONTRACTOR,REVENUE
Walsall Council,http://opendatacommunities.org/id/metropolitan-district-council/walsall ,WC150-529,31.05.2023,ADULT SOCIAL CARE,ADVANCE HEALTH CARE (UK) LTD,23/05/2023,504,6541-Domiciliary Care,THIRD PARTY PAYMENTS,PRIVATE CONTRACTOR,REVENUE
Walsall Council,http://opendatacommunities.org/id/metropolitan-district-council/walsall ,WC150-530,31.05.2023,ADULT SOCIAL CARE,ADVANCE HEALTH CARE (UK) LTD,23/05/2023,567,6541-Domiciliary Care,THIRD PARTY PAYMENTS,PRIVATE CONTRACTOR,REVENUE
Walsall Council,http://opendatacommunities.org/id/metropolitan-district-council/walsall ,WC150-531,31.05.2023,ADULT SOCIAL CARE,ADVANCE HEALTH CARE (UK) LTD,23/05/2023,639,6541-Domiciliary Care,THIRD PARTY PAYMENTS,PRIVATE CONTRACTOR,REVENUE
Walsall Council,http://opendatacommunities.org/id/metropolitan-district-council/walsall ,WC150-532,31.05.2023,ADULT SOCIAL CARE,ADVANCE HEALTH CARE (UK) LTD,23/05/2023,339.5,6541-Domiciliary Care,THIRD PARTY PAYMENTS,PRIVATE CONTRACTOR,REVENUE
Walsall Council,http://opendatacommunities.org/id/metropolitan-district-council/walsall ,WC150-533,31.05.2023,ADULT SOCIAL CARE,ADVANCE HEALTH CARE (UK) LTD,23/05/2023,509.04,6541-Domiciliary Care,THIRD PARTY PAYMENTS,PRIVATE CONTRACTOR,REVENUE
Walsall Council,http://opendatacommunities.org/id/metropolitan-district-council/walsall ,WC150-534,31.05.2023,ADULT SOCIAL CARE,ADVANCE HEALTH CARE (UK) LTD,23/05/2023,567,6541-Domiciliary Care,THIRD PARTY PAYMENTS,PRIVATE CONTRACTOR,REVENUE
Walsall Council,http://opendatacommunities.org/id/metropolitan-district-council/walsall ,WC150-535,31.05.2023,ADULT SOCIAL CARE,ADVANCE HEALTH CARE (UK) LTD,23/05/2023,565.6,6541-Domiciliary Care,THIRD PARTY PAYMENTS,PRIVATE CONTRACTOR,REVENUE
Walsall Council,http://opendatacommunities.org/id/metropolitan-district-council/walsall ,WC150-536,31.05.2023,ADULT SOCIAL CARE,ADVANCE HEALTH CARE (UK) LTD,23/05/2023,630,6541-Domiciliary Care,THIRD PARTY PAYMENTS,PRIVATE CONTRACTOR,REVENUE
Walsall Council,http://opendatacommunities.org/id/metropolitan-district-council/walsall ,WC150-537,31.05.2023,ADULT SOCIAL CARE,ADVANCE HEALTH CARE (UK) LTD,23/05/2023,283.5,6541-Domiciliary Care,THIRD PARTY PAYMENTS,PRIVATE CONTRACTOR,REVENUE
Walsall Council,http://opendatacommunities.org/id/metropolitan-district-council/walsall ,WC150-538,31.05.2023,ADULT SOCIAL CARE,ADVANCE HEALTH CARE (UK) LTD,23/05/2023,504,6541-Domiciliary Care,THIRD PARTY PAYMENTS,PRIVATE CONTRACTOR,REVENUE
Walsall Council,http://opendatacommunities.org/id/metropolitan-district-council/walsall ,WC150-539,31.05.2023,ADULT SOCIAL CARE,ADVANCE HEALTH CARE (UK) LTD,23/05/2023,252,6541-Domiciliary Care,THIRD PARTY PAYMENTS,PRIVATE CONTRACTOR,REVENUE
Walsall Council,http://opendatacommunities.org/id/metropolitan-district-council/walsall ,WC150-540,31.05.2023,ADULT SOCIAL CARE,ADVANCE HEALTH CARE (UK) LTD,23/05/2023,504,6541-Domiciliary Care,THIRD PARTY PAYMENTS,PRIVATE CONTRACTOR,REVENUE
Walsall Council,http://opendatacommunities.org/id/metropolitan-district-council/walsall ,WC150-541,31.05.2023,ADULT SOCIAL CARE,ADVANCE HEALTH CARE (UK) LTD,23/05/2023,252,6541-Domiciliary Care,THIRD PARTY PAYMENTS,PRIVATE CONTRACTOR,REVENUE
Walsall Council,http://opendatacommunities.org/id/metropolitan-district-council/walsall ,WC150-542,31.05.2023,ADULT SOCIAL CARE,ADVANCE HEALTH CARE (UK) LTD,23/05/2023,504,6541-Domiciliary Care,THIRD PARTY PAYMENTS,PRIVATE CONTRACTOR,REVENUE
Walsall Council,http://opendatacommunities.org/id/metropolitan-district-council/walsall ,WC150-543,31.05.2023,ADULT SOCIAL CARE,ADVANCE HEALTH CARE (UK) LTD,23/05/2023,441,6541-Domiciliary Care,THIRD PARTY PAYMENTS,PRIVATE CONTRACTOR,REVENUE
Walsall Council,http://opendatacommunities.org/id/metropolitan-district-council/walsall ,WC150-544,31.05.2023,ADULT SOCIAL CARE,ADVANCE HEALTH CARE (UK) LTD,23/05/2023,567,6541-Domiciliary Care,THIRD PARTY PAYMENTS,PRIVATE CONTRACTOR,REVENUE
Walsall Council,http://opendatacommunities.org/id/metropolitan-district-council/walsall ,WC150-545,31.05.2023,ADULT SOCIAL CARE,ADVANCE HEALTH CARE (UK) LTD,23/05/2023,441,6541-Domiciliary Care,THIRD PARTY PAYMENTS,PRIVATE CONTRACTOR,REVENUE
Walsall Council,http://opendatacommunities.org/id/metropolitan-district-council/walsall ,WC150-546,31.05.2023,ADULT SOCIAL CARE,ADVANCE HEALTH CARE (UK) LTD,23/05/2023,630,6541-Domiciliary Care,THIRD PARTY PAYMENTS,PRIVATE CONTRACTOR,REVENUE
Walsall Council,http://opendatacommunities.org/id/metropolitan-district-council/walsall ,WC150-547,31.05.2023,ADULT SOCIAL CARE,ADVANCE HEALTH CARE (UK) LTD,23/05/2023,441,6541-Domiciliary Care,THIRD PARTY PAYMENTS,PRIVATE CONTRACTOR,REVENUE
Walsall Council,http://opendatacommunities.org/id/metropolitan-district-council/walsall ,WC150-548,31.05.2023,CHILDRENS,ADVENTURELAND DAY NURSERY,25/05/2023,"2,417.51",1184-Other-Grants to Other Orgs,SUPPLIES & SERVICES,GRANTS (EXP) & SUBSCRIPTIONS,REVENUE
Walsall Council,http://opendatacommunities.org/id/metropolitan-district-council/walsall ,WC150-549,31.05.2023,CHILDRENS,ADVENTURELAND DAY NURSERY,25/05/2023,"15,400.13",1184-Other-Grants to Other Orgs,SUPPLIES & SERVICES,GRANTS (EXP) & SUBSCRIPTIONS,REVENUE
Walsall Council,http://opendatacommunities.org/id/metropolitan-district-council/walsall ,WC150-550,31.05.2023,ADULT SOCIAL CARE,ADVINIA CARE HOMES LTD - HAMMERWICH HALL CARE HOME,09/05/2023,"2,095.40",6541-Residential,THIRD PARTY PAYMENTS,PRIVATE CONTRACTOR,REVENUE
Walsall Council,http://opendatacommunities.org/id/metropolitan-district-council/walsall ,WC150-551,31.05.2023,ADULT SOCIAL CARE,ADVINIA CARE HOMES LTD - HAMMERWICH HALL CARE HOME,09/05/2023,"2,366.04",6541-Residential EMI,THIRD PARTY PAYMENTS,PRIVATE CONTRACTOR,REVENUE
Walsall Council,http://opendatacommunities.org/id/metropolitan-district-council/walsall ,WC150-552,31.05.2023,ECONOMY & ENVIRONMENT CAPITAL,AECOM INFRASTRUCTURE & ENVIRONMENT UK LIMITED,17/05/2023,"7,352.56",7200-Consultants Fees,CAPITAL,"NEW CONSTRUCTION,CONVERSION & RENOVATION",CAPITAL
Walsall Council,http://opendatacommunities.org/id/metropolitan-district-council/walsall ,WC150-553,31.05.2023,ECONOMY & ENVIRONMENT CAPITAL,AECOM INFRASTRUCTURE & ENVIRONMENT UK LIMITED,18/05/2023,"5,174.18",7200-Consultants Fees,CAPITAL,"NEW CONSTRUCTION,CONVERSION & RENOVATION",CAPITAL
Walsall Council,http://opendatacommunities.org/id/metropolitan-district-council/walsall ,WC150-554,31.05.2023,ECONOMY & ENVIRONMENT CAPITAL,AECOM INFRASTRUCTURE & ENVIRONMENT UK LIMITED,31/05/2023,"-9,627.00",7200-Consultants Fees,CAPITAL,"NEW CONSTRUCTION,CONVERSION & RENOVATION",CAPITAL
Walsall Council,http://opendatacommunities.org/id/metropolitan-district-council/walsall ,WC150-555,31.05.2023,ECONOMY & ENVIRONMENT CAPITAL,AECOM INFRASTRUCTURE & ENVIRONMENT UK LIMITED,31/05/2023,"9,627.00",7200-Consultants Fees,CAPITAL,"NEW CONSTRUCTION,CONVERSION & RENOVATION",CAPITAL
Walsall Council,http://opendatacommunities.org/id/metropolitan-district-council/walsall ,WC150-556,31.05.2023,ECONOMY & ENVIRONMENT CAPITAL,AECOM INFRASTRUCTURE & ENVIRONMENT UK LIMITED,31/05/2023,"9,627.00",7200-Consultants Fees,CAPITAL,"NEW CONSTRUCTION,CONVERSION & RENOVATION",CAPITAL
Walsall Council,http://opendatacommunities.org/id/metropolitan-district-council/walsall ,WC150-557,31.05.2023,ECONOMY & ENVIRONMENT CAPITAL,AECOM LIMITED,30/05/2023,"-5,174.18",7200-Consultants Fees,CAPITAL,"NEW CONSTRUCTION,CONVERSION & RENOVATION",CAPITAL
Walsall Council,http://opendatacommunities.org/id/metropolitan-district-council/walsall ,WC150-558,31.05.2023,ECONOMY & ENVIRONMENT CAPITAL,AECOM LIMITED,30/05/2023,"5,174.18",7200-Consultants Fees,CAPITAL,"NEW CONSTRUCTION,CONVERSION & RENOVATION",CAPITAL
Walsall Council,http://opendatacommunities.org/id/metropolitan-district-council/walsall ,WC150-559,31.05.2023,CHILDRENS,REDACTED,03/05/2023,616,6223-Foster Carers Maintenance Allowance,TRANSFER PAYMENTS,CHILDREN SOCIAL SERVICES CLIENT,REVENUE
Walsall Council,http://opendatacommunities.org/id/metropolitan-district-council/walsall ,WC150-560,31.05.2023,CHILDRENS,REDACTED,03/05/2023,489.6,6223-Internal Foster Carers-Carer Fees,TRANSFER PAYMENTS,CHILDREN SOCIAL SERVICES CLIENT,REVENUE
Walsall Council,http://opendatacommunities.org/id/metropolitan-district-council/walsall ,WC150-561,31.05.2023,CHILDRENS,REDACTED,03/05/2023,676,6223-Foster Carers Maintenance Allowance,TRANSFER PAYMENTS,CHILDREN SOCIAL SERVICES CLIENT,REVENUE
Walsall Council,http://opendatacommunities.org/id/metropolitan-district-council/walsall ,WC150-562,31.05.2023,RESOURCES AND TRANSFORMATION CAPITAL,AGILISYS LTD,03/05/2023,"12,334.52",7300-Consultants Fees,CAPITAL,"NEW CONSTRUCTION,CONVERSION & RENOVATION",CAPITAL
Walsall Council,http://opendatacommunities.org/id/metropolitan-district-council/walsall ,WC150-563,31.05.2023,RESOURCES AND TRANSFORMATION CAPITAL,AGILISYS LTD,31/05/2023,"12,334.52",7300-Consultants Fees,CAPITAL,"NEW CONSTRUCTION,CONVERSION & RENOVATION",CAPITAL
Walsall Council,http://opendatacommunities.org/id/metropolitan-district-council/walsall ,WC150-564,31.05.2023,ADULT SOCIAL CARE,REDACTED,03/05/2023,"2,830.62",6541-Direct Payment,THIRD PARTY PAYMENTS,PRIVATE CONTRACTOR,REVENUE
Walsall Council,http://opendatacommunities.org/id/metropolitan-district-council/walsall ,WC150-565,31.05.2023,ADULT SOCIAL CARE,REDACTED,03/05/2023,"1,019.04",6541-Direct Payment,THIRD PARTY PAYMENTS,PRIVATE CONTRACTOR,REVENUE
Walsall Council,http://opendatacommunities.org/id/metropolitan-district-council/walsall ,WC150-566,31.05.2023,ADULT SOCIAL CARE,REDACTED,03/05/2023,484.44,6541-Direct Payment,THIRD PARTY PAYMENTS,PRIVATE CONTRACTOR,REVENUE
Walsall Council,http://opendatacommunities.org/id/metropolitan-district-council/walsall ,WC150-567,31.05.2023,ADULT SOCIAL CARE,REDACTED,03/05/2023,948.64,6541-Direct Payment,THIRD PARTY PAYMENTS,PRIVATE CONTRACTOR,REVENUE
Walsall Council,http://opendatacommunities.org/id/metropolitan-district-council/walsall ,WC150-568,31.05.2023,"ECONOMY, ENVIRONMENT & COMMUNITIES",ALBERT JAGGER LTD,04/05/2023,316,6410-Materials to Stores,SUPPLIES & SERVICES,EQUIPMENT FURNITURE & MATERIALS,REVENUE
Walsall Council,http://opendatacommunities.org/id/metropolitan-district-council/walsall ,WC150-569,31.05.2023,CHILDRENS,ALDRIDGE & BARONS LIMITED,22/05/2023,"1,968.12",6241-Hire of Vehicle with Driver,TRANSPORT,DIRECT TRANSPORT COSTS,REVENUE
Walsall Council,http://opendatacommunities.org/id/metropolitan-district-council/walsall ,WC150-570,31.05.2023,CHILDRENS,ALDRIDGE & BARONS LIMITED,22/05/2023,"1,201.90",6241-Hire of Vehicle with Driver,TRANSPORT,DIRECT TRANSPORT COSTS,REVENUE
Walsall Council,http://opendatacommunities.org/id/metropolitan-district-council/walsall ,WC150-571,31.05.2023,CHILDRENS,ALDRIDGE & BARONS LIMITED,22/05/2023,"1,504.50",6241-Hire of Vehicle with Driver,TRANSPORT,DIRECT TRANSPORT COSTS,REVENUE
Walsall Council,http://opendatacommunities.org/id/metropolitan-district-council/walsall ,WC150-572,31.05.2023,CHILDRENS,ALDRIDGE & BARONS LIMITED,22/05/2023,"1,339.80",6241-Hire of Vehicle with Driver,TRANSPORT,DIRECT TRANSPORT COSTS,REVENUE
Walsall Council,http://opendatacommunities.org/id/metropolitan-district-council/walsall ,WC150-573,31.05.2023,CHILDRENS,ALDRIDGE & BARONS LIMITED,22/05/2023,"1,974.00",6241-Hire of Vehicle with Driver,TRANSPORT,DIRECT TRANSPORT COSTS,REVENUE
Walsall Council,http://opendatacommunities.org/id/metropolitan-district-council/walsall ,WC150-574,31.05.2023,CHILDRENS,ALDRIDGE & BARONS LIMITED,22/05/2023,792,6241-Hire of Vehicle with Driver,TRANSPORT,DIRECT TRANSPORT COSTS,REVENUE
Walsall Council,http://opendatacommunities.org/id/metropolitan-district-council/walsall ,WC150-575,31.05.2023,CHILDRENS,ALDRIDGE & BARONS LIMITED,22/05/2023,"1,680.00",6241-Hire of Vehicle with Driver,TRANSPORT,DIRECT TRANSPORT COSTS,REVENUE
Walsall Council,http://opendatacommunities.org/id/metropolitan-district-council/walsall ,WC150-576,31.05.2023,CHILDRENS,ALDRIDGE & BARONS LIMITED,22/05/2023,"1,983.10",6241-Hire of Vehicle with Driver,TRANSPORT,DIRECT TRANSPORT COSTS,REVENUE
Walsall Council,http://opendatacommunities.org/id/metropolitan-district-council/walsall ,WC150-577,31.05.2023,CHILDRENS,ALDRIDGE & BARONS LIMITED,22/05/2023,"2,021.32",6241-Hire of Vehicle with Driver,TRANSPORT,DIRECT TRANSPORT COSTS,REVENUE
Walsall Council,http://opendatacommunities.org/id/metropolitan-district-council/walsall ,WC150-578,31.05.2023,CHILDRENS,ALDRIDGE & BARONS LIMITED,22/05/2023,"1,638.00",6241-Hire of Vehicle with Driver,TRANSPORT,DIRECT TRANSPORT COSTS,REVENUE
Walsall Council,http://opendatacommunities.org/id/metropolitan-district-council/walsall ,WC150-579,31.05.2023,CHILDRENS,ALDRIDGE & BARONS LIMITED,22/05/2023,"2,520.00",6241-Hire of Vehicle with Driver,TRANSPORT,DIRECT TRANSPORT COSTS,REVENUE
Walsall Council,http://opendatacommunities.org/id/metropolitan-district-council/walsall ,WC150-580,31.05.2023,CHILDRENS,ALDRIDGE & BARONS LIMITED,22/05/2023,"1,450.80",6241-Hire of Vehicle with Driver,TRANSPORT,DIRECT TRANSPORT COSTS,REVENUE
Walsall Council,http://opendatacommunities.org/id/metropolitan-district-council/walsall ,WC150-581,31.05.2023,CHILDRENS,ALDRIDGE & BARONS LIMITED,22/05/2023,"1,470.00",6241-Hire of Vehicle with Driver,TRANSPORT,DIRECT TRANSPORT COSTS,REVENUE
Walsall Council,http://opendatacommunities.org/id/metropolitan-district-council/walsall ,WC150-582,31.05.2023,CHILDRENS,ALDRIDGE & BARONS LIMITED,22/05/2023,"1,689.80",6241-Hire of Vehicle with Driver,TRANSPORT,DIRECT TRANSPORT COSTS,REVENUE
Walsall Council,http://opendatacommunities.org/id/metropolitan-district-council/walsall ,WC150-583,31.05.2023,CHILDRENS,ALDRIDGE & BARONS LIMITED,22/05/2023,"2,594.00",6241-Hire of Vehicle with Driver,TRANSPORT,DIRECT TRANSPORT COSTS,REVENUE
Walsall Council,http://opendatacommunities.org/id/metropolitan-district-council/walsall ,WC150-584,31.05.2023,CHILDRENS,ALDRIDGE & BARONS LIMITED,22/05/2023,"1,690.00",6241-Hire of Vehicle with Driver,TRANSPORT,DIRECT TRANSPORT COSTS,REVENUE
Walsall Council,http://opendatacommunities.org/id/metropolitan-district-council/walsall ,WC150-585,31.05.2023,CHILDRENS,ALDRIDGE & BARONS LIMITED,22/05/2023,"2,177.28",6241-Hire of Vehicle with Driver,TRANSPORT,DIRECT TRANSPORT COSTS,REVENUE
Walsall Council,http://opendatacommunities.org/id/metropolitan-district-council/walsall ,WC150-586,31.05.2023,CHILDRENS,ALDRIDGE & BARONS LIMITED,22/05/2023,"2,100.00",6241-Hire of Vehicle with Driver,TRANSPORT,DIRECT TRANSPORT COSTS,REVENUE
Walsall Council,http://opendatacommunities.org/id/metropolitan-district-council/walsall ,WC150-587,31.05.2023,CHILDRENS,ALDRIDGE & BARONS LIMITED,22/05/2023,"1,820.00",6241-Hire of Vehicle with Driver,TRANSPORT,DIRECT TRANSPORT COSTS,REVENUE
Walsall Council,http://opendatacommunities.org/id/metropolitan-district-council/walsall ,WC150-588,31.05.2023,CHILDRENS,ALDRIDGE & BARONS LIMITED,22/05/2023,"1,430.00",6241-Hire of Vehicle with Driver,TRANSPORT,DIRECT TRANSPORT COSTS,REVENUE
Walsall Council,http://opendatacommunities.org/id/metropolitan-district-council/walsall ,WC150-589,31.05.2023,CHILDRENS,ALDRIDGE & BARONS LIMITED,22/05/2023,"1,765.00",6241-Hire of Vehicle with Driver,TRANSPORT,DIRECT TRANSPORT COSTS,REVENUE
Walsall Council,http://opendatacommunities.org/id/metropolitan-district-council/walsall ,WC150-590,31.05.2023,CHILDRENS,ALDRIDGE & BARONS LIMITED,22/05/2023,"1,794.00",6241-Hire of Vehicle with Driver,TRANSPORT,DIRECT TRANSPORT COSTS,REVENUE
Walsall Council,http://opendatacommunities.org/id/metropolitan-district-council/walsall ,WC150-591,31.05.2023,CHILDRENS,ALDRIDGE & BARONS LIMITED,22/05/2023,"1,375.00",6241-Hire of Vehicle with Driver,TRANSPORT,DIRECT TRANSPORT COSTS,REVENUE
Walsall Council,http://opendatacommunities.org/id/metropolitan-district-council/walsall ,WC150-592,31.05.2023,CHILDRENS,ALDRIDGE & BARONS LIMITED,22/05/2023,"2,061.80",6241-Hire of Vehicle with Driver,TRANSPORT,DIRECT TRANSPORT COSTS,REVENUE
Walsall Council,http://opendatacommunities.org/id/metropolitan-district-council/walsall ,WC150-593,31.05.2023,CHILDRENS,ALDRIDGE & BARONS LIMITED,22/05/2023,"1,260.00",6241-Hire of Vehicle with Driver,TRANSPORT,DIRECT TRANSPORT COSTS,REVENUE
Walsall Council,http://opendatacommunities.org/id/metropolitan-district-council/walsall ,WC150-594,31.05.2023,CHILDRENS,ALDRIDGE & BARONS LIMITED,22/05/2023,"1,080.00",6241-Hire of Vehicle with Driver,TRANSPORT,DIRECT TRANSPORT COSTS,REVENUE
Walsall Council,http://opendatacommunities.org/id/metropolitan-district-council/walsall ,WC150-595,31.05.2023,CHILDRENS,ALDRIDGE & BARONS LIMITED,22/05/2023,"1,386.00",6241-Hire of Vehicle with Driver,TRANSPORT,DIRECT TRANSPORT COSTS,REVENUE
Walsall Council,http://opendatacommunities.org/id/metropolitan-district-council/walsall ,WC150-596,31.05.2023,CHILDRENS,ALDRIDGE & BARONS LIMITED,22/05/2023,"2,100.00",6241-Hire of Vehicle with Driver,TRANSPORT,DIRECT TRANSPORT COSTS,REVENUE
Walsall Council,http://opendatacommunities.org/id/metropolitan-district-council/walsall ,WC150-597,31.05.2023,CHILDRENS,ALDRIDGE & BARONS LIMITED,22/05/2023,"1,440.00",6241-Hire of Vehicle with Driver,TRANSPORT,DIRECT TRANSPORT COSTS,REVENUE
Walsall Council,http://opendatacommunities.org/id/metropolitan-district-council/walsall ,WC150-598,31.05.2023,CHILDRENS,ALDRIDGE & BARONS LIMITED,22/05/2023,"1,750.00",6241-Hire of Vehicle with Driver,TRANSPORT,DIRECT TRANSPORT COSTS,REVENUE
Walsall Council,http://opendatacommunities.org/id/metropolitan-district-council/walsall ,WC150-599,31.05.2023,CHILDRENS,ALDRIDGE & BARONS LIMITED,22/05/2023,"1,750.00",6241-Hire of Vehicle with Driver,TRANSPORT,DIRECT TRANSPORT COSTS,REVENUE
Walsall Council,http://opendatacommunities.org/id/metropolitan-district-council/walsall ,WC150-600,31.05.2023,CHILDRENS,ALDRIDGE PREMIER TUITION LTD,05/05/2023,520,1220-Professional Fees & Services,SUPPLIES & SERVICES,SERVICES,REVENUE
Walsall Council,http://opendatacommunities.org/id/metropolitan-district-council/walsall ,WC150-601,31.05.2023,CHILDRENS,ALDRIDGE PREMIER TUITION LTD,05/05/2023,"5,508.50",1220-Professional Fees & Services,SUPPLIES & SERVICES,SERVICES,REVENUE
Walsall Council,http://opendatacommunities.org/id/metropolitan-district-council/walsall ,WC150-602,31.05.2023,CHILDRENS,ALDRIDGE PREMIER TUITION LTD,05/05/2023,400,1220-Professional Fees & Services,SUPPLIES & SERVICES,SERVICES,REVENUE
Walsall Council,http://opendatacommunities.org/id/metropolitan-district-council/walsall ,WC150-603,31.05.2023,ADULT SOCIAL CARE,REDACTED,03/05/2023,"1,551.36",6541-Direct Payment,THIRD PARTY PAYMENTS,PRIVATE CONTRACTOR,REVENUE
Walsall Council,http://opendatacommunities.org/id/metropolitan-district-council/walsall ,WC150-604,31.05.2023,ADULT SOCIAL CARE,ALEXANDRA HOUSE CARE SERVICES LTD T/A STONEBRIDGE NURSING HOME,09/05/2023,"7,546.24",6541-Residential,THIRD PARTY PAYMENTS,PRIVATE CONTRACTOR,REVENUE
Walsall Council,http://opendatacommunities.org/id/metropolitan-district-council/walsall ,WC150-605,31.05.2023,ADULT SOCIAL CARE,ALEXANDRA HOUSE SUPPORT SERVICES LTD,09/05/2023,"5,936.00",6541-Residential,THIRD PARTY PAYMENTS,PRIVATE CONTRACTOR,REVENUE
Walsall Council,http://opendatacommunities.org/id/metropolitan-district-council/walsall ,WC150-606,31.05.2023,ADULT SOCIAL CARE,REDACTED,03/05/2023,993.52,6541-Direct Payment,THIRD PARTY PAYMENTS,PRIVATE CONTRACTOR,REVENUE
Walsall Council,http://opendatacommunities.org/id/metropolitan-district-council/walsall ,WC150-607,31.05.2023,CHILDRENS,REDACTED,03/05/2023,355.56,6223-Special Guardianship Orders,TRANSFER PAYMENTS,CHILDREN SOCIAL SERVICES CLIENT,REVENUE
Walsall Council,http://opendatacommunities.org/id/metropolitan-district-council/walsall ,WC150-608,31.05.2023,ADULT SOCIAL CARE,REDACTED,03/05/2023,944,6541-Direct Payment,THIRD PARTY PAYMENTS,PRIVATE CONTRACTOR,REVENUE
Walsall Council,http://opendatacommunities.org/id/metropolitan-district-council/walsall ,WC150-609,31.05.2023,RESOURCES AND TRANSFORMATION,ALLIANCE DISPOSABLES LTD,04/05/2023,838.62,6413-Repair & Maintenance of Furniture & Equipment,SUPPLIES & SERVICES,EQUIPMENT FURNITURE & MATERIALS,REVENUE
Walsall Council,http://opendatacommunities.org/id/metropolitan-district-council/walsall ,WC150-610,31.05.2023,ECONOMY & ENVIRONMENT CAPITAL,ALLIANCE LEISURE SERVICES LTD,19/05/2023,"120,814.13",7200-Site Works Contractors,CAPITAL,"NEW CONSTRUCTION,CONVERSION & RENOVATION",CAPITAL
Walsall Council,http://opendatacommunities.org/id/metropolitan-district-council/walsall ,WC150-611,31.05.2023,RESOURCES AND TRANSFORMATION,ALLIED PUBLICITY SERVICES (MANCHESTER) LIMITED T/A APS GROUP,05/05/2023,"-1,838.58",6312-External Printing Services,SUPPLIES & SERVICES,PRINTING STATIONERY & GENERAL OFFICE,REVENUE
Walsall Council,http://opendatacommunities.org/id/metropolitan-district-council/walsall ,WC150-612,31.05.2023,RESOURCES AND TRANSFORMATION,ALLIED PUBLICITY SERVICES (MANCHESTER) LIMITED T/A APS GROUP,05/05/2023,"1,838.58",6312-External Printing Services,SUPPLIES & SERVICES,PRINTING STATIONERY & GENERAL OFFICE,REVENUE
Walsall Council,http://opendatacommunities.org/id/metropolitan-district-council/walsall ,WC150-613,31.05.2023,ADULT SOCIAL CARE,ALMA COURT,09/05/2023,"4,805.72",6541-Nursing EMI,THIRD PARTY PAYMENTS,PRIVATE CONTRACTOR,REVENUE
Walsall Council,http://opendatacommunities.org/id/metropolitan-district-council/walsall ,WC150-614,31.05.2023,ADULT SOCIAL CARE,ALMA COURT,09/05/2023,"4,263.00",6541-Residential,THIRD PARTY PAYMENTS,PRIVATE CONTRACTOR,REVENUE
Walsall Council,http://opendatacommunities.org/id/metropolitan-district-council/walsall ,WC150-615,31.05.2023,ADULT SOCIAL CARE,ALMA COURT,09/05/2023,"4,000.00",6541-Nursing EMI,THIRD PARTY PAYMENTS,PRIVATE CONTRACTOR,REVENUE
Walsall Council,http://opendatacommunities.org/id/metropolitan-district-council/walsall ,WC150-616,31.05.2023,ADULT SOCIAL CARE,ALMA COURT,09/05/2023,"6,718.40",6541-Residential,THIRD PARTY PAYMENTS,PRIVATE CONTRACTOR,REVENUE
Walsall Council,http://opendatacommunities.org/id/metropolitan-district-council/walsall ,WC150-617,31.05.2023,ADULT SOCIAL CARE,ALMA COURT,09/05/2023,"5,211.43",6541-Nursing EMI,THIRD PARTY PAYMENTS,PRIVATE CONTRACTOR,REVENUE
Walsall Council,http://opendatacommunities.org/id/metropolitan-district-council/walsall ,WC150-618,31.05.2023,ADULT SOCIAL CARE,ALMA COURT,09/05/2023,"4,800.00",6541-Residential,THIRD PARTY PAYMENTS,PRIVATE CONTRACTOR,REVENUE
Walsall Council,http://opendatacommunities.org/id/metropolitan-district-council/walsall ,WC150-619,31.05.2023,CHILDRENS,ALMOZENE NURSERY & CHILDRENS CENTRE,25/05/2023,"1,880.29",1184-Other-Grants to Other Orgs,SUPPLIES & SERVICES,GRANTS (EXP) & SUBSCRIPTIONS,REVENUE
Walsall Council,http://opendatacommunities.org/id/metropolitan-district-council/walsall ,WC150-620,31.05.2023,CHILDRENS,ALMOZENE NURSERY & CHILDRENS CENTRE,25/05/2023,"6,396.98",1184-Other-Grants to Other Orgs,SUPPLIES & SERVICES,GRANTS (EXP) & SUBSCRIPTIONS,REVENUE
Walsall Council,http://opendatacommunities.org/id/metropolitan-district-council/walsall ,WC150-621,31.05.2023,ADULT SOCIAL CARE,ALPHA HEALTH CARE LTD,09/05/2023,"7,105.00",6541-Residential,THIRD PARTY PAYMENTS,PRIVATE CONTRACTOR,REVENUE
Walsall Council,http://opendatacommunities.org/id/metropolitan-district-council/walsall ,WC150-622,31.05.2023,ADULT SOCIAL CARE,ALPHA HEALTH CARE LTD,09/05/2023,"3,374.96",6541-Residential EMI,THIRD PARTY PAYMENTS,PRIVATE CONTRACTOR,REVENUE
Walsall Council,http://opendatacommunities.org/id/metropolitan-district-council/walsall ,WC150-623,31.05.2023,ADULT SOCIAL CARE,ALPHA HEALTH CARE LTD,09/05/2023,"3,374.96",6541-Residential EMI,THIRD PARTY PAYMENTS,PRIVATE CONTRACTOR,REVENUE
Walsall Council,http://opendatacommunities.org/id/metropolitan-district-council/walsall ,WC150-624,31.05.2023,ADULT SOCIAL CARE,ALPHA HEALTH CARE LTD,09/05/2023,"7,600.00",6541-Residential,THIRD PARTY PAYMENTS,PRIVATE CONTRACTOR,REVENUE
Walsall Council,http://opendatacommunities.org/id/metropolitan-district-council/walsall ,WC150-625,31.05.2023,ADULT SOCIAL CARE,ALPHA HEALTH CARE LTD,09/05/2023,"7,600.00",6541-Residential,THIRD PARTY PAYMENTS,PRIVATE CONTRACTOR,REVENUE
Walsall Council,http://opendatacommunities.org/id/metropolitan-district-council/walsall ,WC150-626,31.05.2023,ADULT SOCIAL CARE,ALPHA HEALTH CARE LTD,09/05/2023,"2,366.04",6541-Residential EMI,THIRD PARTY PAYMENTS,PRIVATE CONTRACTOR,REVENUE
Walsall Council,http://opendatacommunities.org/id/metropolitan-district-council/walsall ,WC150-627,31.05.2023,ADULT SOCIAL CARE,ALPHA HEALTH CARE LTD,09/05/2023,"2,998.00",6541-Nursing,THIRD PARTY PAYMENTS,PRIVATE CONTRACTOR,REVENUE
Walsall Council,http://opendatacommunities.org/id/metropolitan-district-council/walsall ,WC150-628,31.05.2023,ADULT SOCIAL CARE,ALPHA HEALTH CARE LTD,09/05/2023,"3,667.80",6541-Nursing EMI,THIRD PARTY PAYMENTS,PRIVATE CONTRACTOR,REVENUE
Walsall Council,http://opendatacommunities.org/id/metropolitan-district-council/walsall ,WC150-629,31.05.2023,ADULT SOCIAL CARE,ALPHA HEALTH CARE LTD,09/05/2023,"3,958.52",6541-Residential,THIRD PARTY PAYMENTS,PRIVATE CONTRACTOR,REVENUE
Walsall Council,http://opendatacommunities.org/id/metropolitan-district-council/walsall ,WC150-630,31.05.2023,ADULT SOCIAL CARE,ALPHA HEALTH CARE LTD,09/05/2023,"4,120.00",6541-Nursing EMI,THIRD PARTY PAYMENTS,PRIVATE CONTRACTOR,REVENUE
Walsall Council,http://opendatacommunities.org/id/metropolitan-district-council/walsall ,WC150-631,31.05.2023,ADULT SOCIAL CARE,ALPHA HEALTH CARE LTD,09/05/2023,"1,289.56",6541-Nursing,THIRD PARTY PAYMENTS,PRIVATE CONTRACTOR,REVENUE
Walsall Council,http://opendatacommunities.org/id/metropolitan-district-council/walsall ,WC150-632,31.05.2023,ADULT SOCIAL CARE,ALPHA HEALTH CARE LTD,09/05/2023,"3,090.44",6541-Residential,THIRD PARTY PAYMENTS,PRIVATE CONTRACTOR,REVENUE
Walsall Council,http://opendatacommunities.org/id/metropolitan-district-council/walsall ,WC150-633,31.05.2023,ADULT SOCIAL CARE,ALPHA HEALTH CARE LTD,09/05/2023,"3,520.00",6541-Residential EMI,THIRD PARTY PAYMENTS,PRIVATE CONTRACTOR,REVENUE
Walsall Council,http://opendatacommunities.org/id/metropolitan-district-council/walsall ,WC150-634,31.05.2023,ADULT SOCIAL CARE,ALPHA HEALTH CARE LTD,09/05/2023,"2,889.52",6541-Residential EMI,THIRD PARTY PAYMENTS,PRIVATE CONTRACTOR,REVENUE
Walsall Council,http://opendatacommunities.org/id/metropolitan-district-council/walsall ,WC150-635,31.05.2023,ADULT SOCIAL CARE,ALPHA HEALTH CARE LTD,09/05/2023,"2,763.80",6541-Nursing EMI,THIRD PARTY PAYMENTS,PRIVATE CONTRACTOR,REVENUE
Walsall Council,http://opendatacommunities.org/id/metropolitan-district-council/walsall ,WC150-636,31.05.2023,ADULT SOCIAL CARE,ALPHA HEALTH CARE LTD,09/05/2023,"4,800.00",6541-Nursing EMI,THIRD PARTY PAYMENTS,PRIVATE CONTRACTOR,REVENUE
Walsall Council,http://opendatacommunities.org/id/metropolitan-district-council/walsall ,WC150-637,31.05.2023,ADULT SOCIAL CARE,ALPHA HEALTH CARE LTD,09/05/2023,"1,028.57",6554-Professional Services-Priv Contractor & Other Agencies,THIRD PARTY PAYMENTS,PRIVATE CONTRACTOR,REVENUE
Walsall Council,http://opendatacommunities.org/id/metropolitan-district-council/walsall ,WC150-638,31.05.2023,ADULT SOCIAL CARE,ALPHA HEALTH CARE LTD,09/05/2023,"2,321.43",6541-Nursing EMI,THIRD PARTY PAYMENTS,PRIVATE CONTRACTOR,REVENUE
Walsall Council,http://opendatacommunities.org/id/metropolitan-district-council/walsall ,WC150-639,31.05.2023,ADULT SOCIAL CARE,ALPHA HEALTH CARE LTD,09/05/2023,"6,343.36",6541-Residential,THIRD PARTY PAYMENTS,PRIVATE CONTRACTOR,REVENUE
Walsall Council,http://opendatacommunities.org/id/metropolitan-district-council/walsall ,WC150-640,31.05.2023,ADULT SOCIAL CARE,ALPHA HEALTH CARE LTD,09/05/2023,"3,085.88",6541-Nursing,THIRD PARTY PAYMENTS,PRIVATE CONTRACTOR,REVENUE
Walsall Council,http://opendatacommunities.org/id/metropolitan-district-council/walsall ,WC150-641,31.05.2023,ADULT SOCIAL CARE,ALPHA HEALTH CARE LTD,09/05/2023,"2,856.24",6541-Nursing,THIRD PARTY PAYMENTS,PRIVATE CONTRACTOR,REVENUE
Walsall Council,http://opendatacommunities.org/id/metropolitan-district-council/walsall ,WC150-642,31.05.2023,ADULT SOCIAL CARE,ALPHA HEALTH CARE LTD,09/05/2023,"2,366.04",6541-Residential EMI,THIRD PARTY PAYMENTS,PRIVATE CONTRACTOR,REVENUE
Walsall Council,http://opendatacommunities.org/id/metropolitan-district-council/walsall ,WC150-643,31.05.2023,ADULT SOCIAL CARE,ALPHA HEALTH CARE LTD,09/05/2023,"11,314.29",6541-Nursing,THIRD PARTY PAYMENTS,PRIVATE CONTRACTOR,REVENUE
Walsall Council,http://opendatacommunities.org/id/metropolitan-district-council/walsall ,WC150-644,31.05.2023,ADULT SOCIAL CARE,ALPHA HEALTH CARE LTD,09/05/2023,"5,505.72",6541-Residential EMI,THIRD PARTY PAYMENTS,PRIVATE CONTRACTOR,REVENUE
Walsall Council,http://opendatacommunities.org/id/metropolitan-district-council/walsall ,WC150-645,31.05.2023,ADULT SOCIAL CARE,ALPHA HEALTH CARE LTD,09/05/2023,"7,067.80",6541-Nursing EMI,THIRD PARTY PAYMENTS,PRIVATE CONTRACTOR,REVENUE
Walsall Council,http://opendatacommunities.org/id/metropolitan-district-council/walsall ,WC150-646,31.05.2023,ADULT SOCIAL CARE,ALPHA HEALTH CARE LTD,09/05/2023,"3,132.12",6541-Nursing EMI,THIRD PARTY PAYMENTS,PRIVATE CONTRACTOR,REVENUE
Walsall Council,http://opendatacommunities.org/id/metropolitan-district-council/walsall ,WC150-647,31.05.2023,ADULT SOCIAL CARE,ALPHA HEALTH CARE LTD,09/05/2023,"3,398.04",6541-Residential EMI,THIRD PARTY PAYMENTS,PRIVATE CONTRACTOR,REVENUE
Walsall Council,http://opendatacommunities.org/id/metropolitan-district-council/walsall ,WC150-648,31.05.2023,ADULT SOCIAL CARE,ALPHA HEALTH CARE LTD,09/05/2023,"2,766.04",6541-Residential EMI,THIRD PARTY PAYMENTS,PRIVATE CONTRACTOR,REVENUE
Walsall Council,http://opendatacommunities.org/id/metropolitan-district-council/walsall ,WC150-649,31.05.2023,ADULT SOCIAL CARE,ALPHA HEALTH CARE LTD,09/05/2023,"3,980.00",6541-Residential EMI,THIRD PARTY PAYMENTS,PRIVATE CONTRACTOR,REVENUE
Walsall Council,http://opendatacommunities.org/id/metropolitan-district-council/walsall ,WC150-650,31.05.2023,ADULT SOCIAL CARE,ALPHA HEALTH CARE LTD,09/05/2023,"7,600.00",6541-Nursing EMI,THIRD PARTY PAYMENTS,PRIVATE CONTRACTOR,REVENUE
Walsall Council,http://opendatacommunities.org/id/metropolitan-district-council/walsall ,WC150-651,31.05.2023,CHILDRENS,ALPHA TRAINING ACADEMY UK LTD,05/05/2023,"3,666.67",1220-Top Up Funding -Grants to Schools,SUPPLIES & SERVICES,GRANTS (EXP) & SUBSCRIPTIONS,REVENUE
Walsall Council,http://opendatacommunities.org/id/metropolitan-district-council/walsall ,WC150-652,31.05.2023,CHILDRENS,ALPHA TRAINING ACADEMY UK LTD,05/05/2023,"1,111.00",1220-Top Up Funding -Grants to Schools,SUPPLIES & SERVICES,GRANTS (EXP) & SUBSCRIPTIONS,REVENUE
Walsall Council,http://opendatacommunities.org/id/metropolitan-district-council/walsall ,WC150-653,31.05.2023,CHILDRENS,ALPHABIOLABS,05/05/2023,314,6222-Professional Fees & Services,SUPPLIES & SERVICES,SERVICES,REVENUE
Walsall Council,http://opendatacommunities.org/id/metropolitan-district-council/walsall ,WC150-654,31.05.2023,CHILDRENS,ALPHABIOLABS,05/05/2023,895,6222-Professional Fees & Services,SUPPLIES & SERVICES,SERVICES,REVENUE
Walsall Council,http://opendatacommunities.org/id/metropolitan-district-council/walsall ,WC150-655,31.05.2023,CHILDRENS,ALPHABIOLABS,17/05/2023,350,6220-School Only Payments - Catering,THIRD PARTY PAYMENTS,INDEPENDENT UNIT WITHIN COUNCIL,REVENUE
Walsall Council,http://opendatacommunities.org/id/metropolitan-district-council/walsall ,WC150-656,31.05.2023,CHILDRENS,ALPHABIOLABS,09/05/2023,293.49,6220-School Only Payments - Catering,THIRD PARTY PAYMENTS,INDEPENDENT UNIT WITHIN COUNCIL,REVENUE
Walsall Council,http://opendatacommunities.org/id/metropolitan-district-council/walsall ,WC150-657,31.05.2023,CHILDRENS,ALPHABIOLABS,17/05/2023,413.75,6220-School Only Payments - Catering,THIRD PARTY PAYMENTS,INDEPENDENT UNIT WITHIN COUNCIL,REVENUE
Walsall Council,http://opendatacommunities.org/id/metropolitan-district-council/walsall ,WC150-658,31.05.2023,CHILDRENS,ALPHABIOLABS,17/05/2023,310,6220-School Only Payments - Catering,THIRD PARTY PAYMENTS,INDEPENDENT UNIT WITHIN COUNCIL,REVENUE
Walsall Council,http://opendatacommunities.org/id/metropolitan-district-council/walsall ,WC150-659,31.05.2023,CHILDRENS,ALPHABIOLABS,05/05/2023,690,6222-Professional Fees & Services,SUPPLIES & SERVICES,SERVICES,REVENUE
Walsall Council,http://opendatacommunities.org/id/metropolitan-district-council/walsall ,WC150-660,31.05.2023,ADULT SOCIAL CARE,REDACTED,03/05/2023,625.12,6541-Direct Payment,THIRD PARTY PAYMENTS,PRIVATE CONTRACTOR,REVENUE
Walsall Council,http://opendatacommunities.org/id/metropolitan-district-council/walsall ,WC150-661,31.05.2023,CHILDRENS,AMAH NURSERIES LIMITED T/A BANANA MOON WALSALL,25/05/2023,"7,554.21",1184-Other-Grants to Other Orgs,SUPPLIES & SERVICES,GRANTS (EXP) & SUBSCRIPTIONS,REVENUE
Walsall Council,http://opendatacommunities.org/id/metropolitan-district-council/walsall ,WC150-662,31.05.2023,CHILDRENS,AMAH NURSERIES LIMITED T/A BANANA MOON WALSALL,25/05/2023,"10,187.78",1184-Other-Grants to Other Orgs,SUPPLIES & SERVICES,GRANTS (EXP) & SUBSCRIPTIONS,REVENUE
Walsall Council,http://opendatacommunities.org/id/metropolitan-district-council/walsall ,WC150-663,31.05.2023,CHILDRENS,LITTLE BLOSSOMS CHILDMINDING,18/05/2023,320,6223-Creche Facilities,SUPPLIES & SERVICES,SERVICES,REVENUE
Walsall Council,http://opendatacommunities.org/id/metropolitan-district-council/walsall ,WC150-664,31.05.2023,CHILDRENS,LITTLE BLOSSOMS CHILDMINDING,19/05/2023,320,6223-Creche Facilities,SUPPLIES & SERVICES,SERVICES,REVENUE
Walsall Council,http://opendatacommunities.org/id/metropolitan-district-council/walsall ,WC150-665,31.05.2023,CHILDRENS,LITTLE BLOSSOMS CHILDMINDING,19/05/2023,400,6223-Creche Facilities,SUPPLIES & SERVICES,SERVICES,REVENUE
Walsall Council,http://opendatacommunities.org/id/metropolitan-district-council/walsall ,WC150-666,31.05.2023,CHILDRENS,LITTLE BLOSSOMS CHILDMINDING,18/05/2023,344,6223-Creche Facilities,SUPPLIES & SERVICES,SERVICES,REVENUE
Walsall Council,http://opendatacommunities.org/id/metropolitan-district-council/walsall ,WC150-667,31.05.2023,CHILDRENS,AMANS TRAVEL LTD,22/05/2023,"2,660.00",6241-Hire of Vehicle with Driver,TRANSPORT,DIRECT TRANSPORT COSTS,REVENUE
Walsall Council,http://opendatacommunities.org/id/metropolitan-district-council/walsall ,WC150-668,31.05.2023,CHILDRENS,AMANS TRAVEL LTD,22/05/2023,"1,890.00",6241-Hire of Vehicle with Driver,TRANSPORT,DIRECT TRANSPORT COSTS,REVENUE
Walsall Council,http://opendatacommunities.org/id/metropolitan-district-council/walsall ,WC150-669,31.05.2023,CHILDRENS,AMANS TRAVEL LTD,22/05/2023,"2,660.00",6241-Hire of Vehicle with Driver,TRANSPORT,DIRECT TRANSPORT COSTS,REVENUE
Walsall Council,http://opendatacommunities.org/id/metropolitan-district-council/walsall ,WC150-670,31.05.2023,CHILDRENS,AMANS TRAVEL LTD,22/05/2023,"2,940.00",6241-Hire of Vehicle with Driver,TRANSPORT,DIRECT TRANSPORT COSTS,REVENUE
Walsall Council,http://opendatacommunities.org/id/metropolitan-district-council/walsall ,WC150-671,31.05.2023,CHILDRENS,AMANS TRAVEL LTD,22/05/2023,"1,890.00",6241-Hire of Vehicle with Driver,TRANSPORT,DIRECT TRANSPORT COSTS,REVENUE
Walsall Council,http://opendatacommunities.org/id/metropolitan-district-council/walsall ,WC150-672,31.05.2023,ADULT SOCIAL CARE,REDACTED,03/05/2023,"1,837.68",6541-Direct Payment,THIRD PARTY PAYMENTS,PRIVATE CONTRACTOR,REVENUE
Walsall Council,http://opendatacommunities.org/id/metropolitan-district-council/walsall ,WC150-673,31.05.2023,ECONOMY & ENVIRONMENT CAPITAL,AMEY LG LIMITED,04/05/2023,"13,241.63",7200-Site Works Contractors,CAPITAL,"NEW CONSTRUCTION,CONVERSION & RENOVATION",CAPITAL
Walsall Council,http://opendatacommunities.org/id/metropolitan-district-council/walsall ,WC150-674,31.05.2023,"ECONOMY, ENVIRONMENT & COMMUNITIES",AMEY LG LIMITED,02/05/2023,"3,208.45",6430-Repair & Maintenance of Furniture & Equipment,SUPPLIES & SERVICES,EQUIPMENT FURNITURE & MATERIALS,REVENUE
Walsall Council,http://opendatacommunities.org/id/metropolitan-district-council/walsall ,WC150-675,31.05.2023,"ECONOMY, ENVIRONMENT & COMMUNITIES",AMEY LG LIMITED,31/05/2023,"1,876.75",6411-Repair & Maintenance of Furniture & Equipment,SUPPLIES & SERVICES,EQUIPMENT FURNITURE & MATERIALS,REVENUE
Walsall Council,http://opendatacommunities.org/id/metropolitan-district-council/walsall ,WC150-676,31.05.2023,ECONOMY & ENVIRONMENT CAPITAL,AMEY LG LIMITED,31/05/2023,"16,454.20",7200-Site Works Contractors,CAPITAL,"NEW CONSTRUCTION,CONVERSION & RENOVATION",CAPITAL
Walsall Council,http://opendatacommunities.org/id/metropolitan-district-council/walsall ,WC150-677,31.05.2023,"ECONOMY, ENVIRONMENT & COMMUNITIES",AMEY OW LTD,17/05/2023,"14,549.89",6411-Professional Fees & Services,SUPPLIES & SERVICES,SERVICES,REVENUE
Walsall Council,http://opendatacommunities.org/id/metropolitan-district-council/walsall ,WC150-678,31.05.2023,ECONOMY & ENVIRONMENT CAPITAL,AMEY OW LTD,17/05/2023,"47,457.68",7200-Project Fees,CAPITAL,"NEW CONSTRUCTION,CONVERSION & RENOVATION",CAPITAL
Walsall Council,http://opendatacommunities.org/id/metropolitan-district-council/walsall ,WC150-679,31.05.2023,ECONOMY & ENVIRONMENT CAPITAL,AMEY OW LTD,16/05/2023,"11,347.41",7200-Site Works Contractors,CAPITAL,"NEW CONSTRUCTION,CONVERSION & RENOVATION",CAPITAL
Walsall Council,http://opendatacommunities.org/id/metropolitan-district-council/walsall ,WC150-680,31.05.2023,ECONOMY & ENVIRONMENT CAPITAL,AMEY OW LTD,16/05/2023,"8,215.76",7200-Project Fees,CAPITAL,"NEW CONSTRUCTION,CONVERSION & RENOVATION",CAPITAL
Walsall Council,http://opendatacommunities.org/id/metropolitan-district-council/walsall ,WC150-681,31.05.2023,CHILDRENS,AMG NURSING CARE SERVICES,31/05/2023,584.1,6220-Professional Fees & Services,SUPPLIES & SERVICES,SERVICES,REVENUE
Walsall Council,http://opendatacommunities.org/id/metropolitan-district-council/walsall ,WC150-682,31.05.2023,CHILDRENS,AMG NURSING CARE SERVICES,31/05/2023,590.9,6220-Professional Fees & Services,SUPPLIES & SERVICES,SERVICES,REVENUE
Walsall Council,http://opendatacommunities.org/id/metropolitan-district-council/walsall ,WC150-683,31.05.2023,CHILDRENS,AMG NURSING CARE SERVICES,31/05/2023,629.2,6220-Professional Fees & Services,SUPPLIES & SERVICES,SERVICES,REVENUE
Walsall Council,http://opendatacommunities.org/id/metropolitan-district-council/walsall ,WC150-684,31.05.2023,CHILDRENS,AMG NURSING CARE SERVICES,31/05/2023,759,6220-Professional Fees & Services,SUPPLIES & SERVICES,SERVICES,REVENUE
Walsall Council,http://opendatacommunities.org/id/metropolitan-district-council/walsall ,WC150-685,31.05.2023,CHILDRENS,AMG NURSING CARE SERVICES,05/05/2023,551.9,6220-Professional Fees & Services,SUPPLIES & SERVICES,SERVICES,REVENUE
Walsall Council,http://opendatacommunities.org/id/metropolitan-district-council/walsall ,WC150-686,31.05.2023,CHILDRENS,AMG NURSING CARE SERVICES,31/05/2023,622.4,6220-Professional Fees & Services,SUPPLIES & SERVICES,SERVICES,REVENUE
Walsall Council,http://opendatacommunities.org/id/metropolitan-district-council/walsall ,WC150-687,31.05.2023,CHILDRENS,AMG NURSING CARE SERVICES,15/05/2023,461,6220-Professional Fees & Services,SUPPLIES & SERVICES,SERVICES,REVENUE
Walsall Council,http://opendatacommunities.org/id/metropolitan-district-council/walsall ,WC150-688,31.05.2023,CHILDRENS,AMG NURSING CARE SERVICES,15/05/2023,436.6,6220-Professional Fees & Services,SUPPLIES & SERVICES,SERVICES,REVENUE
Walsall Council,http://opendatacommunities.org/id/metropolitan-district-council/walsall ,WC150-689,31.05.2023,CHILDRENS,AMG NURSING CARE SERVICES,22/05/2023,461,6220-Professional Fees & Services,SUPPLIES & SERVICES,SERVICES,REVENUE
Walsall Council,http://opendatacommunities.org/id/metropolitan-district-council/walsall ,WC150-690,31.05.2023,CHILDRENS,AMG NURSING CARE SERVICES,31/05/2023,552.6,6220-Professional Fees & Services,SUPPLIES & SERVICES,SERVICES,REVENUE
Walsall Council,http://opendatacommunities.org/id/metropolitan-district-council/walsall ,WC150-691,31.05.2023,CHILDRENS,AMG NURSING CARE SERVICES,31/05/2023,406.6,6220-Professional Fees & Services,SUPPLIES & SERVICES,SERVICES,REVENUE
Walsall Council,http://opendatacommunities.org/id/metropolitan-district-council/walsall ,WC150-692,31.05.2023,CHILDRENS,AMG NURSING CARE SERVICES,31/05/2023,551.9,6220-Professional Fees & Services,SUPPLIES & SERVICES,SERVICES,REVENUE
Walsall Council,http://opendatacommunities.org/id/metropolitan-district-council/walsall ,WC150-693,31.05.2023,CHILDRENS,AMG NURSING CARE SERVICES,31/05/2023,488.35,6220-Professional Fees & Services,SUPPLIES & SERVICES,SERVICES,REVENUE
Walsall Council,http://opendatacommunities.org/id/metropolitan-district-council/walsall ,WC150-694,31.05.2023,CHILDRENS,REDACTED,03/05/2023,840.34,6223-Special Guardianship Orders,TRANSFER PAYMENTS,CHILDREN SOCIAL SERVICES CLIENT,REVENUE
Walsall Council,http://opendatacommunities.org/id/metropolitan-district-council/walsall ,WC150-695,31.05.2023,CHILDRENS,REDACTED,03/05/2023,520.93,6223-Special Guardianship Orders,TRANSFER PAYMENTS,CHILDREN SOCIAL SERVICES CLIENT,REVENUE
Walsall Council,http://opendatacommunities.org/id/metropolitan-district-council/walsall ,WC150-696,31.05.2023,CHILDRENS,REDACTED,03/05/2023,-261.17,6223-Foster Carers Maintenance Allowance,TRANSFER PAYMENTS,CHILDREN SOCIAL SERVICES CLIENT,REVENUE
Walsall Council,http://opendatacommunities.org/id/metropolitan-district-council/walsall ,WC150-697,31.05.2023,ADULT SOCIAL CARE,ANCHOR CAREHOMES LTD - HARDEN HALL,03/05/2023,"4,985.58",6541-Residential EMI,THIRD PARTY PAYMENTS,PRIVATE CONTRACTOR,REVENUE
Walsall Council,http://opendatacommunities.org/id/metropolitan-district-council/walsall ,WC150-698,31.05.2023,ADULT SOCIAL CARE,ANCHOR CAREHOMES LTD - HARDEN HALL,09/05/2023,"2,366.04",6541-Residential EMI,THIRD PARTY PAYMENTS,PRIVATE CONTRACTOR,REVENUE
Walsall Council,http://opendatacommunities.org/id/metropolitan-district-council/walsall ,WC150-699,31.05.2023,ADULT SOCIAL CARE,ANCHOR CAREHOMES LTD - HARDEN HALL,09/05/2023,"2,366.04",6541-Residential EMI,THIRD PARTY PAYMENTS,PRIVATE CONTRACTOR,REVENUE
Walsall Council,http://opendatacommunities.org/id/metropolitan-district-council/walsall ,WC150-700,31.05.2023,ADULT SOCIAL CARE,ANCHOR CAREHOMES LTD - HARDEN HALL,09/05/2023,"2,095.40",6541-Residential,THIRD PARTY PAYMENTS,PRIVATE CONTRACTOR,REVENUE
Walsall Council,http://opendatacommunities.org/id/metropolitan-district-council/walsall ,WC150-701,31.05.2023,ADULT SOCIAL CARE,ANCHOR CAREHOMES LTD - HARDEN HALL,09/05/2023,"2,698.04",6541-Residential EMI,THIRD PARTY PAYMENTS,PRIVATE CONTRACTOR,REVENUE
Walsall Council,http://opendatacommunities.org/id/metropolitan-district-council/walsall ,WC150-702,31.05.2023,ADULT SOCIAL CARE,ANCHOR CAREHOMES LTD - HARDEN HALL,09/05/2023,"2,726.04",6541-Residential EMI,THIRD PARTY PAYMENTS,PRIVATE CONTRACTOR,REVENUE
Walsall Council,http://opendatacommunities.org/id/metropolitan-district-council/walsall ,WC150-703,31.05.2023,ADULT SOCIAL CARE,ANCHOR CAREHOMES LTD - HARDEN HALL,09/05/2023,"2,548.00",6541-Residential EMI,THIRD PARTY PAYMENTS,PRIVATE CONTRACTOR,REVENUE
Walsall Council,http://opendatacommunities.org/id/metropolitan-district-council/walsall ,WC150-704,31.05.2023,ADULT SOCIAL CARE,ANCHOR CAREHOMES LTD - HARDEN HALL,09/05/2023,"2,366.04",6541-Residential EMI,THIRD PARTY PAYMENTS,PRIVATE CONTRACTOR,REVENUE
Walsall Council,http://opendatacommunities.org/id/metropolitan-district-council/walsall ,WC150-705,31.05.2023,ADULT SOCIAL CARE,ANCHOR CAREHOMES LTD - HARDEN HALL,09/05/2023,"2,366.04",6541-Residential EMI,THIRD PARTY PAYMENTS,PRIVATE CONTRACTOR,REVENUE
Walsall Council,http://opendatacommunities.org/id/metropolitan-district-council/walsall ,WC150-706,31.05.2023,ADULT SOCIAL CARE,ANCHOR CAREHOMES LTD - HARDEN HALL,09/05/2023,"2,366.04",6541-Residential EMI,THIRD PARTY PAYMENTS,PRIVATE CONTRACTOR,REVENUE
Walsall Council,http://opendatacommunities.org/id/metropolitan-district-council/walsall ,WC150-707,31.05.2023,ADULT SOCIAL CARE,ANCHOR CAREHOMES LTD - HARDEN HALL,09/05/2023,"2,366.04",6541-Residential EMI,THIRD PARTY PAYMENTS,PRIVATE CONTRACTOR,REVENUE
Walsall Council,http://opendatacommunities.org/id/metropolitan-district-council/walsall ,WC150-708,31.05.2023,ADULT SOCIAL CARE,ANCHOR CAREHOMES LTD - HARDEN HALL,09/05/2023,"2,366.04",6541-Residential EMI,THIRD PARTY PAYMENTS,PRIVATE CONTRACTOR,REVENUE
Walsall Council,http://opendatacommunities.org/id/metropolitan-district-council/walsall ,WC150-709,31.05.2023,ADULT SOCIAL CARE,ANCHOR CAREHOMES LTD - HARDEN HALL,09/05/2023,"2,726.04",6541-Residential EMI,THIRD PARTY PAYMENTS,PRIVATE CONTRACTOR,REVENUE
Walsall Council,http://opendatacommunities.org/id/metropolitan-district-council/walsall ,WC150-710,31.05.2023,ADULT SOCIAL CARE,ANCHOR CAREHOMES LTD - HARDEN HALL,09/05/2023,"2,646.04",6541-Residential EMI,THIRD PARTY PAYMENTS,PRIVATE CONTRACTOR,REVENUE
Walsall Council,http://opendatacommunities.org/id/metropolitan-district-council/walsall ,WC150-711,31.05.2023,ADULT SOCIAL CARE,ANCHOR CAREHOMES LTD - HARDEN HALL,09/05/2023,"2,095.40",6541-Residential,THIRD PARTY PAYMENTS,PRIVATE CONTRACTOR,REVENUE
Walsall Council,http://opendatacommunities.org/id/metropolitan-district-council/walsall ,WC150-712,31.05.2023,ADULT SOCIAL CARE,ANCHOR CAREHOMES LTD - HARDEN HALL,09/05/2023,"2,366.04",6541-Residential EMI,THIRD PARTY PAYMENTS,PRIVATE CONTRACTOR,REVENUE
Walsall Council,http://opendatacommunities.org/id/metropolitan-district-council/walsall ,WC150-713,31.05.2023,ADULT SOCIAL CARE,ANCHOR CAREHOMES LTD - HARDEN HALL,09/05/2023,"2,366.04",6541-Residential EMI,THIRD PARTY PAYMENTS,PRIVATE CONTRACTOR,REVENUE
Walsall Council,http://opendatacommunities.org/id/metropolitan-district-council/walsall ,WC150-714,31.05.2023,ADULT SOCIAL CARE,ANCHOR CAREHOMES LTD - HARDEN HALL,09/05/2023,"2,366.04",6541-Residential EMI,THIRD PARTY PAYMENTS,PRIVATE CONTRACTOR,REVENUE
Walsall Council,http://opendatacommunities.org/id/metropolitan-district-council/walsall ,WC150-715,31.05.2023,ADULT SOCIAL CARE,ANCHOR CAREHOMES LTD - HARDEN HALL,09/05/2023,"2,366.04",6541-Residential EMI,THIRD PARTY PAYMENTS,PRIVATE CONTRACTOR,REVENUE
Walsall Council,http://opendatacommunities.org/id/metropolitan-district-council/walsall ,WC150-716,31.05.2023,ADULT SOCIAL CARE,ANCHOR CAREHOMES LTD - HARDEN HALL,09/05/2023,"2,726.04",6541-Residential EMI,THIRD PARTY PAYMENTS,PRIVATE CONTRACTOR,REVENUE
Walsall Council,http://opendatacommunities.org/id/metropolitan-district-council/walsall ,WC150-717,31.05.2023,ADULT SOCIAL CARE,ANCHOR CAREHOMES LTD - HARDEN HALL,09/05/2023,"2,366.04",6541-Residential EMI,THIRD PARTY PAYMENTS,PRIVATE CONTRACTOR,REVENUE
Walsall Council,http://opendatacommunities.org/id/metropolitan-district-council/walsall ,WC150-718,31.05.2023,ADULT SOCIAL CARE,ANCHOR CAREHOMES LTD - HARDEN HALL,09/05/2023,"2,726.04",6541-Residential EMI,THIRD PARTY PAYMENTS,PRIVATE CONTRACTOR,REVENUE
Walsall Council,http://opendatacommunities.org/id/metropolitan-district-council/walsall ,WC150-719,31.05.2023,ADULT SOCIAL CARE,ANCHOR CAREHOMES LTD - HARDEN HALL,09/05/2023,"2,095.40",6541-Residential,THIRD PARTY PAYMENTS,PRIVATE CONTRACTOR,REVENUE
Walsall Council,http://opendatacommunities.org/id/metropolitan-district-council/walsall ,WC150-720,31.05.2023,ADULT SOCIAL CARE,ANCHOR CAREHOMES LTD - HARDEN HALL,09/05/2023,"2,726.04",6541-Residential EMI,THIRD PARTY PAYMENTS,PRIVATE CONTRACTOR,REVENUE
Walsall Council,http://opendatacommunities.org/id/metropolitan-district-council/walsall ,WC150-721,31.05.2023,ADULT SOCIAL CARE,ANCHOR CAREHOMES LTD - HARDEN HALL,09/05/2023,"2,455.40",6541-Residential,THIRD PARTY PAYMENTS,PRIVATE CONTRACTOR,REVENUE
Walsall Council,http://opendatacommunities.org/id/metropolitan-district-council/walsall ,WC150-722,31.05.2023,ADULT SOCIAL CARE,ANCHOR CAREHOMES LTD - HARDEN HALL,09/05/2023,"2,726.04",6541-Residential EMI,THIRD PARTY PAYMENTS,PRIVATE CONTRACTOR,REVENUE
Walsall Council,http://opendatacommunities.org/id/metropolitan-district-council/walsall ,WC150-723,31.05.2023,ADULT SOCIAL CARE,ANCHOR CAREHOMES LTD - HARDEN HALL,09/05/2023,"2,566.04",6541-Residential EMI,THIRD PARTY PAYMENTS,PRIVATE CONTRACTOR,REVENUE
Walsall Council,http://opendatacommunities.org/id/metropolitan-district-council/walsall ,WC150-724,31.05.2023,ADULT SOCIAL CARE,ANCHOR CAREHOMES LTD - HARDEN HALL,09/05/2023,778.87,6541-Residential EMI,THIRD PARTY PAYMENTS,PRIVATE CONTRACTOR,REVENUE
Walsall Council,http://opendatacommunities.org/id/metropolitan-district-council/walsall ,WC150-725,31.05.2023,ADULT SOCIAL CARE,ANCHOR HANOVER GROUP - BLOOMFIELD COURT,09/05/2023,"2,366.04",6541-Residential EMI,THIRD PARTY PAYMENTS,PRIVATE CONTRACTOR,REVENUE
Walsall Council,http://opendatacommunities.org/id/metropolitan-district-council/walsall ,WC150-726,31.05.2023,CHILDRENS,REDACTED,03/05/2023,355.56,6223-Special Guardianship Orders,TRANSFER PAYMENTS,CHILDREN SOCIAL SERVICES CLIENT,REVENUE
Walsall Council,http://opendatacommunities.org/id/metropolitan-district-council/walsall ,WC150-727,31.05.2023,ADULT SOCIAL CARE,REDACTED,03/05/2023,748.8,6541-Direct Payment,THIRD PARTY PAYMENTS,PRIVATE CONTRACTOR,REVENUE
Walsall Council,http://opendatacommunities.org/id/metropolitan-district-council/walsall ,WC150-728,31.05.2023,ADULT SOCIAL CARE,REDACTED,03/05/2023,"2,811.84",6541-Direct Payment,THIRD PARTY PAYMENTS,PRIVATE CONTRACTOR,REVENUE
Walsall Council,http://opendatacommunities.org/id/metropolitan-district-council/walsall ,WC150-729,31.05.2023,CHILDRENS CAPITAL,ANDREWS ELECTRICAL LTD,11/05/2023,"4,564.00",7155-Site Works Contractors,CAPITAL,"NEW CONSTRUCTION,CONVERSION & RENOVATION",CAPITAL
Walsall Council,http://opendatacommunities.org/id/metropolitan-district-council/walsall ,WC150-730,31.05.2023,CHILDRENS CAPITAL,ANDREWS ELECTRICAL LTD,17/05/2023,"4,430.00",7155-Site Works Contractors,CAPITAL,"NEW CONSTRUCTION,CONVERSION & RENOVATION",CAPITAL
Walsall Council,http://opendatacommunities.org/id/metropolitan-district-council/walsall ,WC150-731,31.05.2023,CHILDRENS CAPITAL,ANDREWS ELECTRICAL LTD,31/05/2023,"10,680.00",7150-Site Works Contractors,CAPITAL,"NEW CONSTRUCTION,CONVERSION & RENOVATION",CAPITAL
Walsall Council,http://opendatacommunities.org/id/metropolitan-district-council/walsall ,WC150-732,31.05.2023,CHILDRENS,REDACTED,03/05/2023,401.32,6223-Special Guardianship Orders,TRANSFER PAYMENTS,CHILDREN SOCIAL SERVICES CLIENT,REVENUE
Walsall Council,http://opendatacommunities.org/id/metropolitan-district-council/walsall ,WC150-733,31.05.2023,CHILDRENS,REDACTED,03/05/2023,352,6223-Special Guardianship Orders,TRANSFER PAYMENTS,CHILDREN SOCIAL SERVICES CLIENT,REVENUE
Walsall Council,http://opendatacommunities.org/id/metropolitan-district-council/walsall ,WC150-734,31.05.2023,CHILDRENS,ANGELS AND BUTTERFLIES CHILDMINDING,25/05/2023,268.61,1184-Other-Grants to Other Orgs,SUPPLIES & SERVICES,GRANTS (EXP) & SUBSCRIPTIONS,REVENUE
Walsall Council,http://opendatacommunities.org/id/metropolitan-district-council/walsall ,WC150-735,31.05.2023,CHILDRENS,ANGELS AND BUTTERFLIES CHILDMINDING,25/05/2023,"1,895.40",1184-Other-Grants to Other Orgs,SUPPLIES & SERVICES,GRANTS (EXP) & SUBSCRIPTIONS,REVENUE
Walsall Council,http://opendatacommunities.org/id/metropolitan-district-council/walsall ,WC150-736,31.05.2023,ADULT SOCIAL CARE,REDACTED,03/05/2023,706.68,6541-Direct Payment,THIRD PARTY PAYMENTS,PRIVATE CONTRACTOR,REVENUE
Walsall Council,http://opendatacommunities.org/id/metropolitan-district-council/walsall ,WC150-737,31.05.2023,ADULT SOCIAL CARE,REDACTED,03/05/2023,294,6541-Shared Lives,THIRD PARTY PAYMENTS,PRIVATE CONTRACTOR,REVENUE
Walsall Council,http://opendatacommunities.org/id/metropolitan-district-council/walsall ,WC150-738,31.05.2023,CHILDRENS,REDACTED,03/05/2023,374,6223-Internal Foster Carers-Carer Fees,TRANSFER PAYMENTS,CHILDREN SOCIAL SERVICES CLIENT,REVENUE
Walsall Council,http://opendatacommunities.org/id/metropolitan-district-council/walsall ,WC150-739,31.05.2023,CHILDRENS,REDACTED,03/05/2023,756,6223-Foster Carers Maintenance Allowance,TRANSFER PAYMENTS,CHILDREN SOCIAL SERVICES CLIENT,REVENUE
Walsall Council,http://opendatacommunities.org/id/metropolitan-district-council/walsall ,WC150-740,31.05.2023,ADULT SOCIAL CARE,REDACTED,03/05/2023,568.48,6541-Direct Payment,THIRD PARTY PAYMENTS,PRIVATE CONTRACTOR,REVENUE
Walsall Council,http://opendatacommunities.org/id/metropolitan-district-council/walsall ,WC150-741,31.05.2023,CHILDRENS,REDACTED,03/05/2023,496.04,6223-Special Guardianship Orders,TRANSFER PAYMENTS,CHILDREN SOCIAL SERVICES CLIENT,REVENUE
Walsall Council,http://opendatacommunities.org/id/metropolitan-district-council/walsall ,WC150-742,31.05.2023,ADULT SOCIAL CARE,ANSON COURT RESIDENTIAL HOME,09/05/2023,"2,366.04",6541-Residential EMI,THIRD PARTY PAYMENTS,PRIVATE CONTRACTOR,REVENUE
Walsall Council,http://opendatacommunities.org/id/metropolitan-district-council/walsall ,WC150-743,31.05.2023,ADULT SOCIAL CARE,ANSON COURT RESIDENTIAL HOME,09/05/2023,760.51,6541-Residential EMI,THIRD PARTY PAYMENTS,PRIVATE CONTRACTOR,REVENUE
Walsall Council,http://opendatacommunities.org/id/metropolitan-district-council/walsall ,WC150-744,31.05.2023,ADULT SOCIAL CARE,ANSON COURT RESIDENTIAL HOME,09/05/2023,"2,366.04",6541-Residential EMI,THIRD PARTY PAYMENTS,PRIVATE CONTRACTOR,REVENUE
Walsall Council,http://opendatacommunities.org/id/metropolitan-district-council/walsall ,WC150-745,31.05.2023,ADULT SOCIAL CARE,ANSON COURT RESIDENTIAL HOME,09/05/2023,"2,366.04",6541-Residential EMI,THIRD PARTY PAYMENTS,PRIVATE CONTRACTOR,REVENUE
Walsall Council,http://opendatacommunities.org/id/metropolitan-district-council/walsall ,WC150-746,31.05.2023,ADULT SOCIAL CARE,ANSON COURT RESIDENTIAL HOME,09/05/2023,"2,366.04",6541-Residential EMI,THIRD PARTY PAYMENTS,PRIVATE CONTRACTOR,REVENUE
Walsall Council,http://opendatacommunities.org/id/metropolitan-district-council/walsall ,WC150-747,31.05.2023,ADULT SOCIAL CARE,ANSON COURT RESIDENTIAL HOME,09/05/2023,"2,366.04",6541-Residential EMI,THIRD PARTY PAYMENTS,PRIVATE CONTRACTOR,REVENUE
Walsall Council,http://opendatacommunities.org/id/metropolitan-district-council/walsall ,WC150-748,31.05.2023,ADULT SOCIAL CARE,ANSON COURT RESIDENTIAL HOME,09/05/2023,"2,366.04",6541-Residential EMI,THIRD PARTY PAYMENTS,PRIVATE CONTRACTOR,REVENUE
Walsall Council,http://opendatacommunities.org/id/metropolitan-district-council/walsall ,WC150-749,31.05.2023,ADULT SOCIAL CARE,ANSON COURT RESIDENTIAL HOME,09/05/2023,"2,366.04",6541-Residential EMI,THIRD PARTY PAYMENTS,PRIVATE CONTRACTOR,REVENUE
Walsall Council,http://opendatacommunities.org/id/metropolitan-district-council/walsall ,WC150-750,31.05.2023,ADULT SOCIAL CARE,ANSON COURT RESIDENTIAL HOME,09/05/2023,"2,215.40",6541-Residential,THIRD PARTY PAYMENTS,PRIVATE CONTRACTOR,REVENUE
Walsall Council,http://opendatacommunities.org/id/metropolitan-district-council/walsall ,WC150-751,31.05.2023,ADULT SOCIAL CARE,ANSON COURT RESIDENTIAL HOME,09/05/2023,"2,095.40",6541-Residential,THIRD PARTY PAYMENTS,PRIVATE CONTRACTOR,REVENUE
Walsall Council,http://opendatacommunities.org/id/metropolitan-district-council/walsall ,WC150-752,31.05.2023,ADULT SOCIAL CARE,ANSON COURT RESIDENTIAL HOME,09/05/2023,"2,366.04",6541-Residential EMI,THIRD PARTY PAYMENTS,PRIVATE CONTRACTOR,REVENUE
Walsall Council,http://opendatacommunities.org/id/metropolitan-district-council/walsall ,WC150-753,31.05.2023,ADULT SOCIAL CARE,ANSON COURT RESIDENTIAL HOME,09/05/2023,"2,366.04",6541-Residential EMI,THIRD PARTY PAYMENTS,PRIVATE CONTRACTOR,REVENUE
Walsall Council,http://opendatacommunities.org/id/metropolitan-district-council/walsall ,WC150-754,31.05.2023,ADULT SOCIAL CARE,ANSON COURT RESIDENTIAL HOME,09/05/2023,"2,366.04",6541-Residential EMI,THIRD PARTY PAYMENTS,PRIVATE CONTRACTOR,REVENUE
Walsall Council,http://opendatacommunities.org/id/metropolitan-district-council/walsall ,WC150-755,31.05.2023,ADULT SOCIAL CARE,ANSON COURT RESIDENTIAL HOME,09/05/2023,"2,366.04",6541-Residential EMI,THIRD PARTY PAYMENTS,PRIVATE CONTRACTOR,REVENUE
Walsall Council,http://opendatacommunities.org/id/metropolitan-district-council/walsall ,WC150-756,31.05.2023,ADULT SOCIAL CARE,ANSON COURT RESIDENTIAL HOME,09/05/2023,"2,366.04",6541-Residential EMI,THIRD PARTY PAYMENTS,PRIVATE CONTRACTOR,REVENUE
Walsall Council,http://opendatacommunities.org/id/metropolitan-district-council/walsall ,WC150-757,31.05.2023,ADULT SOCIAL CARE,ANSON COURT RESIDENTIAL HOME,03/05/2023,"2,366.04",6541-Residential,THIRD PARTY PAYMENTS,PRIVATE CONTRACTOR,REVENUE
Walsall Council,http://opendatacommunities.org/id/metropolitan-district-council/walsall ,WC150-758,31.05.2023,RESOURCES AND TRANSFORMATION CAPITAL,ANTHONY COLLINS SOLICITORS,09/05/2023,780,7300-Consultants Fees,CAPITAL,"NEW CONSTRUCTION,CONVERSION & RENOVATION",CAPITAL
Walsall Council,http://opendatacommunities.org/id/metropolitan-district-council/walsall ,WC150-759,31.05.2023,CHILDRENS,REDACTED,03/05/2023,371.92,6223-Special Guardianship Orders,TRANSFER PAYMENTS,CHILDREN SOCIAL SERVICES CLIENT,REVENUE
Walsall Council,http://opendatacommunities.org/id/metropolitan-district-council/walsall ,WC150-760,31.05.2023,"ECONOMY, ENVIRONMENT & COMMUNITIES",APCOA PARKING SERVICES (UK) LTD,03/05/2023,"57,586.20",6411-Parking Enforcement Activity-Priv Contractor Fees,THIRD PARTY PAYMENTS,PRIVATE CONTRACTOR,REVENUE
Walsall Council,http://opendatacommunities.org/id/metropolitan-district-council/walsall ,WC150-761,31.05.2023,RESOURCES AND TRANSFORMATION,APCOA PARKING SERVICES (UK) LTD,03/05/2023,-863.79,6634-Oxygen Finance Rebates ,SUPPLIES & SERVICES,SERVICES,REVENUE
Walsall Council,http://opendatacommunities.org/id/metropolitan-district-council/walsall ,WC150-762,31.05.2023,CHILDRENS,APP CARZ,25/05/2023,"1,202.00",6314-Other Travel Allowances,TRANSPORT,CAR ALLOWANCES,REVENUE
Walsall Council,http://opendatacommunities.org/id/metropolitan-district-council/walsall ,WC150-763,31.05.2023,CHILDRENS,APP CARZ,22/05/2023,910,6241-Hire of Vehicle with Driver,TRANSPORT,DIRECT TRANSPORT COSTS,REVENUE
Walsall Council,http://opendatacommunities.org/id/metropolitan-district-council/walsall ,WC150-764,31.05.2023,CHILDRENS,APP CARZ,22/05/2023,"1,904.00",6241-Hire of Vehicle with Driver,TRANSPORT,DIRECT TRANSPORT COSTS,REVENUE
Walsall Council,http://opendatacommunities.org/id/metropolitan-district-council/walsall ,WC150-765,31.05.2023,CHILDRENS,APP CARZ,22/05/2023,440,6241-Hire of Vehicle with Driver,TRANSPORT,DIRECT TRANSPORT COSTS,REVENUE
Walsall Council,http://opendatacommunities.org/id/metropolitan-district-council/walsall ,WC150-766,31.05.2023,CHILDRENS,APP CARZ,22/05/2023,504,6241-Hire of Vehicle with Driver,TRANSPORT,DIRECT TRANSPORT COSTS,REVENUE
Walsall Council,http://opendatacommunities.org/id/metropolitan-district-council/walsall ,WC150-767,31.05.2023,CHILDRENS,APP CARZ,22/05/2023,"1,400.00",6241-Hire of Vehicle with Driver,TRANSPORT,DIRECT TRANSPORT COSTS,REVENUE
Walsall Council,http://opendatacommunities.org/id/metropolitan-district-council/walsall ,WC150-768,31.05.2023,CHILDRENS,APP CARZ,22/05/2023,"-2,135.00",6241-Hire of Vehicle with Driver,TRANSPORT,DIRECT TRANSPORT COSTS,REVENUE
Walsall Council,http://opendatacommunities.org/id/metropolitan-district-council/walsall ,WC150-769,31.05.2023,CHILDRENS,APP CARZ,22/05/2023,"1,820.00",6241-Hire of Vehicle with Driver,TRANSPORT,DIRECT TRANSPORT COSTS,REVENUE
Walsall Council,http://opendatacommunities.org/id/metropolitan-district-council/walsall ,WC150-770,31.05.2023,CHILDRENS,APP CARZ,22/05/2023,"1,250.00",6241-Hire of Vehicle with Driver,TRANSPORT,DIRECT TRANSPORT COSTS,REVENUE
Walsall Council,http://opendatacommunities.org/id/metropolitan-district-council/walsall ,WC150-771,31.05.2023,CHILDRENS,APP CARZ,22/05/2023,990,6241-Hire of Vehicle with Driver,TRANSPORT,DIRECT TRANSPORT COSTS,REVENUE
Walsall Council,http://opendatacommunities.org/id/metropolitan-district-council/walsall ,WC150-772,31.05.2023,"ECONOMY, ENVIRONMENT & COMMUNITIES",AQUA FORCE SPECIAL WASTE LTD,24/05/2023,"2,172.50",6410-Hazardous Waste Removal & Disposal,THIRD PARTY PAYMENTS,PRIVATE CONTRACTOR,REVENUE
Walsall Council,http://opendatacommunities.org/id/metropolitan-district-council/walsall ,WC150-773,31.05.2023,"ECONOMY, ENVIRONMENT & COMMUNITIES",AQUILA TRUCK CENTRES LTD,03/05/2023,778.08,6410-Materials,SUPPLIES & SERVICES,EQUIPMENT FURNITURE & MATERIALS,REVENUE
Walsall Council,http://opendatacommunities.org/id/metropolitan-district-council/walsall ,WC150-774,31.05.2023,ADULT SOCIAL CARE,ARBORETUM NURSING HOME.,09/05/2023,"2,636.24",6541-Nursing,THIRD PARTY PAYMENTS,PRIVATE CONTRACTOR,REVENUE
Walsall Council,http://opendatacommunities.org/id/metropolitan-district-council/walsall ,WC150-775,31.05.2023,ADULT SOCIAL CARE,ARBORETUM NURSING HOME.,09/05/2023,"2,185.71",6554-Professional Services-Priv Contractor & Other Agencies,THIRD PARTY PAYMENTS,PRIVATE CONTRACTOR,REVENUE
Walsall Council,http://opendatacommunities.org/id/metropolitan-district-council/walsall ,WC150-776,31.05.2023,ADULT SOCIAL CARE,ARBORETUM NURSING HOME.,09/05/2023,"2,656.24",6541-Nursing,THIRD PARTY PAYMENTS,PRIVATE CONTRACTOR,REVENUE
Walsall Council,http://opendatacommunities.org/id/metropolitan-district-council/walsall ,WC150-777,31.05.2023,ADULT SOCIAL CARE,ARBORETUM NURSING HOME.,09/05/2023,"3,600.00",6541-Nursing,THIRD PARTY PAYMENTS,PRIVATE CONTRACTOR,REVENUE
Walsall Council,http://opendatacommunities.org/id/metropolitan-district-council/walsall ,WC150-778,31.05.2023,ADULT SOCIAL CARE,ARBORETUM NURSING HOME.,09/05/2023,"1,092.86",6554-Professional Services-Priv Contractor & Other Agencies,THIRD PARTY PAYMENTS,PRIVATE CONTRACTOR,REVENUE
Walsall Council,http://opendatacommunities.org/id/metropolitan-district-council/walsall ,WC150-779,31.05.2023,ADULT SOCIAL CARE,ARBORETUM NURSING HOME.,09/05/2023,"1,711.54",6554-Professional Services-Priv Contractor & Other Agencies,THIRD PARTY PAYMENTS,PRIVATE CONTRACTOR,REVENUE
Walsall Council,http://opendatacommunities.org/id/metropolitan-district-council/walsall ,WC150-780,31.05.2023,ADULT SOCIAL CARE,ARBORETUM NURSING HOME.,09/05/2023,"3,885.71",6554-Professional Services-Priv Contractor & Other Agencies,THIRD PARTY PAYMENTS,PRIVATE CONTRACTOR,REVENUE
Walsall Council,http://opendatacommunities.org/id/metropolitan-district-council/walsall ,WC150-781,31.05.2023,ADULT SOCIAL CARE,ARBORETUM NURSING HOME.,09/05/2023,"15,178.52",6541-Nursing,THIRD PARTY PAYMENTS,PRIVATE CONTRACTOR,REVENUE
Walsall Council,http://opendatacommunities.org/id/metropolitan-district-council/walsall ,WC150-782,31.05.2023,ADULT SOCIAL CARE,ARBORETUM NURSING HOME.,09/05/2023,"2,456.24",6541-Nursing,THIRD PARTY PAYMENTS,PRIVATE CONTRACTOR,REVENUE
Walsall Council,http://opendatacommunities.org/id/metropolitan-district-council/walsall ,WC150-783,31.05.2023,ADULT SOCIAL CARE,ARBORETUM NURSING HOME.,09/05/2023,"2,456.24",6541-Nursing,THIRD PARTY PAYMENTS,PRIVATE CONTRACTOR,REVENUE
Walsall Council,http://opendatacommunities.org/id/metropolitan-district-council/walsall ,WC150-784,31.05.2023,ADULT SOCIAL CARE,ARBORETUM NURSING HOME.,09/05/2023,"2,456.24",6541-Nursing,THIRD PARTY PAYMENTS,PRIVATE CONTRACTOR,REVENUE
Walsall Council,http://opendatacommunities.org/id/metropolitan-district-council/walsall ,WC150-785,31.05.2023,ADULT SOCIAL CARE,ARBORETUM NURSING HOME.,09/05/2023,"2,636.24",6541-Nursing,THIRD PARTY PAYMENTS,PRIVATE CONTRACTOR,REVENUE
Walsall Council,http://opendatacommunities.org/id/metropolitan-district-council/walsall ,WC150-786,31.05.2023,ADULT SOCIAL CARE,ARBORETUM NURSING HOME.,09/05/2023,"2,636.24",6541-Nursing,THIRD PARTY PAYMENTS,PRIVATE CONTRACTOR,REVENUE
Walsall Council,http://opendatacommunities.org/id/metropolitan-district-council/walsall ,WC150-787,31.05.2023,ADULT SOCIAL CARE,ARBORETUM NURSING HOME.,09/05/2023,"2,500.00",6541-Nursing,THIRD PARTY PAYMENTS,PRIVATE CONTRACTOR,REVENUE
Walsall Council,http://opendatacommunities.org/id/metropolitan-district-council/walsall ,WC150-788,31.05.2023,ADULT SOCIAL CARE,ARBORETUM NURSING HOME.,09/05/2023,"2,456.24",6541-Nursing,THIRD PARTY PAYMENTS,PRIVATE CONTRACTOR,REVENUE
Walsall Council,http://opendatacommunities.org/id/metropolitan-district-council/walsall ,WC150-789,31.05.2023,ADULT SOCIAL CARE,ARBORETUM NURSING HOME.,09/05/2023,"2,247.63",6541-Nursing,THIRD PARTY PAYMENTS,PRIVATE CONTRACTOR,REVENUE
Walsall Council,http://opendatacommunities.org/id/metropolitan-district-council/walsall ,WC150-790,31.05.2023,ADULT SOCIAL CARE,ARBORETUM NURSING HOME.,09/05/2023,"2,456.24",6541-Nursing,THIRD PARTY PAYMENTS,PRIVATE CONTRACTOR,REVENUE
Walsall Council,http://opendatacommunities.org/id/metropolitan-district-council/walsall ,WC150-791,31.05.2023,ADULT SOCIAL CARE,ARBORETUM NURSING HOME.,09/05/2023,"2,456.24",6541-Nursing,THIRD PARTY PAYMENTS,PRIVATE CONTRACTOR,REVENUE
Walsall Council,http://opendatacommunities.org/id/metropolitan-district-council/walsall ,WC150-792,31.05.2023,ADULT SOCIAL CARE,ARBORETUM NURSING HOME.,09/05/2023,"2,456.24",6541-Nursing,THIRD PARTY PAYMENTS,PRIVATE CONTRACTOR,REVENUE
Walsall Council,http://opendatacommunities.org/id/metropolitan-district-council/walsall ,WC150-793,31.05.2023,ADULT SOCIAL CARE,ARBORETUM NURSING HOME.,09/05/2023,"2,456.24",6541-Nursing,THIRD PARTY PAYMENTS,PRIVATE CONTRACTOR,REVENUE
Walsall Council,http://opendatacommunities.org/id/metropolitan-district-council/walsall ,WC150-794,31.05.2023,ADULT SOCIAL CARE,ARBORETUM NURSING HOME.,09/05/2023,"1,285.71",6554-Professional Services-Priv Contractor & Other Agencies,THIRD PARTY PAYMENTS,PRIVATE CONTRACTOR,REVENUE
Walsall Council,http://opendatacommunities.org/id/metropolitan-district-council/walsall ,WC150-795,31.05.2023,ADULT SOCIAL CARE,ARBORETUM NURSING HOME.,09/05/2023,"2,680.24",6541-Nursing,THIRD PARTY PAYMENTS,PRIVATE CONTRACTOR,REVENUE
Walsall Council,http://opendatacommunities.org/id/metropolitan-district-council/walsall ,WC150-796,31.05.2023,ADULT SOCIAL CARE,ARBORETUM NURSING HOME.,09/05/2023,"3,400.00",6554-Professional Services-Priv Contractor & Other Agencies,THIRD PARTY PAYMENTS,PRIVATE CONTRACTOR,REVENUE
Walsall Council,http://opendatacommunities.org/id/metropolitan-district-council/walsall ,WC150-797,31.05.2023,ADULT SOCIAL CARE,ARBORETUM NURSING HOME.,09/05/2023,"3,600.00",6554-Professional Services-Priv Contractor & Other Agencies,THIRD PARTY PAYMENTS,PRIVATE CONTRACTOR,REVENUE
Walsall Council,http://opendatacommunities.org/id/metropolitan-district-council/walsall ,WC150-798,31.05.2023,ADULT SOCIAL CARE,ARBORETUM NURSING HOME.,09/05/2023,"2,636.24",6541-Nursing,THIRD PARTY PAYMENTS,PRIVATE CONTRACTOR,REVENUE
Walsall Council,http://opendatacommunities.org/id/metropolitan-district-council/walsall ,WC150-799,31.05.2023,ADULT SOCIAL CARE,ARBORETUM NURSING HOME.,09/05/2023,"-1,578.57",6554-Professional Services-Priv Contractor & Other Agencies,THIRD PARTY PAYMENTS,PRIVATE CONTRACTOR,REVENUE
Walsall Council,http://opendatacommunities.org/id/metropolitan-district-council/walsall ,WC150-800,31.05.2023,ADULT SOCIAL CARE,ARBORETUM NURSING HOME.,09/05/2023,"1,720.59",6554-Professional Services-Priv Contractor & Other Agencies,THIRD PARTY PAYMENTS,PRIVATE CONTRACTOR,REVENUE
Walsall Council,http://opendatacommunities.org/id/metropolitan-district-council/walsall ,WC150-801,31.05.2023,"ECONOMY, ENVIRONMENT & COMMUNITIES",ARBURY WALSALL,16/05/2023,741.8,6410-Materials,SUPPLIES & SERVICES,EQUIPMENT FURNITURE & MATERIALS,REVENUE
Walsall Council,http://opendatacommunities.org/id/metropolitan-district-council/walsall ,WC150-802,31.05.2023,RESOURCES AND TRANSFORMATION CAPITAL,ARCADIS,15/05/2023,"9,399.00",7300-Consultants Fees,CAPITAL,"NEW CONSTRUCTION,CONVERSION & RENOVATION",CAPITAL
Walsall Council,http://opendatacommunities.org/id/metropolitan-district-council/walsall ,WC150-803,31.05.2023,RESOURCES AND TRANSFORMATION CAPITAL,ARCADIS,15/05/2023,"-8,713.38",7300-Consultants Fees,CAPITAL,"NEW CONSTRUCTION,CONVERSION & RENOVATION",CAPITAL
Walsall Council,http://opendatacommunities.org/id/metropolitan-district-council/walsall ,WC150-804,31.05.2023,RESOURCES AND TRANSFORMATION CAPITAL,ARCADIS,15/05/2023,"8,713.38",7300-Consultants Fees,CAPITAL,"NEW CONSTRUCTION,CONVERSION & RENOVATION",CAPITAL
Walsall Council,http://opendatacommunities.org/id/metropolitan-district-council/walsall ,WC150-805,31.05.2023,RESOURCES AND TRANSFORMATION CAPITAL,ARCADIS,15/05/2023,"-34,853.49",7300-Consultants Fees,CAPITAL,"NEW CONSTRUCTION,CONVERSION & RENOVATION",CAPITAL
Walsall Council,http://opendatacommunities.org/id/metropolitan-district-council/walsall ,WC150-806,31.05.2023,RESOURCES AND TRANSFORMATION CAPITAL,ARCADIS,15/05/2023,"34,853.49",7300-Consultants Fees,CAPITAL,"NEW CONSTRUCTION,CONVERSION & RENOVATION",CAPITAL
Walsall Council,http://opendatacommunities.org/id/metropolitan-district-council/walsall ,WC150-807,31.05.2023,RESOURCES AND TRANSFORMATION CAPITAL,ARCADIS,15/05/2023,"-25,863.00",7300-Consultants Fees,CAPITAL,"NEW CONSTRUCTION,CONVERSION & RENOVATION",CAPITAL
Walsall Council,http://opendatacommunities.org/id/metropolitan-district-council/walsall ,WC150-808,31.05.2023,RESOURCES AND TRANSFORMATION CAPITAL,ARCADIS,15/05/2023,"25,863.00",7300-Consultants Fees,CAPITAL,"NEW CONSTRUCTION,CONVERSION & RENOVATION",CAPITAL
